Workbook

Sheet Aide-Hilfe
B1: ='08'!B1 -> Agenda | L1: ='08'!L1 -> Décompte salaire mensuel
B2: ='08'!B2 -> Apprenti(e) | C2: =TRIM(DB_Apprenti) -> 
A3: 400 | B3: =DATE(DB_Annee,8,1) -> 2023-08-01 | C3: ='08'!C3 -> [ a-b-c-d-e-f-g-h-i ] | D3: ='08'!D3 -> Logis | E3: ='08'!E3 -> Déjeuner | F3: ='08'!F3 -> Dîner | G3: ='08'!G3 -> Souper | H3: ='08'!H3 -> Montant des Prestations en nature | I3: ='08'!I3 -> Montant modifié | J3: =VLOOKUP(A3,Tb_Traduction,DB_Langue,FALSE) -> Vous ne devez remplir que les cellules jaunes !!! | L3: ='08'!L3 -> Mois : | M3: =B3 -> 2023-08-01 | O3: ='08'!O3 -> Année : | P3: ='08'!P3 -> 0 | Q3: =B3 -> 2023-08-01
C4: ='08'!C4 -> 0 | D4: ='08'!D4 -> 0 | E4: ='08'!E4 -> 0 | F4: ='08'!F4 -> 0 | G4: ='08'!G4 -> 0 | H4: ='08'!H4 -> 0 | I4: ='08'!I4 -> 0
C5: ='08'!C5 -> 0 | D5: ='08'!D5 -> 0 | E5: ='08'!E5 -> 0 | F5: ='08'!F5 -> 0 | G5: ='08'!G5 -> 0 | H5: ='08'!H5 -> 0 | I5: ='08'!I5 -> 0 | L5: ='08'!L5 -> Maître d'apprentissage :
C6: ='08'!C6 -> 0 | D6: ='08'!D6 -> 0 | E6: ='08'!E6 -> 0 | F6: ='08'!F6 -> 0 | G6: ='08'!G6 -> 0 | H6: ='08'!H6 -> 0 | I6: ='08'!I6 -> 0 | L6: ='08'!L6 -> Lieu :
C7: ='08'!C7 -> 0 | D7: ='08'!D7 -> 0 | E7: ='08'!E7 -> 0 | F7: ='08'!F7 -> 0 | G7: ='08'!G7 -> 0 | H7: ='08'!H7 -> 0 | I7: ='08'!I7 -> 0 | L7: ='08'!L7 -> Apprenti :
C8: ='08'!C8 -> 0 | D8: ='08'!D8 -> 0 | E8: ='08'!E8 -> 0 | F8: ='08'!F8 -> 0 | G8: ='08'!G8 -> 0 | H8: ='08'!H8 -> 0 | I8: ='08'!I8 -> 0 | L8: ='08'!L8 -> N° AVS : | P8: ='08'!P8 -> Date de naissance :
A9: 401 | B9: =B3 -> 2023-08-01 | C9: a | H9: =IF(C9="a",PN_Travail,IF(C9="b",PN_CoursProf,IF(C9="c",PN_CoursIE,IF(C9="d",PN_Conge,IF(C9="e",PN_Vacances,IF(C9="f",PN_DemiJour,IF(C9="g",PN_Accident,IF(C9="h",PN_Maladie,0)))))))) -> 33 | I9: =H9+D9*PN_Logis+E9*PN_Dejeuner+F9*PN_Diner+G9*PN_Souper -> 33 | J9: =VLOOKUP(A9,Tb_Traduction,DB_Langue,FALSE) -> Pour chaque jour du mois vous pouvez saisir ici la journée de l'apprenti
B10: =B9+1 -> 2023-08-02 | C10: d | H10: 11.5 | I10: =H10+D10*PN_Logis+E10*PN_Dejeuner+F10*PN_Diner+G10*PN_Souper -> 11.5
A11: 230 | B11: 2023-08-03 | C11: b | H11: 23 | I11: 23 | J11: =VLOOKUP(A12,Tb_Traduction,DB_Langue,FALSE) -> a = Journée de travail b = Journée de cours professionnels c = Journée de cours interentreprises d = Journée de congé e = Journée de vacances f = 1/2 jour de travail, 1/2 jour de congé g = Accident (jour entier) h = Maladie (jour entier) i = Armée | L11: ='08'!L11 -> Salaire brut | M11: ='08'!M11 ->  | Q11: =IF(PN_EffMoy=0,Sa_BaseMensuelArrondi / H42 *C40,Sa_BaseMensuelArrondi*PN_SalMoyAout) -> 
A12: 402 | B12: 2023-08-04 | C12: a | H12: 33 | I12: 33 | L12: ='08'!L12 -> Prime, bonus, gratification
B13: 2023-08-05 | C13: a | H13: 33 | I13: 33 | L13: ='08'!L13 -> Salaire brut total | Q13: =SUM(Q11:Q12) -> 
B14: 2023-08-06 | C14: a | H14: 33 | I14: 33
B15: 2023-08-07 | C15: a | H15: 33 | I15: 33 | L15: ='08'!L15 -> Déductions | M15: ='08'!M15 -> Part | N15: %
B16: 2023-08-08 | C16: d | H16: 11.5 | I16: 11.5 | L16: ='08'!L16 -> Cotisations AVS, AI, APG* : | M16: 1/2 | N16: 0.0505 | P16: =$Q$13*N16 -> 
B17: 2023-08-09 | C17: d | H17: 11.5 | I17: 11.5 | L17: ='08'!L17 -> Cotisations AC* : | M17: 1/2 | N17: 0.01 | P17: =$Q$13*N17 -> 
A18: 403 | B18: 2023-08-10 | C18: x | H18: 0 | I18: 0 | J18: =VLOOKUP(A18,Tb_Traduction,DB_Langue,FALSE) -> Une cellule rouge indique une mauvaise saisie. Seules les valeurs a, b, c, d, e, f, g ou h peuvent être saisie ici. | L18: ='08'!L18 -> Accident non profes.: | M18: 1/2 | N18: 0.0136 | P18: =$Q$13*N18 -> 
B19: 2023-08-11 | C19: a | H19: 33 | I19: 33 | L19: ='08'!L19 -> Indemnité journalière MC : | M19: 1/2 | N19: 0.0065 | P19: =$Q$13*N19 -> 
B20: 2023-08-12 | C20: a | H20: 33 | I20: 33 | L20: ='08'!L20 -> Autre déduction :
B21: 2023-08-13 | C21: a | H21: 33 | I21: 33 | L21: ='08'!L21 ->  | P21: =I40 -> 794
B22: 2023-08-14 | C22: a | H22: 33 | I22: 33 | L22: ='08'!L22 -> *) Dès le 1er janvier de l'année des 18 ans de l'apprenti(e)
A23: 404 | B23: 2023-08-15 | C23: a | H23: 33 | I23: 33 | J23: =VLOOKUP(A23,Tb_Traduction,DB_Langue,FALSE) -> Les cases rouges indiquent les prestations en nature décomptées pour la journée.
B24: 2023-08-16 | C24: c | H24: 23 | I24: 23 | L24: ='08'!L24 -> A déduire | Q24: =INT((SUM(P16:P21)*20)+0.5)/20 -> 
B25: 2023-08-17 | C25: b | H25: 23 | I25: 23
B26: 2023-08-18 | C26: a | H26: 33 | I26: 33 | L26: ='08'!L26 -> Frais et remboursement
A27: 405 | B27: 2023-08-19 | C27: a | H27: 33 | I27: 33 | J27: =VLOOKUP(A27,Tb_Traduction,DB_Langue,FALSE) -> Le montant des prestations en nature est calculé automatiquement | L27: ='08'!L27 -> Frais :
B28: 2023-08-20 | C28: a | H28: 33 | I28: 33 | L28: ='08'!L28 -> Autre remboursement :
B29: 2023-08-21 | C29: a | H29: 33 | I29: 33
A30: 406 | B30: 2023-08-22 | C30: c | H30: 23 | I30: 23 | J30: =VLOOKUP(A30,Tb_Traduction,DB_Langue,FALSE) -> Pour chaque jour, vous pouvez ajouter ou soustraire une ou plusieurs prestations en nature | L30: ='08'!L30 -> A ajouter | Q30: =SUM(P27:P28) -> 0
B31: 2023-08-23 | C31: c | H31: 23 | I31: 23
B32: 2023-08-24 | C32: a | E32: -1 | F32: 2 | G32: 1 | H32: 33 | I32: 57.5 | L32: ='08'!L32 -> Versement du mois | Q32: =Q13+Q30-Q24 -> 
B33: 2023-08-25 | C33: e | H33: 11.5 | I33: 11.5 | M33: ='08'!M33 -> Mois courant | N33: ='08'!N33 -> Cumul mois précédents | O33: ='08'!O33 -> Prévus annuellement | Q33: ='08'!Q33 -> Solde actuel
A34: 407 | B34: 2023-08-26 | C34: e | H34: 11.5 | I34: 11.5 | J34: =VLOOKUP(A34,Tb_Traduction,DB_Langue,FALSE) -> Le montant modifié des prestations en nature est calculé automatiquement | L34: ='08'!L34 -> Décompte des jours | M34: ='08'!M34 -> 0 | N34: ='08'!N34 -> 0 | O34: ='08'!O34 -> 0 | Q34: ='08'!Q34 -> 0
B35: 2023-08-27 | C35: e | H35: 11.5 | I35: 11.5 | L35: ='08'!L35 -> Travail : | M35: =H43 -> 16 | N35: 0 | O35: =NJ_Travail ->  | Q35: =O35-N35-M35 -> 
B36: 2023-08-28 | C36: e | H36: 11.5 | I36: 11.5 | J36: =VLOOKUP(A37,Tb_Traduction,DB_Langue,FALSE) -> Le total mensuel des prestations en nature est reporté dans le décompte salaire du mois si on affiche le montant effectif du salaire en nature. Sinon on reporte le salaire en nature mensuel | L36: ='08'!L36 -> Cours prof. : | M36: 3 | N36: 0 | O36: =NJ_CoursProf -> 
A37: 408 | B37: 2023-08-29 | C37: c | H37: 23 | I37: 23 | L37: ='08'!L37 -> Cours IE : | M37: 4 | N37: 0 | O37: =NJ_CoursIE -> 
B38: 2023-08-30 | C38: a | H38: 33 | I38: 33 | L38: ='08'!L38 -> Armée : | M38: =H46 -> 0 | N38: =I46 -> 0 | O38: =NJ_CoursIE ->  | Q38: =O38-N38-M38 -> 
B39: 2023-08-31 | C39: b | H39: 23 | I39: 23 | L39: ='08'!L39 -> Congés : | M39: =H47 -> 3 | N39: =I47 -> 0 | O39: =NJ_Conge -> 
B40: ='08'!B40 -> Total | C40: =COUNTIF(C9:C39,"a")+COUNTIF(C9:C39,"b")+COUNTIF(C9:C39,"c")+COUNTIF(C9:C39,"d")+COUNTIF(C9:C39,"e")+COUNTIF(C9:C39,"f")+COUNTIF(C9:C39,"g")+COUNTIF(C9:C39,"h")+COUNTIF(C9:C39,"i") -> 30 | D40: =SUM(D9:D39) -> 0 | E40: -1 | F40: 2 | G40: 1 | H40: 769.5 | I40: 794 | J40: =INT(((Sa_NatureMensuel / H42 *C40)*20)+0.5)/20 ->  | L40: ='08'!L40 -> Vacances : | M40: =H48 -> 4 | N40: 0 | O40: =NJ_Vacances -> 
H41: =B3 -> 2023-08-01 | I41: ='08'!I41 -> cumul | L41: ='08'!L41 -> Accident : | M41: 0 | N41: 0 | O41: 0 | Q41: 0
B42: ='08'!B42 -> Décompte des jours | C42: ='08'!C42 ->  | D42: ='08'!D42 ->  | E42: ='08'!E42 ->  | F42: ='08'!F42 ->  | G42: ='08'!G42 ->  | H42: 31 | I42: 0 | L42: ='08'!L42 -> Maladie : | M42: 0 | N42: 0 | O42: 0 | Q42: 0
A43: 409 | B43: ='08'!B43 -> Jours de travail (a) : | C43: ='08'!C43 ->  | D43: ='08'!D43 ->  | E43: ='08'!E43 ->  | F43: ='08'!F43 ->  | G43: ='08'!G43 ->  | H43: =COUNTIF(C9:C39,"a")+COUNTIF(C9:C39,"f")/2 -> 16 | I43: 0 | J43: =VLOOKUP(A43,Tb_Traduction,DB_Langue,FALSE) -> Le décompte des jours est reporté dans le décompte salaire du mois
B44: ='08'!B44 -> Cours professionnels (b) : | C44: ='08'!C44 ->  | D44: ='08'!D44 ->  | E44: ='08'!E44 ->  | F44: ='08'!F44 ->  | G44: ='08'!G44 ->  | H44: =COUNTIF(C9:C39,"b") -> 3 | I44: 0 | L44: ='08'!L44 -> Remarques :
B45: ='08'!B45 -> Cours interentreprises (c) : | C45: ='08'!C45 ->  | D45: ='08'!D45 ->  | E45: ='08'!E45 ->  | F45: ='08'!F45 ->  | G45: ='08'!G45 ->  | H45: =COUNTIF(C9:C39,"c") -> 4 | I45: 0
B46: ='08'!B46 -> Armée (i) : | C46: ='08'!C46 ->  | D46: ='08'!D46 ->  | E46: ='08'!E46 ->  | F46: ='08'!F46 ->  | G46: ='08'!G46 ->  | H46: =COUNTIF(C10:C40,"i") -> 0 | I46: 0
B47: ='08'!B47 -> Congé (d) : | C47: ='08'!C47 ->  | D47: ='08'!D47 ->  | E47: ='08'!E47 ->  | F47: ='08'!F47 ->  | G47: ='08'!G47 ->  | H47: =COUNTIF(C9:C39,"d")+COUNTIF(C9:C39,"f")/2 -> 3 | I47: 0
B48: ='08'!B48 -> Vacances (e) : | C48: ='08'!C48 ->  | D48: ='08'!D48 ->  | E48: ='08'!E48 ->  | F48: ='08'!F48 ->  | G48: ='08'!G48 ->  | H48: =COUNTIF(C9:C39,"e") -> 4 | I48: 0 | L48: ='08'!L48 -> Date : | O48: ='08'!O48 -> Maître d'apprentissage :
B49: ='08'!B49 -> Accident (g) : | C49: ='08'!C49 ->  | D49: ='08'!D49 ->  | E49: ='08'!E49 ->  | F49: ='08'!F49 ->  | G49: ='08'!G49 ->  | H49: =COUNTIF(C9:C39,"g") -> 0 | I49: 0
B50: ='08'!B50 -> Maladie (h) : | C50: ='08'!C50 ->  | D50: ='08'!D50 ->  | E50: ='08'!E50 ->  | F50: ='08'!F50 ->  | G50: ='08'!G50 ->  | H50: =COUNTIF(C9:C39,"h") -> 0 | I50: 0 | O50: ='08'!O50 -> Apprenti(e) :

Sheet Apprenti-Lehrling
A1: 100 | B1: =VLOOKUP(A1,Tb_Traduction,DB_Langue,FALSE) -> Langue : | C1: F | D1: =VLOOKUP(A1+1,Tb_Traduction,DB_Langue,FALSE) -> D ou F | E1: =IF(C1="F",2,3) -> 2 | H1: Grangeneuve, 04.08.2023
A3: 110 | B3: =VLOOKUP(A3,Tb_Traduction,DB_Langue,FALSE) -> Nom et prénom du maître d'apprentissage :
A4: 111 | B4: =VLOOKUP(A4,Tb_Traduction,DB_Langue,FALSE) -> Adresse :
A5: 112 | B5: =VLOOKUP(A5,Tb_Traduction,DB_Langue,FALSE) -> NPA et Lieu :
A7: 120 | B7: =VLOOKUP(A7,Tb_Traduction,DB_Langue,FALSE) -> Nom et prénom de l'apprenti(e) :
A8: 121 | B8: Adresse :
A9: 122 | B9: NPA et Lieu :
A10: 123 | B10: N° AVS :
A11: 124 | B11: Date de naissance :
A12: 125 | B12: Soumis à l'AVS depuis : | C12: =DATE(YEAR(DB_DateNaissance)+18,1,1) -> 1918-01-01
A13: 126 | B13: Supplément de vacances jusqu'à 20 ans révolus : | C13: =ROUND(5*IF(DB_DateNaissance<DB_5Semaines,0,IF(DB_DateNaissance>DB_5SemainesPlus,1,(DB_DateNaissance-DB_5Semaines)/(DB_5SemainesPlus-DB_5Semaines+1))),0) -> 0 | D13: =DATE(DB_Annee-20,8,15) -> 2003-08-15 | E13: =DATE(DB_Annee-19,8,15) -> 2004-08-15 | G13: 15 | H13: =VLOOKUP(G13,Tb_Traduction,DB_Langue,FALSE) -> Les normes cantonales concernant les vacances sont consultables ici: | I13: http://www.formationprof.ch/download/am4.pdf
A14: 130 | B14: =VLOOKUP(A14,Tb_Traduction,DB_Langue,FALSE) -> Année : | C14: 2023
A15: 131 | B15: =VLOOKUP(A15,Tb_Traduction,DB_Langue,FALSE) -> Année d'apprentissage : | C15: =IF(ISERR(D16+0),D16,D16+0) -> 0 | D15: =VLOOKUP(C15,DB_ListeAnneeApprentissage,2,FALSE) -> 
A16: 133 | B16: =VLOOKUP(A16,Tb_Traduction,DB_Langue,FALSE) -> Nombre de mois : | C16: =HLOOKUP(DB_AnneeApprentissage,DB_DonneesDeBase,12,FALSE) -> 
A18: 140 | C18: =VLOOKUP(A18,Tb_Traduction,DB_Langue,FALSE) -> Données salariales
A19: 141 | C19: =VLOOKUP(A19,Tb_Traduction,DB_Langue,FALSE) -> Net | D19: =VLOOKUP(A19+1,Tb_Traduction,DB_Langue,FALSE) -> Arrondi
A20: 143 | B20: =VLOOKUP(A20,Tb_Traduction,DB_Langue,FALSE) -> Salaire annuel de base minimum : | C20: =HLOOKUP(DB_AnneeApprentissage,DB_DonneesDeBase,2,FALSE) ->  | D20: =INT((20*C20)+0.5)/20 -> 
A21: 144 | B21: Salaire annuel de base : | D21: =INT((20*C21)+0.5)/20 -> 0 | F21: =IF(Sa_BaseAnnuel="","",VLOOKUP(A21+5,Tb_Traduction,DB_Langue,FALSE)) -> 
A22: 145 | B22: Salaire mensuel de base : | C22: =Sa_BaseAnnuel/C16 ->  | D22: =INT((20*C22)+0.5)/20 ->  | G22: 14
A23: 146 | B23: Salaire annuel en nature : | C23: =HLOOKUP(DB_AnneeApprentissage,DB_DonneesDeBase,3+PN_LogisOuiNon,FALSE) ->  | D23: =INT((20*C23)+0.5)/20 ->  | G23: 1 | H23: =VLOOKUP(G23,Tb_Traduction,DB_Langue,FALSE) -> Salaire et nombre de jours | I23: 1 | J23: 2b | K23: 2f | L23: 3
A24: 147 | B24: Salaire mensuel en nature : | C24: =Sa_NatureAnnuel/Nb_Mois ->  | D24: =INT((20*C24)+0.5)/20 ->  | G24: 2 | H24: Salaire annuel de base (minimum) | I24: 14100 | J24: 15900 | K24: 15900 | L24: 14100
A25: 148 | B25: Salaire mensuel moyen : | C25: =C22-C24 ->  | D25: =D22-D24 ->  | G25: 3 | H25: Salaire annuel en nature (sans chambre) | I25: =I26-(I28*PN_Logis) -> 5279 | J25: =J26-(J28*PN_Logis) -> 5279 | K25: =K26-(K28*PN_Logis) -> 5239 | L25: =L26-(L28*PN_Logis) -> 3504.5
A26: 135 | B26: Versement mensuel moyen : | C26: =DB_Annee -> 2023 | D26: =C26+1 -> 2024 | G26: 4 | H26: Salaire annuel en nature (avec chambre) | I26: =(PN_Logis*I28)+(PN_Dejeuner*(I31+I32+I33))+(PN_Diner*I33)+(PN_Souper*(I31+I32+I33)) -> 9488 | J26: =(PN_Logis*J28)+(PN_Dejeuner*(J31+J32+J33))+(PN_Diner*J33)+(PN_Souper*(J31+J32+J33)) -> 9488 | K26: =(PN_Logis*K28)+(PN_Dejeuner*(K31+K32+K33))+(PN_Diner*K33)+(PN_Souper*(K31+K32+K33)) -> 9448 | L26: =(PN_Logis*L28)+(PN_Dejeuner*(L32+L33))+(PN_Diner*L33)+(PN_Souper*(L32+L33)) -> 7713.5
A27: 136 | B27: sans AVS, moins de 18 ans : | C27: =IF(PN_EffMoy=0,"...",INT(20*(Sa_VersementMensuelArrondi-(Sa_BaseMensuelArrondi*SUM(C58:C59)))+0.5)/20) ->  | D27: =IF(PN_EffMoy=0,"...",INT(20*(Sa_VersementMensuelArrondi-(Sa_BaseMensuelArrondi*SUM(D58:D59)))+0.5)/20) ->  | G27: 5 | H27: Sal. annuel en nat. (chambre hors sem. bloc) | I27: 0 | J27: 0 | K27: 0 | L27: 0
A28: 137 | B28: avec AVS, dès 18 ans : | C28: =IF(PN_EffMoy=0,"...",INT(20*(Sa_VersementMensuelArrondi-(Sa_BaseMensuelArrondi*SUM(C56:C59)))+0.5)/20) ->  | D28: =IF(PN_EffMoy=0,"...",INT(20*(Sa_VersementMensuelArrondi-(Sa_BaseMensuelArrondi*SUM(D56:D59)))+0.5)/20) ->  | G28: 6 | H28: Durée totale | I28: =IF(MOD(DB_Annee+1,4)=0,366,365) -> 366 | J28: =IF(MOD(DB_Annee+1,4)=0,366,365) -> 366 | K28: =IF(MOD(DB_Annee+1,4)=0,366,365) -> 366 | L28: =IF(MOD(DB_Annee+1,4)=0,366,365) -> 366
G29: 7 | H29: Jours de congé | I29: 78 | J29: 78 | K29: 78 | L29: 78
A30: 150 | C30: =VLOOKUP(A30,Tb_Traduction,DB_Langue,FALSE) -> Prestations en nature | G30: 8 | H30: Vacances | I30: =22+DB_VacSup -> 22 | J30: =22+DB_VacSup -> 22 | K30: =22+DB_VacSup -> 22 | L30: =22+DB_VacSup -> 22
C31: 2023 | D31: =C31+1 -> 2024 | G31: 9 | H31: Cours professionnel | I31: 40 | J31: 40 | K31: 40 | L31: 103
A32: 151 | B32: =VLOOKUP(A32,Tb_Traduction,DB_Langue,FALSE) -> Logis : | C32: 11.5 | D32: 11.5 | G32: 10 | H32: Cours interentreprises | I32: 4 | J32: 4 | K32: 8 | L32: 0
A33: 152 | B33: Déjeuner : | C33: 3.5 | D33: 3.5 | G33: 11 | H33: =VLOOKUP(G34,Tb_Traduction,DB_Langue,FALSE) -> Jours de travail | I33: =I28-SUM(I29:I32) -> 222 | J33: =J28-SUM(J29:J32) -> 222 | K33: =K28-SUM(K29:K32) -> 218 | L33: =L28-SUM(L29:L32) -> 163
A34: 153 | B34: Dîner : | C34: 10 | D34: 10 | G34: 12 | H34: =VLOOKUP(G35,Tb_Traduction,DB_Langue,FALSE) -> Nombre de mois | I34: 12 | J34: 12 | K34: 12 | L34: 12
A35: 154 | B35: Souper : | C35: 8 | D35: 8 | G35: 13
A36: 155 | B36: Chambre à disposition (oui/non/bloc) : | F36: =IF(Sa_NatureAnnuel=0,VLOOKUP(A39+1,Tb_Traduction,DB_Langue,FALSE),"") -> 
A37: 156 | B37: Afficher dans le décompte le salaire en nature effectif ou mensuel (moyenne) | F37: =IF(AND(PN_EffMoy=1,Nb_Mois<>12),VLOOKUP(A39+2,Tb_Traduction,DB_Langue,FALSE),"") -> 
C38: =VLOOKUP(C37,DB_ListeEffMoy,2,FALSE) ->  | D38: =IF(OR(C36="OUI",C36="JA"),1,IF(OR(C36="NON",C36="NEIN"),0,2)) -> 2
A39: 157 | B39: =SUBSTITUTE(SUBSTITUTE(VLOOKUP(A39,Tb_Traduction,DB_Langue,FALSE),"***1",C31),"***2",D31) -> Si salaire en nature mensuel, indiquer la répartition des salaires août 2023 et 2024 | C39: 0.5 | D39: 0.5
A41: 160 | C41: =VLOOKUP(A41,Tb_Traduction,DB_Langue,FALSE) -> Prestations en nature par jour
A42: 161 | C42: =VLOOKUP(A42,Tb_Traduction,DB_Langue,FALSE) -> Nb. Jours | D42: 2023 | E42: =D42+1 -> 2024
A43: 162 | B43: =VLOOKUP(A43,Tb_Traduction,DB_Langue,FALSE) -> Jours de travail : | C43: =HLOOKUP(DB_AnneeApprentissage,DB_DonneesDeBase,11,FALSE) ->  | D43: =IF(PN_LogisOuiNon=0,0,PN_Logis)+PN_Dejeuner+PN_Souper+PN_Diner -> 33 | E43: =IF(PN_LogisOuiNon=0,0,PN_Logis_Plus)+PN_Dejeuner_Plus+PN_Souper_Plus+PN_Diner_Plus -> 33
A44: 163 | B44: Cours professionnels : | C44: =HLOOKUP(DB_AnneeApprentissage,DB_DonneesDeBase,9,FALSE) ->  | D44: =IF(DB_AnneeApprentissage=3,IF(PN_LogisOuiNon=0,0,PN_Logis),IF(PN_LogisOuiNon=0,0,PN_Logis)+PN_Dejeuner+PN_Souper) -> 23 | E44: =IF(DB_AnneeApprentissage=3,IF(PN_LogisOuiNon=0,0,PN_Logis_Plus),IF(PN_LogisOuiNon=0,0,PN_Logis_Plus)+PN_Dejeuner_Plus+PN_Souper_Plus) -> 23
A45: 164 | B45: Cours interentreprises : | C45: =HLOOKUP(DB_AnneeApprentissage,DB_DonneesDeBase,10,FALSE) ->  | D45: =IF(PN_LogisOuiNon=0,0,PN_Logis)+PN_Dejeuner+PN_Souper -> 23 | E45: =IF(PN_LogisOuiNon=0,0,PN_Logis_Plus)+PN_Dejeuner_Plus+PN_Souper_Plus -> 23
A46: 171 | B46: =VLOOKUP(A46,Tb_Traduction,DB_Langue,FALSE) -> Armée : | C46: 0 | D46: =IF(PN_LogisOuiNon=0,0,PN_Logis) -> 11.5 | E46: =IF(PN_LogisOuiNon=0,0,PN_Logis_Plus) -> 11.5
A47: 165 | B47: Congé : | C47: =HLOOKUP(DB_AnneeApprentissage,DB_DonneesDeBase,7,FALSE) ->  | D47: =IF(PN_LogisOuiNon=0,0,PN_Logis) -> 11.5 | E47: =IF(PN_LogisOuiNon=0,0,PN_Logis_Plus) -> 11.5
A48: 166 | B48: Vacances : | C48: =HLOOKUP(DB_AnneeApprentissage,DB_DonneesDeBase,8,FALSE) ->  | D48: =IF(PN_LogisOuiNon=0,0,PN_Logis) -> 11.5 | E48: =IF(PN_LogisOuiNon=0,0,PN_Logis_Plus) -> 11.5
A49: 167 | B49: 1/2 jour (travail/congé) : | C49: 0 | D49: =IF(PN_LogisOuiNon=1,PN_Logis,0) -> 0 | E49: =IF(PN_LogisOuiNon=1,PN_Logis_Plus,0) -> 0
A50: 168 | B50: Accident : | C50: 0 | D50: =PN_Conge -> 11.5 | E50: =PN_Conge_Plus -> 11.5
A51: 169 | B51: Maladie : | C51: 0 | D51: =PN_Conge -> 11.5 | E51: =PN_Conge_Plus -> 11.5
A52: 170 | B52: Nb. de jours total : | C52: =SUM(C43:C51) -> 
A54: 180 | C54: =VLOOKUP(A54,Tb_Traduction,DB_Langue,FALSE) -> Retenues sur le salaire
C55: 2023 | D55: =C55+1 -> 2024
A56: 181 | B56: =VLOOKUP(A56,Tb_Traduction,DB_Langue,FALSE) -> Cotisations AVS, AI, APG : | C56: 0.053 | D56: 0.053
A57: 182 | B57: =VLOOKUP(A57,Tb_Traduction,DB_Langue,FALSE) -> Cotisations AC : | C57: 0.011 | D57: 0.011
A58: 183 | B58: =VLOOKUP(A58,Tb_Traduction,DB_Langue,FALSE) -> Accident non professionnel : | C58: 0.01607 | D58: 0.01607
A59: 184 | B59: =VLOOKUP(A59,Tb_Traduction,DB_Langue,FALSE) -> Indemnité journalière en cas de maladie : | C59: 0.0044 | D59: 0.0044

Sheet 08
A1: 200 | B1: =VLOOKUP(A1,Tb_Traduction,DB_Langue,FALSE) -> Agenda | L1: =VLOOKUP(A1+1,Tb_Traduction,DB_Langue,FALSE) -> Décompte salaire mensuel
A2: 202 | B2: =VLOOKUP(A2,Tb_Traduction,DB_Langue,FALSE) -> Apprenti(e) | C2: ="- " & TRIM(DB_Apprenti) & " -" -> - -
A3: 203 | B3: =DATE(DB_Annee,8,1) -> 2023-08-01 | C3: =VLOOKUP(A4,Tb_Traduction,DB_Langue,FALSE) -> [ a-b-c-d-e-f-g-h-i ] | D3: =VLOOKUP(A4+1,Tb_Traduction,DB_Langue,FALSE) -> Logis | E3: =VLOOKUP(A4+2,Tb_Traduction,DB_Langue,FALSE) -> Déjeuner | F3: =VLOOKUP(A4+3,Tb_Traduction,DB_Langue,FALSE) -> Dîner | G3: =VLOOKUP(A4+4,Tb_Traduction,DB_Langue,FALSE) -> Souper | H3: =VLOOKUP(A4+5,Tb_Traduction,DB_Langue,FALSE) -> Montant des Prestations en nature | I3: =VLOOKUP(A4+6,Tb_Traduction,DB_Langue,FALSE) -> Montant modifié | J3: =VLOOKUP(A4+7,Tb_Traduction,DB_Langue,FALSE) -> Commentaires a = Jour de travail b = Jour de cours professionel c = Jour de cours interentreprises d = Jour de congé e = Jour de vacances f = 1/2 jour de travail, 1/2 jour de congé g = Accident (jour entier) h = Maladie (jour entier) i = Armée | L3: =VLOOKUP(A3,Tb_Traduction,DB_Langue,FALSE) -> Mois : | M3: =B3 -> 2023-08-01 | O3: =VLOOKUP(A3+1,Tb_Traduction,DB_Langue,FALSE) -> Année : | Q3: =B3 -> 2023-08-01
A4: 210
A5: 220 | L5: =VLOOKUP(A5,Tb_Traduction,DB_Langue,FALSE) -> Maître d'apprentissage : | M5: =TRIM(DB_Maitre) -> 
A6: 221 | L6: =VLOOKUP(A6,Tb_Traduction,DB_Langue,FALSE) -> Lieu : | M6: =TRIM(DB_MaitreLieu) -> 
A7: 222 | L7: =VLOOKUP(A7,Tb_Traduction,DB_Langue,FALSE) -> Apprenti : | M7: =TRIM(DB_Apprenti) -> 
A8: 223 | L8: =VLOOKUP(A8,Tb_Traduction,DB_Langue,FALSE) -> N° AVS : | M8: =TRIM(DB_AVS) ->  | P8: =VLOOKUP(A8+1,Tb_Traduction,DB_Langue,FALSE) -> Date de naissance : | Q8: =IF(DB_DateNaissance=0,"",DB_DateNaissance) -> 
B9: =B3 -> 2023-08-01 | H9: =MAX(IF(C9="a",PN_Travail,IF(C9="b",PN_CoursProf,IF(C9="c",PN_CoursIE,IF(C9="d",PN_Conge,0)))),IF(C9="e",PN_Vacances,IF(C9="f",PN_DemiJour,IF(C9="g",PN_Accident,IF(C9="h",PN_Maladie,IF(C9="i",PN_Armee,0)))))) -> 0 | I9: =H9+D9*PN_Logis+E9*PN_Dejeuner+F9*PN_Diner+G9*PN_Souper -> 0
B10: =B9+1 -> 2023-08-02 | H10: 0 | I10: 0
A11: 230 | B11: =B10+1 -> 2023-08-03 | H11: 0 | I11: 0 | L11: =VLOOKUP(A11,Tb_Traduction,DB_Langue,FALSE) -> Salaire brut | M11: =IF(PN_EffMoy=0,SUBSTITUTE(VLOOKUP(A11+1,Tb_Traduction,DB_Langue,FALSE),"***",TEXT(J40,"0.00")),"") ->  | Q11: =IF(OR(PN_EffMoy=0,Nb_Mois<>12),Sa_BaseMensuelArrondi / H42 *C40,Sa_BaseMensuelArrondi*PN_SalMoyAout) -> 
A12: 232 | B12: 2023-08-04 | H12: 0 | I12: 0 | L12: =VLOOKUP(A12,Tb_Traduction,DB_Langue,FALSE) -> Prime, bonus, gratification
A13: 233 | B13: 2023-08-05 | H13: 0 | I13: 0 | L13: =VLOOKUP(A13,Tb_Traduction,DB_Langue,FALSE) -> Salaire brut total | Q13: =SUM(Q11:Q12) -> 
B14: 2023-08-06 | H14: 0 | I14: 0
A15: 240 | B15: 2023-08-07 | H15: 0 | I15: 0 | L15: =VLOOKUP(A15,Tb_Traduction,DB_Langue,FALSE) -> Déductions | M15: =VLOOKUP(A15+1,Tb_Traduction,DB_Langue,FALSE) -> Part | N15: %
A16: 242 | B16: 2023-08-08 | H16: 0 | I16: 0 | L16: Cotisations AVS, AI, APG* : | M16: 1/2 | N16: =IF(B3>=DB_SoumisAVS,RS_AVS,0) -> 0.053 | P16: =$Q$13*N16 -> 
A17: 243 | B17: 2023-08-09 | H17: 0 | I17: 0 | L17: Cotisations AC* : | M17: 1/2 | N17: =IF(B3>=DB_SoumisAVS,RS_AC,0) -> 0.011 | P17: =$Q$13*N17 -> 
A18: 244 | B18: 2023-08-10 | H18: 0 | I18: 0 | L18: Accident non profes.: | M18: 1/1 | N18: =RS_ANP -> 0.01607 | P18: =$Q$13*N18 -> 
A19: 245 | B19: 2023-08-11 | H19: 0 | I19: 0 | L19: Indemnité journalière MC : | M19: 1/2 | N19: =RS_MC -> 0.0044 | P19: =$Q$13*N19 -> 
A20: 246 | B20: 2023-08-12 | H20: 0 | I20: 0 | L20: Autre déduction :
A21: 247 | B21: 2023-08-13 | H21: 0 | I21: 0 | L21: =VLOOKUP(A21+PN_EffMoy,Tb_Traduction,DB_Langue,FALSE) ->  | P21: =IF(PN_EffMoy=0,I40,IF(Nb_Mois=12,Sa_NatureMensuelArrondi*PN_SalMoyAout,Sa_NatureMensuelArrondi*C40/H42)) -> 
A22: 249 | B22: 2023-08-14 | H22: 0 | I22: 0 | L22: *) Dès le 1er janvier de l'année des 18 ans de l'apprenti(e)
B23: 2023-08-15 | H23: 0 | I23: 0
A24: 250 | B24: 2023-08-16 | H24: 0 | I24: 0 | L24: =VLOOKUP(A24,Tb_Traduction,DB_Langue,FALSE) -> A déduire | Q24: =INT((SUM(P16:P21)*20)+0.5)/20 -> 
B25: 2023-08-17 | H25: 0 | I25: 0
A26: 251 | B26: 2023-08-18 | H26: 0 | I26: 0 | L26: =VLOOKUP(A26,Tb_Traduction,DB_Langue,FALSE) -> Frais et remboursement
A27: 252 | B27: 2023-08-19 | H27: 0 | I27: 0 | L27: =VLOOKUP(A27,Tb_Traduction,DB_Langue,FALSE) -> Frais :
A28: 253 | B28: 2023-08-20 | H28: 0 | I28: 0 | L28: =VLOOKUP(A28,Tb_Traduction,DB_Langue,FALSE) -> Autre remboursement :
B29: 2023-08-21 | H29: 0 | I29: 0
A30: 254 | B30: 2023-08-22 | H30: 0 | I30: 0 | L30: =VLOOKUP(A30,Tb_Traduction,DB_Langue,FALSE) -> A ajouter | Q30: =SUM(P27:P28) -> 0
B31: 2023-08-23 | H31: 0 | I31: 0
A32: 255 | B32: 2023-08-24 | H32: 0 | I32: 0 | L32: =VLOOKUP(A32,Tb_Traduction,DB_Langue,FALSE) -> Versement du mois | Q32: =Q13+Q30-Q24 -> 
B33: 2023-08-25 | H33: 0 | I33: 0 | M33: =VLOOKUP(A34+1,Tb_Traduction,DB_Langue,FALSE) -> Mois courant | N33: =VLOOKUP(A34+2,Tb_Traduction,DB_Langue,FALSE) -> Cumul mois précédents | O33: =VLOOKUP(A34+3,Tb_Traduction,DB_Langue,FALSE) -> Prévus annuellement | Q33: =VLOOKUP(A34+4,Tb_Traduction,DB_Langue,FALSE) -> Solde actuel
A34: 260 | B34: 2023-08-26 | H34: 0 | I34: 0 | L34: =VLOOKUP(A34,Tb_Traduction,DB_Langue,FALSE) -> Décompte des jours
A35: 265 | B35: 2023-08-27 | H35: 0 | I35: 0 | L35: =VLOOKUP(A35,Tb_Traduction,DB_Langue,FALSE) -> Travail : | M35: =H43 -> 0 | N35: 0 | O35: =NJ_Travail ->  | Q35: =O35-N35-M35 -> 
B36: 2023-08-28 | H36: 0 | I36: 0 | L36: =VLOOKUP(A35+1,Tb_Traduction,DB_Langue,FALSE) -> Cours prof. : | M36: 0 | N36: 0 | O36: =NJ_CoursProf -> 
B37: 2023-08-29 | H37: 0 | I37: 0 | L37: =VLOOKUP(A35+2,Tb_Traduction,DB_Langue,FALSE) -> Cours IE : | M37: 0 | N37: 0 | O37: =NJ_CoursIE -> 
B38: 2023-08-30 | H38: 0 | I38: 0 | L38: =VLOOKUP(A35+7,Tb_Traduction,DB_Langue,FALSE) -> Armée : | M38: =H46 -> 0 | N38: =I46 -> 0 | O38: =NJ_Bloc -> 0 | Q38: =O38-N38-M38 -> 0
B39: 2023-08-31 | H39: 0 | I39: 0 | L39: =VLOOKUP(A35+3,Tb_Traduction,DB_Langue,FALSE) -> Congés : | M39: =H47 -> 0 | N39: 0 | O39: =NJ_Conge -> 
A40: 275 | B40: =VLOOKUP(A40,Tb_Traduction,DB_Langue,FALSE) -> Total | C40: =COUNTIF(C9:C39,"a")+COUNTIF(C9:C39,"b")+COUNTIF(C9:C39,"c")+COUNTIF(C9:C39,"d")+COUNTIF(C9:C39,"e")+COUNTIF(C9:C39,"f")+COUNTIF(C9:C39,"g")+COUNTIF(C9:C39,"h")+COUNTIF(C9:C39,"i") -> 0 | D40: =SUM(D9:D39) -> 0 | E40: 0 | F40: 0 | G40: 0 | H40: 0 | I40: 0 | J40: =INT(((Sa_NatureMensuel / H42 *C40)*20)+0.5)/20 ->  | L40: =VLOOKUP(A35+4,Tb_Traduction,DB_Langue,FALSE) -> Vacances : | M40: 0 | N40: 0 | O40: =NJ_Vacances -> 
A41: 277 | H41: =B3 -> 2023-08-01 | I41: =VLOOKUP(A41,Tb_Traduction,DB_Langue,FALSE) -> cumul | L41: =VLOOKUP(A35+5,Tb_Traduction,DB_Langue,FALSE) -> Accident : | M41: 0 | N41: 0 | O41: 0 | Q41: 0
A42: 280 | B42: =VLOOKUP(A42,Tb_Traduction,DB_Langue,FALSE) -> Décompte des jours | C42: =VLOOKUP(B42,Tb_Traduction,DB_Langue,FALSE) ->  | D42: =VLOOKUP(#REF!,Tb_Traduction,DB_Langue,FALSE) ->  | H42: 31 | I42: 0 | L42: =VLOOKUP(A35+6,Tb_Traduction,DB_Langue,FALSE) -> Maladie : | M42: 0 | N42: 0 | O42: 0 | Q42: 0
A43: 281 | B43: Jours de travail (a) : | D43: =VLOOKUP(#REF!,Tb_Traduction,DB_Langue,FALSE) ->  | H43: =COUNTIF(C9:C39,"a")+COUNTIF(C9:C39,"f")/2 -> 0 | I43: 0
A44: 282 | B44: Cours professionnels (b) : | D44: =VLOOKUP(#REF!,Tb_Traduction,DB_Langue,FALSE) ->  | H44: =COUNTIF(C9:C39,"b") -> 0 | I44: 0 | L44: =VLOOKUP(A40+1,Tb_Traduction,DB_Langue,FALSE) -> Remarques :
A45: 285 | B45: Cours interentreprises (c) : | D45: =VLOOKUP(#REF!,Tb_Traduction,DB_Langue,FALSE) ->  | H45: =COUNTIF(C9:C39,"c") -> 0 | I45: 0
A46: 291 | B46: Armée (i) : | D46: =VLOOKUP(#REF!,Tb_Traduction,DB_Langue,FALSE) ->  | H46: =COUNTIF(C9:C39,"i") -> 0 | I46: 0
A47: 286 | B47: Congé (d) : | D47: =VLOOKUP(#REF!,Tb_Traduction,DB_Langue,FALSE) ->  | H47: =COUNTIF(C9:C39,"d")+COUNTIF(C9:C39,"f")/2 -> 0 | I47: 0
A48: 288 | B48: Vacances (e) : | D48: =VLOOKUP(#REF!,Tb_Traduction,DB_Langue,FALSE) ->  | H48: =COUNTIF(C9:C39,"e") -> 0 | I48: 0 | L48: =VLOOKUP(A44+1,Tb_Traduction,DB_Langue,FALSE) -> Date : | O48: =VLOOKUP(A44+2,Tb_Traduction,DB_Langue,FALSE) -> Maître d'apprentissage :
A49: 289 | B49: Accident (g) : | D49: =VLOOKUP(#REF!,Tb_Traduction,DB_Langue,FALSE) ->  | H49: =COUNTIF(C9:C39,"g") -> 0 | I49: 0
A50: 290 | B50: Maladie (h) : | D50: =VLOOKUP(#REF!,Tb_Traduction,DB_Langue,FALSE) ->  | H50: =COUNTIF(C9:C39,"h") -> 0 | I50: 0 | O50: =VLOOKUP(A47+1,Tb_Traduction,DB_Langue,FALSE) -> Apprenti(e) :

Sheet 09
B1: ='08'!B1 -> Agenda | L1: ='08'!L1 -> Décompte salaire mensuel
B2: ='08'!B2 -> Apprenti(e) | C2: ="- " & TRIM(DB_Apprenti) & " -" -> - -
B3: =DATE(DB_Annee,9,1) -> 2023-09-01 | C3: ='08'!C3 -> [ a-b-c-d-e-f-g-h-i ] | D3: ='08'!D3 -> Logis | E3: ='08'!E3 -> Déjeuner | F3: ='08'!F3 -> Dîner | G3: ='08'!G3 -> Souper | H3: ='08'!H3 -> Montant des Prestations en nature | I3: ='08'!I3 -> Montant modifié | J3: ='08'!J3 -> Commentaires a = Jour de travail b = Jour de cours professionel c = Jour de cours interentreprises d = Jour de congé e = Jour de vacances f = 1/2 jour de travail, 1/2 jour de congé g = Accident (jour entier) h = Maladie (jour entier) i = Armée | L3: ='08'!L3 -> Mois : | M3: =B3 -> 2023-09-01 | O3: ='08'!O3 -> Année : | P3: ='08'!P3 -> 0 | Q3: =B3 -> 2023-09-01
C4: ='08'!C4 -> 0 | D4: ='08'!D4 -> 0 | E4: ='08'!E4 -> 0 | F4: ='08'!F4 -> 0 | G4: ='08'!G4 -> 0 | H4: ='08'!H4 -> 0 | I4: ='08'!I4 -> 0 | J4: ='08'!J4 -> 0
C5: ='08'!C5 -> 0 | D5: ='08'!D5 -> 0 | E5: ='08'!E5 -> 0 | F5: ='08'!F5 -> 0 | G5: ='08'!G5 -> 0 | H5: ='08'!H5 -> 0 | I5: ='08'!I5 -> 0 | J5: ='08'!J5 -> 0 | L5: ='08'!L5 -> Maître d'apprentissage : | M5: =TRIM(DB_Maitre) -> 
C6: ='08'!C6 -> 0 | D6: ='08'!D6 -> 0 | E6: ='08'!E6 -> 0 | F6: ='08'!F6 -> 0 | G6: ='08'!G6 -> 0 | H6: ='08'!H6 -> 0 | I6: ='08'!I6 -> 0 | J6: ='08'!J6 -> 0 | L6: ='08'!L6 -> Lieu : | M6: =TRIM(DB_MaitreLieu) -> 
C7: ='08'!C7 -> 0 | D7: ='08'!D7 -> 0 | E7: ='08'!E7 -> 0 | F7: ='08'!F7 -> 0 | G7: ='08'!G7 -> 0 | H7: ='08'!H7 -> 0 | I7: ='08'!I7 -> 0 | J7: ='08'!J7 -> 0 | L7: ='08'!L7 -> Apprenti : | M7: =TRIM(DB_Apprenti) -> 
C8: ='08'!C8 -> 0 | D8: ='08'!D8 -> 0 | E8: ='08'!E8 -> 0 | F8: ='08'!F8 -> 0 | G8: ='08'!G8 -> 0 | H8: ='08'!H8 -> 0 | I8: ='08'!I8 -> 0 | J8: ='08'!J8 -> 0 | L8: ='08'!L8 -> N° AVS : | M8: =TRIM(DB_AVS) ->  | P8: ='08'!P8 -> Date de naissance : | Q8: =IF(DB_DateNaissance=0,"",DB_DateNaissance) -> 
B9: =B3 -> 2023-09-01 | H9: =MAX(IF(C9="a",PN_Travail,IF(C9="b",PN_CoursProf,IF(C9="c",PN_CoursIE,IF(C9="d",PN_Conge,0)))),IF(C9="e",PN_Vacances,IF(C9="f",PN_DemiJour,IF(C9="g",PN_Accident,IF(C9="h",PN_Maladie,IF(C9="i",PN_Armee,0)))))) -> 0 | I9: =H9+D9*PN_Logis+E9*PN_Dejeuner+F9*PN_Diner+G9*PN_Souper -> 0
B10: =B9+1 -> 2023-09-02 | H10: 0 | I10: =H10+D10*PN_Logis+E10*PN_Dejeuner+F10*PN_Diner+G10*PN_Souper -> 0
A11: 230 | B11: =B10+1 -> 2023-09-03 | H11: 0 | I11: 0 | L11: ='08'!L11 -> Salaire brut | M11: =IF(PN_EffMoy=0,SUBSTITUTE(VLOOKUP(A11+1,Tb_Traduction,DB_Langue,FALSE),"***",TEXT(J40,"0.00")),"") ->  | Q11: =IF(OR(PN_EffMoy=0,Nb_Mois<>12),Sa_BaseMensuelArrondi / H42 *C40,Sa_BaseMensuelArrondi) -> 
B12: 2023-09-04 | H12: 0 | I12: 0 | L12: ='08'!L12 -> Prime, bonus, gratification
B13: 2023-09-05 | H13: 0 | I13: 0 | L13: ='08'!L13 -> Salaire brut total | Q13: =SUM(Q11:Q12) -> 
B14: 2023-09-06 | H14: 0 | I14: 0
B15: 2023-09-07 | H15: 0 | I15: 0 | L15: ='08'!L15 -> Déductions | M15: ='08'!M15 -> Part | N15: %
B16: 2023-09-08 | H16: 0 | I16: 0 | L16: ='08'!L16 -> Cotisations AVS, AI, APG* : | M16: 1/2 | N16: =IF(B3>=DB_SoumisAVS,RS_AVS,0) -> 0.053 | P16: =$Q$13*N16 -> 
B17: 2023-09-09 | H17: 0 | I17: 0 | L17: ='08'!L17 -> Cotisations AC* : | M17: 1/2 | N17: =IF(B3>=DB_SoumisAVS,RS_AC,0) -> 0.011 | P17: =$Q$13*N17 -> 
B18: 2023-09-10 | H18: 0 | I18: 0 | L18: ='08'!L18 -> Accident non profes.: | M18: 1/1 | N18: =RS_ANP -> 0.01607 | P18: =$Q$13*N18 -> 
B19: 2023-09-11 | H19: 0 | I19: 0 | L19: ='08'!L19 -> Indemnité journalière MC : | M19: 1/2 | N19: =RS_MC -> 0.0044 | P19: =$Q$13*N19 -> 
B20: 2023-09-12 | H20: 0 | I20: 0 | L20: ='08'!L20 -> Autre déduction :
B21: 2023-09-13 | H21: 0 | I21: 0 | L21: ='08'!L21 ->  | P21: =IF(PN_EffMoy=0,I40,IF(Nb_Mois=12,Sa_NatureMensuelArrondi,Sa_NatureMensuelArrondi*C40/H42)) -> 
B22: 2023-09-14 | H22: 0 | I22: 0 | L22: ='08'!L22 -> *) Dès le 1er janvier de l'année des 18 ans de l'apprenti(e)
B23: 2023-09-15 | H23: 0 | I23: 0
B24: 2023-09-16 | H24: 0 | I24: 0 | L24: ='08'!L24 -> A déduire | Q24: =INT((SUM(P16:P21)*20)+0.5)/20 -> 
B25: 2023-09-17 | H25: 0 | I25: 0
B26: 2023-09-18 | H26: 0 | I26: 0 | L26: ='08'!L26 -> Frais et remboursement
B27: 2023-09-19 | H27: 0 | I27: 0 | L27: ='08'!L27 -> Frais :
B28: 2023-09-20 | H28: 0 | I28: 0 | L28: ='08'!L28 -> Autre remboursement :
B29: 2023-09-21 | H29: 0 | I29: 0
B30: 2023-09-22 | H30: 0 | I30: 0 | L30: ='08'!L30 -> A ajouter | Q30: =SUM(P27:P28) -> 0
B31: 2023-09-23 | H31: 0 | I31: 0
B32: 2023-09-24 | H32: 0 | I32: 0 | L32: ='08'!L32 -> Versement du mois | Q32: =Q13+Q30-Q24 -> 
B33: 2023-09-25 | H33: 0 | I33: 0 | M33: ='08'!M33 -> Mois courant | N33: ='08'!N33 -> Cumul mois précédents | O33: ='08'!O33 -> Prévus annuellement | Q33: ='08'!Q33 -> Solde actuel
B34: 2023-09-26 | H34: 0 | I34: 0 | L34: ='08'!L34 -> Décompte des jours | M34: ='08'!M34 -> 0 | N34: ='08'!N34 -> 0 | O34: ='08'!O34 -> 0 | Q34: ='08'!Q34 -> 0
B35: 2023-09-27 | H35: 0 | I35: 0 | L35: ='08'!L35 -> Travail : | M35: =H43 -> 0 | N35: 0 | O35: =NJ_Travail ->  | Q35: =O35-N35-M35 -> 
B36: 2023-09-28 | H36: 0 | I36: 0 | L36: ='08'!L36 -> Cours prof. : | M36: 0 | N36: 0 | O36: =NJ_CoursProf -> 
B37: 2023-09-29 | H37: 0 | I37: 0 | L37: ='08'!L37 -> Cours IE : | M37: 0 | N37: 0 | O37: =NJ_CoursIE -> 
B38: 2023-09-30 | H38: 0 | I38: 0 | L38: ='08'!L38 -> Armée : | M38: 0 | N38: 0 | O38: =NJ_Bloc -> 0 | Q38: 0
H39: 0 | I39: 0 | L39: ='08'!L39 -> Congés : | M39: =H47 -> 0 | N39: 0 | O39: =NJ_Conge -> 
B40: ='08'!B40 -> Total | C40: =COUNTIF(C9:C39,"a")+COUNTIF(C9:C39,"b")+COUNTIF(C9:C39,"c")+COUNTIF(C9:C39,"d")+COUNTIF(C9:C39,"e")+COUNTIF(C9:C39,"f")+COUNTIF(C9:C39,"g")+COUNTIF(C9:C39,"h")+COUNTIF(C9:C39,"i") -> 0 | D40: =SUM(D9:D39) -> 0 | E40: 0 | F40: 0 | G40: 0 | H40: 0 | I40: 0 | J40: =INT(((Sa_NatureMensuel / H42 *C40)*20)+0.5)/20 ->  | L40: ='08'!L40 -> Vacances : | M40: 0 | N40: 0 | O40: =NJ_Vacances -> 
H41: =B3 -> 2023-09-01 | I41: ='08'!I41 -> cumul | L41: ='08'!L41 -> Accident : | M41: 0 | N41: 0 | O41: 0 | Q41: 0
B42: ='08'!B42 -> Décompte des jours | C42: ='08'!C42 ->  | D42: ='08'!D42 ->  | E42: ='08'!E42 ->  | F42: ='08'!F42 ->  | G42: ='08'!G42 ->  | H42: 30 | I42: =SUM('08'!H42:I42) -> 31 | L42: ='08'!L42 -> Maladie : | M42: 0 | N42: 0 | O42: 0 | Q42: 0
B43: ='08'!B43 -> Jours de travail (a) : | C43: ='08'!C43 ->  | D43: ='08'!D43 ->  | E43: ='08'!E43 ->  | F43: ='08'!F43 ->  | G43: ='08'!G43 ->  | H43: =COUNTIF(C9:C39,"a")+COUNTIF(C9:C39,"f")/2 -> 0 | I43: =SUM('08'!H43:I43) -> 0
B44: ='08'!B44 -> Cours professionnels (b) : | C44: ='08'!C44 ->  | D44: ='08'!D44 ->  | E44: ='08'!E44 ->  | F44: ='08'!F44 ->  | G44: ='08'!G44 ->  | H44: =COUNTIF(C9:C39,"b") -> 0 | I44: =SUM('08'!H44:I44) -> 0 | L44: ='08'!L44 -> Remarques :
B45: ='08'!B45 -> Cours interentreprises (c) : | C45: ='08'!C45 ->  | D45: ='08'!D45 ->  | E45: ='08'!E45 ->  | F45: ='08'!F45 ->  | G45: ='08'!G45 ->  | H45: =COUNTIF(C9:C39,"c") -> 0 | I45: =SUM('08'!H45:I45) -> 0
B46: ='08'!B46 -> Armée (i) : | C46: ='08'!C46 ->  | D46: ='08'!D46 ->  | E46: ='08'!E46 ->  | F46: ='08'!F46 ->  | G46: ='08'!G46 ->  | H46: =COUNTIF(C9:C39,"i") -> 0 | I46: =SUM('08'!H46:I46) -> 0
B47: ='08'!B47 -> Congé (d) : | C47: ='08'!C47 ->  | D47: ='08'!D47 ->  | E47: ='08'!E47 ->  | F47: ='08'!F47 ->  | G47: ='08'!G47 ->  | H47: =COUNTIF(C9:C39,"d")+COUNTIF(C9:C39,"f")/2 -> 0 | I47: =SUM('08'!H47:I47) -> 0
A48: 289 | B48: ='08'!B48 -> Vacances (e) : | C48: ='08'!C48 ->  | D48: ='08'!D48 ->  | E48: ='08'!E48 ->  | F48: ='08'!F48 ->  | G48: ='08'!G48 ->  | H48: =COUNTIF(C9:C39,"e") -> 0 | I48: =SUM('08'!H48:I48) -> 0 | L48: ='08'!L48 -> Date : | O48: ='08'!O48 -> Maître d'apprentissage :
A49: 290 | B49: ='08'!B49 -> Accident (g) : | C49: ='08'!C49 ->  | D49: ='08'!D49 ->  | E49: ='08'!E49 ->  | F49: ='08'!F49 ->  | G49: ='08'!G49 ->  | H49: =COUNTIF(C9:C39,"g") -> 0 | I49: =SUM('08'!H49:I49) -> 0
A50: 291 | B50: ='08'!B50 -> Maladie (h) : | C50: ='08'!C50 ->  | D50: ='08'!D50 ->  | E50: ='08'!E50 ->  | F50: ='08'!F50 ->  | G50: ='08'!G50 ->  | H50: =COUNTIF(C9:C39,"h") -> 0 | I50: =SUM('08'!H50:I50) -> 0 | O50: ='08'!O50 -> Apprenti(e) :

Sheet 10
B1: ='08'!B1 -> Agenda | L1: ='08'!L1 -> Décompte salaire mensuel
B2: ='08'!B2 -> Apprenti(e) | C2: ="- " & TRIM(DB_Apprenti) & " -" -> - -
B3: =DATE(DB_Annee,10,1) -> 2023-10-01 | C3: ='08'!C3 -> [ a-b-c-d-e-f-g-h-i ] | D3: ='08'!D3 -> Logis | E3: ='08'!E3 -> Déjeuner | F3: ='08'!F3 -> Dîner | G3: ='08'!G3 -> Souper | H3: ='08'!H3 -> Montant des Prestations en nature | I3: ='08'!I3 -> Montant modifié | J3: ='08'!J3 -> Commentaires a = Jour de travail b = Jour de cours professionel c = Jour de cours interentreprises d = Jour de congé e = Jour de vacances f = 1/2 jour de travail, 1/2 jour de congé g = Accident (jour entier) h = Maladie (jour entier) i = Armée | L3: ='08'!L3 -> Mois : | M3: =B3 -> 2023-10-01 | O3: ='08'!O3 -> Année : | P3: ='08'!P3 -> 0 | Q3: =B3 -> 2023-10-01
C4: ='08'!C4 -> 0 | D4: ='08'!D4 -> 0 | E4: ='08'!E4 -> 0 | F4: ='08'!F4 -> 0 | G4: ='08'!G4 -> 0 | H4: ='08'!H4 -> 0 | I4: ='08'!I4 -> 0 | J4: ='08'!J4 -> 0
C5: ='08'!C5 -> 0 | D5: ='08'!D5 -> 0 | E5: ='08'!E5 -> 0 | F5: ='08'!F5 -> 0 | G5: ='08'!G5 -> 0 | H5: ='08'!H5 -> 0 | I5: ='08'!I5 -> 0 | J5: ='08'!J5 -> 0 | L5: ='08'!L5 -> Maître d'apprentissage : | M5: =TRIM(DB_Maitre) -> 
C6: ='08'!C6 -> 0 | D6: ='08'!D6 -> 0 | E6: ='08'!E6 -> 0 | F6: ='08'!F6 -> 0 | G6: ='08'!G6 -> 0 | H6: ='08'!H6 -> 0 | I6: ='08'!I6 -> 0 | J6: ='08'!J6 -> 0 | L6: ='08'!L6 -> Lieu : | M6: =TRIM(DB_MaitreLieu) -> 
C7: ='08'!C7 -> 0 | D7: ='08'!D7 -> 0 | E7: ='08'!E7 -> 0 | F7: ='08'!F7 -> 0 | G7: ='08'!G7 -> 0 | H7: ='08'!H7 -> 0 | I7: ='08'!I7 -> 0 | J7: ='08'!J7 -> 0 | L7: ='08'!L7 -> Apprenti : | M7: =TRIM(DB_Apprenti) -> 
C8: ='08'!C8 -> 0 | D8: ='08'!D8 -> 0 | E8: ='08'!E8 -> 0 | F8: ='08'!F8 -> 0 | G8: ='08'!G8 -> 0 | H8: ='08'!H8 -> 0 | I8: ='08'!I8 -> 0 | J8: ='08'!J8 -> 0 | L8: ='08'!L8 -> N° AVS : | M8: =TRIM(DB_AVS) ->  | P8: ='08'!P8 -> Date de naissance : | Q8: =IF(DB_DateNaissance=0,"",DB_DateNaissance) -> 
B9: =B3 -> 2023-10-01 | H9: =MAX(IF(C9="a",PN_Travail,IF(C9="b",PN_CoursProf,IF(C9="c",PN_CoursIE,IF(C9="d",PN_Conge,0)))),IF(C9="e",PN_Vacances,IF(C9="f",PN_DemiJour,IF(C9="g",PN_Accident,IF(C9="h",PN_Maladie,IF(C9="i",PN_Armee,0)))))) -> 0 | I9: =H9+D9*PN_Logis+E9*PN_Dejeuner+F9*PN_Diner+G9*PN_Souper -> 0
B10: =B9+1 -> 2023-10-02 | H10: =IF(C10="a",PN_Travail,IF(C10="b",PN_CoursProf,IF(C10="c",PN_CoursIE,IF(C10="d",PN_Conge,IF(C10="e",PN_Vacances,IF(C10="f",PN_DemiJour,IF(C10="g",PN_Accident,IF(C10="h",PN_Maladie,0)))))))) -> 0 | I10: =H10+D10*PN_Logis+E10*PN_Dejeuner+F10*PN_Diner+G10*PN_Souper -> 0
A11: 230 | B11: =B10+1 -> 2023-10-03 | H11: 0 | I11: 0 | L11: ='08'!L11 -> Salaire brut | M11: =IF(PN_EffMoy=0,SUBSTITUTE(VLOOKUP(A11+1,Tb_Traduction,DB_Langue,FALSE),"***",TEXT(J40,"0.00")),"") ->  | Q11: =IF(OR(PN_EffMoy=0,Nb_Mois<>12),Sa_BaseMensuelArrondi / H42 *C40,Sa_BaseMensuelArrondi) -> 
B12: 2023-10-04 | H12: 0 | I12: 0 | L12: ='08'!L12 -> Prime, bonus, gratification
B13: 2023-10-05 | H13: 0 | I13: 0 | L13: ='08'!L13 -> Salaire brut total | Q13: =SUM(Q11:Q12) -> 
B14: 2023-10-06 | H14: 0 | I14: 0
B15: 2023-10-07 | H15: 0 | I15: 0 | L15: ='08'!L15 -> Déductions | M15: ='08'!M15 -> Part | N15: %
B16: 2023-10-08 | H16: 0 | I16: 0 | L16: ='08'!L16 -> Cotisations AVS, AI, APG* : | M16: 1/2 | N16: =IF(B3>=DB_SoumisAVS,RS_AVS,0) -> 0.053 | P16: =$Q$13*N16 -> 
B17: 2023-10-09 | H17: 0 | I17: 0 | L17: ='08'!L17 -> Cotisations AC* : | M17: 1/2 | N17: =IF(B3>=DB_SoumisAVS,RS_AC,0) -> 0.011 | P17: =$Q$13*N17 -> 
B18: 2023-10-10 | H18: 0 | I18: 0 | L18: ='08'!L18 -> Accident non profes.: | M18: 1/1 | N18: =RS_ANP -> 0.01607 | P18: =$Q$13*N18 -> 
B19: 2023-10-11 | H19: 0 | I19: 0 | L19: ='08'!L19 -> Indemnité journalière MC : | M19: 1/2 | N19: =RS_MC -> 0.0044 | P19: =$Q$13*N19 -> 
B20: 2023-10-12 | H20: 0 | I20: 0 | L20: ='08'!L20 -> Autre déduction :
B21: 2023-10-13 | H21: 0 | I21: 0 | L21: ='08'!L21 ->  | P21: =IF(PN_EffMoy=0,I40,IF(Nb_Mois=12,Sa_NatureMensuelArrondi,Sa_NatureMensuelArrondi*C40/H42)) -> 
B22: 2023-10-14 | H22: 0 | I22: 0 | L22: ='08'!L22 -> *) Dès le 1er janvier de l'année des 18 ans de l'apprenti(e)
B23: 2023-10-15 | H23: 0 | I23: 0
B24: 2023-10-16 | H24: 0 | I24: 0 | L24: ='08'!L24 -> A déduire | Q24: =INT((SUM(P16:P21)*20)+0.5)/20 -> 
B25: 2023-10-17 | H25: 0 | I25: 0
B26: 2023-10-18 | H26: 0 | I26: 0 | L26: ='08'!L26 -> Frais et remboursement
B27: 2023-10-19 | H27: 0 | I27: 0 | L27: ='08'!L27 -> Frais :
B28: 2023-10-20 | H28: 0 | I28: 0 | L28: ='08'!L28 -> Autre remboursement :
B29: 2023-10-21 | H29: 0 | I29: 0
B30: 2023-10-22 | H30: 0 | I30: 0 | L30: ='08'!L30 -> A ajouter | Q30: =SUM(P27:P28) -> 0
B31: 2023-10-23 | H31: 0 | I31: 0
B32: 2023-10-24 | H32: 0 | I32: 0 | L32: ='08'!L32 -> Versement du mois | Q32: =Q13+Q30-Q24 -> 
B33: 2023-10-25 | H33: 0 | I33: 0 | M33: ='08'!M33 -> Mois courant | N33: ='08'!N33 -> Cumul mois précédents | O33: ='08'!O33 -> Prévus annuellement | Q33: ='08'!Q33 -> Solde actuel
B34: 2023-10-26 | H34: 0 | I34: 0 | L34: ='08'!L34 -> Décompte des jours | M34: ='08'!M34 -> 0 | N34: ='08'!N34 -> 0 | O34: ='08'!O34 -> 0 | Q34: ='08'!Q34 -> 0
B35: 2023-10-27 | H35: 0 | I35: 0 | L35: ='08'!L35 -> Travail : | M35: =H43 -> 0 | N35: 0 | O35: =NJ_Travail ->  | Q35: =O35-N35-M35 -> 
B36: 2023-10-28 | H36: 0 | I36: 0 | L36: ='08'!L36 -> Cours prof. : | M36: 0 | N36: 0 | O36: =NJ_CoursProf -> 
B37: 2023-10-29 | H37: 0 | I37: 0 | L37: ='08'!L37 -> Cours IE : | M37: 0 | N37: 0 | O37: =NJ_CoursIE -> 
B38: 2023-10-30 | H38: 0 | I38: 0 | L38: ='08'!L38 -> Armée : | M38: 0 | N38: 0 | O38: =NJ_Bloc -> 0 | Q38: 0
B39: =B38+1 -> 2023-10-31 | H39: 0 | I39: 0 | L39: ='08'!L39 -> Congés : | M39: =H47 -> 0 | N39: 0 | O39: =NJ_Conge -> 
B40: ='08'!B40 -> Total | C40: =COUNTIF(C9:C39,"a")+COUNTIF(C9:C39,"b")+COUNTIF(C9:C39,"c")+COUNTIF(C9:C39,"d")+COUNTIF(C9:C39,"e")+COUNTIF(C9:C39,"f")+COUNTIF(C9:C39,"g")+COUNTIF(C9:C39,"h")+COUNTIF(C9:C39,"i") -> 0 | D40: =SUM(D9:D39) -> 0 | E40: 0 | F40: 0 | G40: 0 | H40: 0 | I40: 0 | J40: =INT(((Sa_NatureMensuel / H42 *C40)*20)+0.5)/20 ->  | L40: ='08'!L40 -> Vacances : | M40: 0 | N40: 0 | O40: =NJ_Vacances -> 
H41: =B3 -> 2023-10-01 | I41: ='08'!I41 -> cumul | L41: ='08'!L41 -> Accident : | M41: 0 | N41: 0 | O41: 0 | Q41: 0
B42: ='08'!B42 -> Décompte des jours | C42: ='08'!C42 ->  | D42: ='08'!D42 ->  | E42: ='08'!E42 ->  | F42: ='08'!F42 ->  | G42: ='08'!G42 ->  | H42: 31 | I42: =SUM('09'!H42:I42) -> 61 | L42: ='08'!L42 -> Maladie : | M42: 0 | N42: 0 | O42: 0 | Q42: 0
B43: ='08'!B43 -> Jours de travail (a) : | C43: ='08'!C43 ->  | D43: ='08'!D43 ->  | E43: ='08'!E43 ->  | F43: ='08'!F43 ->  | G43: ='08'!G43 ->  | H43: =COUNTIF(C9:C39,"a")+COUNTIF(C9:C39,"f")/2 -> 0 | I43: =SUM('09'!H43:I43) -> 0
B44: ='08'!B44 -> Cours professionnels (b) : | C44: ='08'!C44 ->  | D44: ='08'!D44 ->  | E44: ='08'!E44 ->  | F44: ='08'!F44 ->  | G44: ='08'!G44 ->  | H44: =COUNTIF(C9:C39,"b") -> 0 | I44: =SUM('09'!H44:I44) -> 0 | L44: ='08'!L44 -> Remarques :
B45: ='08'!B45 -> Cours interentreprises (c) : | C45: ='08'!C45 ->  | D45: ='08'!D45 ->  | E45: ='08'!E45 ->  | F45: ='08'!F45 ->  | G45: ='08'!G45 ->  | H45: =COUNTIF(C9:C39,"c") -> 0 | I45: =SUM('09'!H45:I45) -> 0
B46: ='08'!B46 -> Armée (i) : | C46: ='08'!C46 ->  | D46: ='08'!D46 ->  | E46: ='08'!E46 ->  | F46: ='08'!F46 ->  | G46: ='08'!G46 ->  | H46: =COUNTIF(C9:C39,"i") -> 0 | I46: =SUM('09'!H46:I46) -> 0
B47: ='08'!B47 -> Congé (d) : | C47: ='08'!C47 ->  | D47: ='08'!D47 ->  | E47: ='08'!E47 ->  | F47: ='08'!F47 ->  | G47: ='08'!G47 ->  | H47: =COUNTIF(C9:C39,"d")+COUNTIF(C9:C39,"f")/2 -> 0 | I47: =SUM('09'!H47:I47) -> 0
A48: 289 | B48: ='08'!B48 -> Vacances (e) : | C48: ='08'!C48 ->  | D48: ='08'!D48 ->  | E48: ='08'!E48 ->  | F48: ='08'!F48 ->  | G48: ='08'!G48 ->  | H48: =COUNTIF(C9:C39,"e") -> 0 | I48: =SUM('09'!H48:I48) -> 0 | L48: ='08'!L48 -> Date : | O48: ='08'!O48 -> Maître d'apprentissage :
A49: 290 | B49: ='08'!B49 -> Accident (g) : | C49: ='08'!C49 ->  | D49: ='08'!D49 ->  | E49: ='08'!E49 ->  | F49: ='08'!F49 ->  | G49: ='08'!G49 ->  | H49: =COUNTIF(C9:C39,"g") -> 0 | I49: =SUM('09'!H49:I49) -> 0
A50: 291 | B50: ='08'!B50 -> Maladie (h) : | C50: ='08'!C50 ->  | D50: ='08'!D50 ->  | E50: ='08'!E50 ->  | F50: ='08'!F50 ->  | G50: ='08'!G50 ->  | H50: =COUNTIF(C9:C39,"h") -> 0 | I50: =SUM('09'!H50:I50) -> 0 | O50: ='08'!O50 -> Apprenti(e) :

Sheet 11
B1: ='08'!B1 -> Agenda | L1: ='08'!L1 -> Décompte salaire mensuel
B2: ='08'!B2 -> Apprenti(e) | C2: ="- " & TRIM(DB_Apprenti) & " -" -> - -
B3: =DATE(DB_Annee,11,1) -> 2023-11-01 | C3: ='08'!C3 -> [ a-b-c-d-e-f-g-h-i ] | D3: ='08'!D3 -> Logis | E3: ='08'!E3 -> Déjeuner | F3: ='08'!F3 -> Dîner | G3: ='08'!G3 -> Souper | H3: ='08'!H3 -> Montant des Prestations en nature | I3: ='08'!I3 -> Montant modifié | J3: ='08'!J3 -> Commentaires a = Jour de travail b = Jour de cours professionel c = Jour de cours interentreprises d = Jour de congé e = Jour de vacances f = 1/2 jour de travail, 1/2 jour de congé g = Accident (jour entier) h = Maladie (jour entier) i = Armée | L3: ='08'!L3 -> Mois : | M3: =B3 -> 2023-11-01 | O3: ='08'!O3 -> Année : | P3: ='08'!P3 -> 0 | Q3: =B3 -> 2023-11-01
C4: ='08'!C4 -> 0 | D4: ='08'!D4 -> 0 | E4: ='08'!E4 -> 0 | F4: ='08'!F4 -> 0 | G4: ='08'!G4 -> 0 | H4: ='08'!H4 -> 0 | I4: ='08'!I4 -> 0 | J4: ='08'!J4 -> 0
C5: ='08'!C5 -> 0 | D5: ='08'!D5 -> 0 | E5: ='08'!E5 -> 0 | F5: ='08'!F5 -> 0 | G5: ='08'!G5 -> 0 | H5: ='08'!H5 -> 0 | I5: ='08'!I5 -> 0 | J5: ='08'!J5 -> 0 | L5: ='08'!L5 -> Maître d'apprentissage : | M5: =TRIM(DB_Maitre) -> 
C6: ='08'!C6 -> 0 | D6: ='08'!D6 -> 0 | E6: ='08'!E6 -> 0 | F6: ='08'!F6 -> 0 | G6: ='08'!G6 -> 0 | H6: ='08'!H6 -> 0 | I6: ='08'!I6 -> 0 | J6: ='08'!J6 -> 0 | L6: ='08'!L6 -> Lieu : | M6: =TRIM(DB_MaitreLieu) -> 
C7: ='08'!C7 -> 0 | D7: ='08'!D7 -> 0 | E7: ='08'!E7 -> 0 | F7: ='08'!F7 -> 0 | G7: ='08'!G7 -> 0 | H7: ='08'!H7 -> 0 | I7: ='08'!I7 -> 0 | J7: ='08'!J7 -> 0 | L7: ='08'!L7 -> Apprenti : | M7: =TRIM(DB_Apprenti) -> 
C8: ='08'!C8 -> 0 | D8: ='08'!D8 -> 0 | E8: ='08'!E8 -> 0 | F8: ='08'!F8 -> 0 | G8: ='08'!G8 -> 0 | H8: ='08'!H8 -> 0 | I8: ='08'!I8 -> 0 | J8: ='08'!J8 -> 0 | L8: ='08'!L8 -> N° AVS : | M8: =TRIM(DB_AVS) ->  | P8: ='08'!P8 -> Date de naissance : | Q8: =IF(DB_DateNaissance=0,"",DB_DateNaissance) -> 
B9: =B3 -> 2023-11-01 | H9: =MAX(IF(C9="a",PN_Travail,IF(C9="b",PN_CoursProf,IF(C9="c",PN_CoursIE,IF(C9="d",PN_Conge,0)))),IF(C9="e",PN_Vacances,IF(C9="f",PN_DemiJour,IF(C9="g",PN_Accident,IF(C9="h",PN_Maladie,IF(C9="i",PN_Armee,0)))))) -> 0 | I9: =H9+D9*PN_Logis+E9*PN_Dejeuner+F9*PN_Diner+G9*PN_Souper -> 0
B10: =B9+1 -> 2023-11-02 | H10: 0 | I10: =H10+D10*PN_Logis+E10*PN_Dejeuner+F10*PN_Diner+G10*PN_Souper -> 0
A11: 230 | B11: =B10+1 -> 2023-11-03 | H11: 0 | I11: 0 | L11: ='08'!L11 -> Salaire brut | M11: =IF(PN_EffMoy=0,SUBSTITUTE(VLOOKUP(A11+1,Tb_Traduction,DB_Langue,FALSE),"***",TEXT(J40,"0.00")),"") ->  | Q11: =IF(OR(PN_EffMoy=0,Nb_Mois<>12),Sa_BaseMensuelArrondi / H42 *C40,Sa_BaseMensuelArrondi) -> 
B12: 2023-11-04 | H12: 0 | I12: 0 | L12: ='08'!L12 -> Prime, bonus, gratification
B13: 2023-11-05 | H13: 0 | I13: 0 | L13: ='08'!L13 -> Salaire brut total | Q13: =SUM(Q11:Q12) -> 
B14: 2023-11-06 | H14: 0 | I14: 0
B15: 2023-11-07 | H15: 0 | I15: 0 | L15: ='08'!L15 -> Déductions | M15: ='08'!M15 -> Part | N15: %
B16: 2023-11-08 | H16: 0 | I16: 0 | L16: ='08'!L16 -> Cotisations AVS, AI, APG* : | M16: 1/2 | N16: =IF(B3>=DB_SoumisAVS,RS_AVS,0) -> 0.053 | P16: =$Q$13*N16 -> 
B17: 2023-11-09 | H17: 0 | I17: 0 | L17: ='08'!L17 -> Cotisations AC* : | M17: 1/2 | N17: =IF(B3>=DB_SoumisAVS,RS_AC,0) -> 0.011 | P17: =$Q$13*N17 -> 
B18: 2023-11-10 | H18: 0 | I18: 0 | L18: ='08'!L18 -> Accident non profes.: | M18: 1/1 | N18: =RS_ANP -> 0.01607 | P18: =$Q$13*N18 -> 
B19: 2023-11-11 | H19: 0 | I19: 0 | L19: ='08'!L19 -> Indemnité journalière MC : | M19: 1/2 | N19: =RS_MC -> 0.0044 | P19: =$Q$13*N19 -> 
B20: 2023-11-12 | H20: 0 | I20: 0 | L20: ='08'!L20 -> Autre déduction :
B21: 2023-11-13 | H21: 0 | I21: 0 | L21: ='08'!L21 ->  | P21: =IF(PN_EffMoy=0,I40,IF(Nb_Mois=12,Sa_NatureMensuelArrondi,Sa_NatureMensuelArrondi*C40/H42)) -> 
B22: 2023-11-14 | H22: 0 | I22: 0 | L22: ='08'!L22 -> *) Dès le 1er janvier de l'année des 18 ans de l'apprenti(e)
B23: 2023-11-15 | H23: 0 | I23: 0
B24: 2023-11-16 | H24: 0 | I24: 0 | L24: ='08'!L24 -> A déduire | Q24: =INT((SUM(P16:P21)*20)+0.5)/20 -> 
B25: 2023-11-17 | H25: 0 | I25: 0
B26: 2023-11-18 | H26: 0 | I26: 0 | L26: ='08'!L26 -> Frais et remboursement
B27: 2023-11-19 | H27: 0 | I27: 0 | L27: ='08'!L27 -> Frais :
B28: 2023-11-20 | H28: 0 | I28: 0 | L28: ='08'!L28 -> Autre remboursement :
B29: 2023-11-21 | H29: 0 | I29: 0
B30: 2023-11-22 | H30: 0 | I30: 0 | L30: ='08'!L30 -> A ajouter | Q30: =SUM(P27:P28) -> 0
B31: 2023-11-23 | H31: 0 | I31: 0
B32: 2023-11-24 | H32: 0 | I32: 0 | L32: ='08'!L32 -> Versement du mois | Q32: =Q13+Q30-Q24 -> 
B33: 2023-11-25 | H33: 0 | I33: 0 | M33: ='08'!M33 -> Mois courant | N33: ='08'!N33 -> Cumul mois précédents | O33: ='08'!O33 -> Prévus annuellement | Q33: ='08'!Q33 -> Solde actuel
B34: 2023-11-26 | H34: 0 | I34: 0 | L34: ='08'!L34 -> Décompte des jours | M34: ='08'!M34 -> 0 | N34: ='08'!N34 -> 0 | O34: ='08'!O34 -> 0 | Q34: ='08'!Q34 -> 0
B35: 2023-11-27 | H35: 0 | I35: 0 | L35: ='08'!L35 -> Travail : | M35: =H43 -> 0 | N35: 0 | O35: =NJ_Travail ->  | Q35: =O35-N35-M35 -> 
B36: 2023-11-28 | H36: 0 | I36: 0 | L36: ='08'!L36 -> Cours prof. : | M36: 0 | N36: 0 | O36: =NJ_CoursProf -> 
B37: 2023-11-29 | H37: 0 | I37: 0 | L37: ='08'!L37 -> Cours IE : | M37: 0 | N37: 0 | O37: =NJ_CoursIE -> 
B38: 2023-11-30 | H38: 0 | I38: 0 | L38: ='08'!L38 -> Armée : | M38: 0 | N38: 0 | O38: =NJ_Bloc -> 0 | Q38: 0
H39: 0 | I39: 0 | L39: ='08'!L39 -> Congés : | M39: =H47 -> 0 | N39: 0 | O39: =NJ_Conge -> 
B40: ='08'!B40 -> Total | C40: =COUNTIF(C9:C39,"a")+COUNTIF(C9:C39,"b")+COUNTIF(C9:C39,"c")+COUNTIF(C9:C39,"d")+COUNTIF(C9:C39,"e")+COUNTIF(C9:C39,"f")+COUNTIF(C9:C39,"g")+COUNTIF(C9:C39,"h")+COUNTIF(C9:C39,"i") -> 0 | D40: =SUM(D9:D39) -> 0 | E40: 0 | F40: 0 | G40: 0 | H40: 0 | I40: 0 | J40: =INT(((Sa_NatureMensuel / H42 *C40)*20)+0.5)/20 ->  | L40: ='08'!L40 -> Vacances : | M40: 0 | N40: 0 | O40: =NJ_Vacances -> 
H41: =B3 -> 2023-11-01 | I41: ='08'!I41 -> cumul | L41: ='08'!L41 -> Accident : | M41: 0 | N41: 0 | O41: 0 | Q41: 0
B42: ='08'!B42 -> Décompte des jours | C42: ='08'!C42 ->  | D42: ='08'!D42 ->  | E42: ='08'!E42 ->  | F42: ='08'!F42 ->  | G42: ='08'!G42 ->  | H42: 30 | I42: =SUM('10'!H42:I42) -> 92 | L42: ='08'!L42 -> Maladie : | M42: 0 | N42: 0 | O42: 0 | Q42: 0
B43: ='08'!B43 -> Jours de travail (a) : | C43: ='08'!C43 ->  | D43: ='08'!D43 ->  | E43: ='08'!E43 ->  | F43: ='08'!F43 ->  | G43: ='08'!G43 ->  | H43: =COUNTIF(C9:C39,"a")+COUNTIF(C9:C39,"f")/2 -> 0 | I43: =SUM('10'!H43:I43) -> 0
B44: ='08'!B44 -> Cours professionnels (b) : | C44: ='08'!C44 ->  | D44: ='08'!D44 ->  | E44: ='08'!E44 ->  | F44: ='08'!F44 ->  | G44: ='08'!G44 ->  | H44: =COUNTIF(C9:C39,"b") -> 0 | I44: =SUM('10'!H44:I44) -> 0 | L44: ='08'!L44 -> Remarques :
B45: ='08'!B45 -> Cours interentreprises (c) : | C45: ='08'!C45 ->  | D45: ='08'!D45 ->  | E45: ='08'!E45 ->  | F45: ='08'!F45 ->  | G45: ='08'!G45 ->  | H45: =COUNTIF(C9:C39,"c") -> 0 | I45: =SUM('10'!H45:I45) -> 0
B46: ='08'!B46 -> Armée (i) : | C46: ='08'!C46 ->  | D46: ='08'!D46 ->  | E46: ='08'!E46 ->  | F46: ='08'!F46 ->  | G46: ='08'!G46 ->  | H46: =COUNTIF(C9:C39,"i") -> 0 | I46: =SUM('10'!H46:I46) -> 0
B47: ='08'!B47 -> Congé (d) : | C47: ='08'!C47 ->  | D47: ='08'!D47 ->  | E47: ='08'!E47 ->  | F47: ='08'!F47 ->  | G47: ='08'!G47 ->  | H47: =COUNTIF(C9:C39,"d")+COUNTIF(C9:C39,"f")/2 -> 0 | I47: =SUM('10'!H47:I47) -> 0
A48: 289 | B48: ='08'!B48 -> Vacances (e) : | C48: ='08'!C48 ->  | D48: ='08'!D48 ->  | E48: ='08'!E48 ->  | F48: ='08'!F48 ->  | G48: ='08'!G48 ->  | H48: =COUNTIF(C9:C39,"e") -> 0 | I48: =SUM('10'!H48:I48) -> 0 | L48: ='08'!L48 -> Date : | O48: ='08'!O48 -> Maître d'apprentissage :
A49: 290 | B49: ='08'!B49 -> Accident (g) : | C49: ='08'!C49 ->  | D49: ='08'!D49 ->  | E49: ='08'!E49 ->  | F49: ='08'!F49 ->  | G49: ='08'!G49 ->  | H49: =COUNTIF(C9:C39,"g") -> 0 | I49: =SUM('10'!H49:I49) -> 0
A50: 291 | B50: ='08'!B50 -> Maladie (h) : | C50: ='08'!C50 ->  | D50: ='08'!D50 ->  | E50: ='08'!E50 ->  | F50: ='08'!F50 ->  | G50: ='08'!G50 ->  | H50: =COUNTIF(C9:C39,"h") -> 0 | I50: =SUM('10'!H50:I50) -> 0 | O50: ='08'!O50 -> Apprenti(e) :

Sheet 12
B1: ='08'!B1 -> Agenda | L1: ='08'!L1 -> Décompte salaire mensuel
B2: ='08'!B2 -> Apprenti(e) | C2: ="- " & TRIM(DB_Apprenti) & " -" -> - -
B3: =DATE(DB_Annee,12,1) -> 2023-12-01 | C3: ='08'!C3 -> [ a-b-c-d-e-f-g-h-i ] | D3: ='08'!D3 -> Logis | E3: ='08'!E3 -> Déjeuner | F3: ='08'!F3 -> Dîner | G3: ='08'!G3 -> Souper | H3: ='08'!H3 -> Montant des Prestations en nature | I3: ='08'!I3 -> Montant modifié | J3: ='08'!J3 -> Commentaires a = Jour de travail b = Jour de cours professionel c = Jour de cours interentreprises d = Jour de congé e = Jour de vacances f = 1/2 jour de travail, 1/2 jour de congé g = Accident (jour entier) h = Maladie (jour entier) i = Armée | L3: ='08'!L3 -> Mois : | M3: =B3 -> 2023-12-01 | O3: ='08'!O3 -> Année : | P3: ='08'!P3 -> 0 | Q3: =B3 -> 2023-12-01
C4: ='08'!C4 -> 0 | D4: ='08'!D4 -> 0 | E4: ='08'!E4 -> 0 | F4: ='08'!F4 -> 0 | G4: ='08'!G4 -> 0 | H4: ='08'!H4 -> 0 | I4: ='08'!I4 -> 0 | J4: ='08'!J4 -> 0
C5: ='08'!C5 -> 0 | D5: ='08'!D5 -> 0 | E5: ='08'!E5 -> 0 | F5: ='08'!F5 -> 0 | G5: ='08'!G5 -> 0 | H5: ='08'!H5 -> 0 | I5: ='08'!I5 -> 0 | J5: ='08'!J5 -> 0 | L5: ='08'!L5 -> Maître d'apprentissage : | M5: =TRIM(DB_Maitre) -> 
C6: ='08'!C6 -> 0 | D6: ='08'!D6 -> 0 | E6: ='08'!E6 -> 0 | F6: ='08'!F6 -> 0 | G6: ='08'!G6 -> 0 | H6: ='08'!H6 -> 0 | I6: ='08'!I6 -> 0 | J6: ='08'!J6 -> 0 | L6: ='08'!L6 -> Lieu : | M6: =TRIM(DB_MaitreLieu) -> 
C7: ='08'!C7 -> 0 | D7: ='08'!D7 -> 0 | E7: ='08'!E7 -> 0 | F7: ='08'!F7 -> 0 | G7: ='08'!G7 -> 0 | H7: ='08'!H7 -> 0 | I7: ='08'!I7 -> 0 | J7: ='08'!J7 -> 0 | L7: ='08'!L7 -> Apprenti : | M7: =TRIM(DB_Apprenti) -> 
C8: ='08'!C8 -> 0 | D8: ='08'!D8 -> 0 | E8: ='08'!E8 -> 0 | F8: ='08'!F8 -> 0 | G8: ='08'!G8 -> 0 | H8: ='08'!H8 -> 0 | I8: ='08'!I8 -> 0 | J8: ='08'!J8 -> 0 | L8: ='08'!L8 -> N° AVS : | M8: =TRIM(DB_AVS) ->  | P8: ='08'!P8 -> Date de naissance : | Q8: =IF(DB_DateNaissance=0,"",DB_DateNaissance) -> 
B9: =B3 -> 2023-12-01 | H9: =MAX(IF(C9="a",PN_Travail,IF(C9="b",PN_CoursProf,IF(C9="c",PN_CoursIE,IF(C9="d",PN_Conge,0)))),IF(C9="e",PN_Vacances,IF(C9="f",PN_DemiJour,IF(C9="g",PN_Accident,IF(C9="h",PN_Maladie,IF(C9="i",PN_Armee,0)))))) -> 0 | I9: =H9+D9*PN_Logis+E9*PN_Dejeuner+F9*PN_Diner+G9*PN_Souper -> 0
B10: =B9+1 -> 2023-12-02 | H10: 0 | I10: =H10+D10*PN_Logis+E10*PN_Dejeuner+F10*PN_Diner+G10*PN_Souper -> 0
A11: 230 | B11: =B10+1 -> 2023-12-03 | H11: 0 | I11: 0 | L11: ='08'!L11 -> Salaire brut | M11: =IF(PN_EffMoy=0,SUBSTITUTE(VLOOKUP(A11+1,Tb_Traduction,DB_Langue,FALSE),"***",TEXT(J40,"0.00")),"") ->  | Q11: =IF(OR(PN_EffMoy=0,Nb_Mois<>12),Sa_BaseMensuelArrondi / H42 *C40,Sa_BaseMensuelArrondi) -> 
B12: 2023-12-04 | H12: 0 | I12: 0 | L12: ='08'!L12 -> Prime, bonus, gratification
B13: 2023-12-05 | H13: 0 | I13: 0 | L13: ='08'!L13 -> Salaire brut total | Q13: =SUM(Q11:Q12) -> 
B14: 2023-12-06 | H14: 0 | I14: 0
B15: 2023-12-07 | H15: 0 | I15: 0 | L15: ='08'!L15 -> Déductions | M15: ='08'!M15 -> Part | N15: %
B16: 2023-12-08 | H16: 0 | I16: 0 | L16: ='08'!L16 -> Cotisations AVS, AI, APG* : | M16: 1/2 | N16: =IF(B3>=DB_SoumisAVS,RS_AVS,0) -> 0.053 | P16: =$Q$13*N16 -> 
B17: 2023-12-09 | H17: 0 | I17: 0 | L17: ='08'!L17 -> Cotisations AC* : | M17: 1/2 | N17: =IF(B3>=DB_SoumisAVS,RS_AC,0) -> 0.011 | P17: =$Q$13*N17 -> 
B18: 2023-12-10 | H18: 0 | I18: 0 | L18: ='08'!L18 -> Accident non profes.: | M18: 1/1 | N18: =RS_ANP -> 0.01607 | P18: =$Q$13*N18 -> 
B19: 2023-12-11 | H19: 0 | I19: 0 | L19: ='08'!L19 -> Indemnité journalière MC : | M19: 1/2 | N19: =RS_MC -> 0.0044 | P19: =$Q$13*N19 -> 
B20: 2023-12-12 | H20: 0 | I20: 0 | L20: ='08'!L20 -> Autre déduction :
B21: 2023-12-13 | H21: 0 | I21: 0 | L21: ='08'!L21 ->  | P21: =IF(PN_EffMoy=0,I40,IF(Nb_Mois=12,Sa_NatureMensuelArrondi,Sa_NatureMensuelArrondi*C40/H42)) -> 
B22: 2023-12-14 | H22: 0 | I22: 0 | L22: ='08'!L22 -> *) Dès le 1er janvier de l'année des 18 ans de l'apprenti(e)
B23: 2023-12-15 | H23: 0 | I23: 0
B24: 2023-12-16 | H24: 0 | I24: 0 | L24: ='08'!L24 -> A déduire | Q24: =INT((SUM(P16:P21)*20)+0.5)/20 -> 
B25: 2023-12-17 | H25: 0 | I25: 0
B26: 2023-12-18 | H26: 0 | I26: 0 | L26: ='08'!L26 -> Frais et remboursement
B27: 2023-12-19 | H27: 0 | I27: 0 | L27: ='08'!L27 -> Frais :
B28: 2023-12-20 | H28: 0 | I28: 0 | L28: ='08'!L28 -> Autre remboursement :
B29: 2023-12-21 | H29: 0 | I29: 0
B30: 2023-12-22 | H30: 0 | I30: 0 | L30: ='08'!L30 -> A ajouter | Q30: =SUM(P27:P28) -> 0
B31: 2023-12-23 | H31: 0 | I31: 0
B32: 2023-12-24 | H32: 0 | I32: 0 | L32: ='08'!L32 -> Versement du mois | Q32: =Q13+Q30-Q24 -> 
B33: 2023-12-25 | H33: 0 | I33: 0 | M33: ='08'!M33 -> Mois courant | N33: ='08'!N33 -> Cumul mois précédents | O33: ='08'!O33 -> Prévus annuellement | Q33: ='08'!Q33 -> Solde actuel
B34: 2023-12-26 | H34: 0 | I34: 0 | L34: ='08'!L34 -> Décompte des jours | M34: ='08'!M34 -> 0 | N34: ='08'!N34 -> 0 | O34: ='08'!O34 -> 0 | Q34: ='08'!Q34 -> 0
B35: 2023-12-27 | H35: 0 | I35: 0 | L35: ='08'!L35 -> Travail : | M35: =H43 -> 0 | N35: 0 | O35: =NJ_Travail ->  | Q35: =O35-N35-M35 -> 
B36: 2023-12-28 | H36: 0 | I36: 0 | L36: ='08'!L36 -> Cours prof. : | M36: 0 | N36: 0 | O36: =NJ_CoursProf -> 
B37: 2023-12-29 | H37: 0 | I37: 0 | L37: ='08'!L37 -> Cours IE : | M37: 0 | N37: 0 | O37: =NJ_CoursIE -> 
B38: 2023-12-30 | H38: 0 | I38: 0 | L38: ='08'!L38 -> Armée : | M38: 0 | N38: 0 | O38: =NJ_Bloc -> 0 | Q38: 0
B39: 2023-12-31 | H39: 0 | I39: 0 | L39: ='08'!L39 -> Congés : | M39: =H47 -> 0 | N39: 0 | O39: =NJ_Conge -> 
B40: ='08'!B40 -> Total | C40: =COUNTIF(C9:C39,"a")+COUNTIF(C9:C39,"b")+COUNTIF(C9:C39,"c")+COUNTIF(C9:C39,"d")+COUNTIF(C9:C39,"e")+COUNTIF(C9:C39,"f")+COUNTIF(C9:C39,"g")+COUNTIF(C9:C39,"h")+COUNTIF(C9:C39,"i") -> 0 | D40: =SUM(D9:D39) -> 0 | E40: 0 | F40: 0 | G40: 0 | H40: 0 | I40: 0 | J40: =INT(((Sa_NatureMensuel / H42 *C40)*20)+0.5)/20 ->  | L40: ='08'!L40 -> Vacances : | M40: 0 | N40: 0 | O40: =NJ_Vacances -> 
H41: =B3 -> 2023-12-01 | I41: ='08'!I41 -> cumul | L41: ='08'!L41 -> Accident : | M41: 0 | N41: 0 | O41: 0 | Q41: 0
B42: ='08'!B42 -> Décompte des jours | C42: ='08'!C42 ->  | D42: ='08'!D42 ->  | E42: ='08'!E42 ->  | F42: ='08'!F42 ->  | G42: ='08'!G42 ->  | H42: 31 | I42: =SUM('11'!H42:I42) -> 122 | L42: ='08'!L42 -> Maladie : | M42: 0 | N42: 0 | O42: 0 | Q42: 0
B43: ='08'!B43 -> Jours de travail (a) : | C43: ='08'!C43 ->  | D43: ='08'!D43 ->  | E43: ='08'!E43 ->  | F43: ='08'!F43 ->  | G43: ='08'!G43 ->  | H43: =COUNTIF(C9:C39,"a")+COUNTIF(C9:C39,"f")/2 -> 0 | I43: =SUM('11'!H43:I43) -> 0
B44: ='08'!B44 -> Cours professionnels (b) : | C44: ='08'!C44 ->  | D44: ='08'!D44 ->  | E44: ='08'!E44 ->  | F44: ='08'!F44 ->  | G44: ='08'!G44 ->  | H44: =COUNTIF(C9:C39,"b") -> 0 | I44: =SUM('11'!H44:I44) -> 0 | L44: ='08'!L44 -> Remarques :
B45: ='08'!B45 -> Cours interentreprises (c) : | C45: ='08'!C45 ->  | D45: ='08'!D45 ->  | E45: ='08'!E45 ->  | F45: ='08'!F45 ->  | G45: ='08'!G45 ->  | H45: =COUNTIF(C9:C39,"c") -> 0 | I45: =SUM('11'!H45:I45) -> 0
B46: ='08'!B46 -> Armée (i) : | C46: ='08'!C46 ->  | D46: ='08'!D46 ->  | E46: ='08'!E46 ->  | F46: ='08'!F46 ->  | G46: ='08'!G46 ->  | H46: =COUNTIF(C9:C39,"i") -> 0 | I46: =SUM('11'!H46:I46) -> 0
B47: ='08'!B47 -> Congé (d) : | C47: ='08'!C47 ->  | D47: ='08'!D47 ->  | E47: ='08'!E47 ->  | F47: ='08'!F47 ->  | G47: ='08'!G47 ->  | H47: =COUNTIF(C9:C39,"d")+COUNTIF(C9:C39,"f")/2 -> 0 | I47: =SUM('11'!H47:I47) -> 0
A48: 289 | B48: ='08'!B48 -> Vacances (e) : | C48: ='08'!C48 ->  | D48: ='08'!D48 ->  | E48: ='08'!E48 ->  | F48: ='08'!F48 ->  | G48: ='08'!G48 ->  | H48: =COUNTIF(C9:C39,"e") -> 0 | I48: =SUM('11'!H48:I48) -> 0 | L48: ='08'!L48 -> Date : | O48: ='08'!O48 -> Maître d'apprentissage :
A49: 290 | B49: ='08'!B49 -> Accident (g) : | C49: ='08'!C49 ->  | D49: ='08'!D49 ->  | E49: ='08'!E49 ->  | F49: ='08'!F49 ->  | G49: ='08'!G49 ->  | H49: =COUNTIF(C9:C39,"g") -> 0 | I49: =SUM('11'!H49:I49) -> 0
A50: 291 | B50: ='08'!B50 -> Maladie (h) : | C50: ='08'!C50 ->  | D50: ='08'!D50 ->  | E50: ='08'!E50 ->  | F50: ='08'!F50 ->  | G50: ='08'!G50 ->  | H50: =COUNTIF(C9:C39,"h") -> 0 | I50: =SUM('11'!H50:I50) -> 0 | O50: ='08'!O50 -> Apprenti(e) :

Sheet 01
B1: ='08'!B1 -> Agenda | L1: ='08'!L1 -> Décompte salaire mensuel
B2: ='08'!B2 -> Apprenti(e) | C2: ="- " & TRIM(DB_Apprenti) & " -" -> - -
B3: =DATE(DB_Annee+1,1,1) -> 2024-01-01 | C3: ='08'!C3 -> [ a-b-c-d-e-f-g-h-i ] | D3: ='08'!D3 -> Logis | E3: ='08'!E3 -> Déjeuner | F3: ='08'!F3 -> Dîner | G3: ='08'!G3 -> Souper | H3: ='08'!H3 -> Montant des Prestations en nature | I3: ='08'!I3 -> Montant modifié | J3: ='08'!J3 -> Commentaires a = Jour de travail b = Jour de cours professionel c = Jour de cours interentreprises d = Jour de congé e = Jour de vacances f = 1/2 jour de travail, 1/2 jour de congé g = Accident (jour entier) h = Maladie (jour entier) i = Armée | L3: ='08'!L3 -> Mois : | M3: =B3 -> 2024-01-01 | O3: ='08'!O3 -> Année : | P3: ='08'!P3 -> 0 | Q3: =B3 -> 2024-01-01
C4: ='08'!C4 -> 0 | D4: ='08'!D4 -> 0 | E4: ='08'!E4 -> 0 | F4: ='08'!F4 -> 0 | G4: ='08'!G4 -> 0 | H4: ='08'!H4 -> 0 | I4: ='08'!I4 -> 0 | J4: ='08'!J4 -> 0
C5: ='08'!C5 -> 0 | D5: ='08'!D5 -> 0 | E5: ='08'!E5 -> 0 | F5: ='08'!F5 -> 0 | G5: ='08'!G5 -> 0 | H5: ='08'!H5 -> 0 | I5: ='08'!I5 -> 0 | J5: ='08'!J5 -> 0 | L5: ='08'!L5 -> Maître d'apprentissage : | M5: =TRIM(DB_Maitre) -> 
C6: ='08'!C6 -> 0 | D6: ='08'!D6 -> 0 | E6: ='08'!E6 -> 0 | F6: ='08'!F6 -> 0 | G6: ='08'!G6 -> 0 | H6: ='08'!H6 -> 0 | I6: ='08'!I6 -> 0 | J6: ='08'!J6 -> 0 | L6: ='08'!L6 -> Lieu : | M6: =TRIM(DB_MaitreLieu) -> 
C7: ='08'!C7 -> 0 | D7: ='08'!D7 -> 0 | E7: ='08'!E7 -> 0 | F7: ='08'!F7 -> 0 | G7: ='08'!G7 -> 0 | H7: ='08'!H7 -> 0 | I7: ='08'!I7 -> 0 | J7: ='08'!J7 -> 0 | L7: ='08'!L7 -> Apprenti : | M7: =TRIM(DB_Apprenti) -> 
C8: ='08'!C8 -> 0 | D8: ='08'!D8 -> 0 | E8: ='08'!E8 -> 0 | F8: ='08'!F8 -> 0 | G8: ='08'!G8 -> 0 | H8: ='08'!H8 -> 0 | I8: ='08'!I8 -> 0 | J8: ='08'!J8 -> 0 | L8: ='08'!L8 -> N° AVS : | M8: =TRIM(DB_AVS) ->  | P8: ='08'!P8 -> Date de naissance : | Q8: =IF(DB_DateNaissance=0,"",DB_DateNaissance) -> 
B9: =B3 -> 2024-01-01 | H9: =MAX(IF(C9="a",PN_Travail,IF(C9="b",PN_CoursProf,IF(C9="c",PN_CoursIE,IF(C9="d",PN_Conge,0)))),IF(C9="e",PN_Vacances,IF(C9="f",PN_DemiJour,IF(C9="g",PN_Accident,IF(C9="h",PN_Maladie,IF(C9="i",PN_Armee,0)))))) -> 0 | I9: =H9+D9*PN_Logis_Plus+E9*PN_Dejeuner_Plus+F9*PN_Diner_Plus+G9*PN_Souper_Plus -> 0
B10: =B9+1 -> 2024-01-02 | H10: 0 | I10: 0
A11: 230 | B11: =B10+1 -> 2024-01-03 | H11: 0 | I11: 0 | L11: ='08'!L11 -> Salaire brut | M11: =IF(PN_EffMoy=0,SUBSTITUTE(VLOOKUP(A11+1,Tb_Traduction,DB_Langue,FALSE),"***",TEXT(J40,"0.00")),"") ->  | Q11: =IF(OR(PN_EffMoy=0,Nb_Mois<>12),Sa_BaseMensuelArrondi / H42 *C40,Sa_BaseMensuelArrondi) -> 
B12: 2024-01-04 | H12: 0 | I12: 0 | L12: ='08'!L12 -> Prime, bonus, gratification
B13: 2024-01-05 | H13: 0 | I13: 0 | L13: ='08'!L13 -> Salaire brut total | Q13: =SUM(Q11:Q12) -> 
B14: 2024-01-06 | H14: 0 | I14: 0
B15: 2024-01-07 | H15: 0 | I15: 0 | L15: ='08'!L15 -> Déductions | M15: ='08'!M15 -> Part | N15: %
B16: 2024-01-08 | H16: 0 | I16: 0 | L16: ='08'!L16 -> Cotisations AVS, AI, APG* : | M16: 1/2 | N16: =IF(B3>=DB_SoumisAVS,RS_AVS_Plus,0) -> 0.053 | P16: =$Q$13*N16 -> 
B17: 2024-01-09 | H17: 0 | I17: 0 | L17: ='08'!L17 -> Cotisations AC* : | M17: 1/2 | N17: =IF(B3>=DB_SoumisAVS,RS_AC_Plus,0) -> 0.011 | P17: =$Q$13*N17 -> 
B18: 2024-01-10 | H18: 0 | I18: 0 | L18: ='08'!L18 -> Accident non profes.: | M18: 1/1 | N18: =RS_ANP_Plus -> 0.01607 | P18: =$Q$13*N18 -> 
B19: 2024-01-11 | H19: 0 | I19: 0 | L19: ='08'!L19 -> Indemnité journalière MC : | M19: 1/2 | N19: =RS_MC_Plus -> 0.0044 | P19: =$Q$13*N19 -> 
B20: 2024-01-12 | H20: 0 | I20: 0 | L20: ='08'!L20 -> Autre déduction :
B21: 2024-01-13 | H21: 0 | I21: 0 | L21: ='08'!L21 ->  | P21: =IF(PN_EffMoy=0,I40,IF(Nb_Mois=12,Sa_NatureMensuelArrondi,Sa_NatureMensuelArrondi*C40/H42)) -> 
B22: 2024-01-14 | H22: 0 | I22: 0 | L22: ='08'!L22 -> *) Dès le 1er janvier de l'année des 18 ans de l'apprenti(e)
B23: 2024-01-15 | H23: 0 | I23: 0
B24: 2024-01-16 | H24: 0 | I24: 0 | L24: ='08'!L24 -> A déduire | Q24: =INT((SUM(P16:P21)*20)+0.5)/20 -> 
B25: 2024-01-17 | H25: 0 | I25: 0
B26: 2024-01-18 | H26: 0 | I26: 0 | L26: ='08'!L26 -> Frais et remboursement
B27: 2024-01-19 | H27: 0 | I27: 0 | L27: ='08'!L27 -> Frais :
B28: 2024-01-20 | H28: 0 | I28: 0 | L28: ='08'!L28 -> Autre remboursement :
B29: 2024-01-21 | H29: 0 | I29: 0
B30: 2024-01-22 | H30: 0 | I30: 0 | L30: ='08'!L30 -> A ajouter | Q30: =SUM(P27:P28) -> 0
B31: 2024-01-23 | H31: 0 | I31: 0
B32: 2024-01-24 | H32: 0 | I32: 0 | L32: ='08'!L32 -> Versement du mois | Q32: =Q13+Q30-Q24 -> 
B33: 2024-01-25 | H33: 0 | I33: 0 | M33: ='08'!M33 -> Mois courant | N33: ='08'!N33 -> Cumul mois précédents | O33: ='08'!O33 -> Prévus annuellement | Q33: ='08'!Q33 -> Solde actuel
B34: 2024-01-26 | H34: 0 | I34: 0 | L34: ='08'!L34 -> Décompte des jours | M34: ='08'!M34 -> 0 | N34: ='08'!N34 -> 0 | O34: ='08'!O34 -> 0 | Q34: ='08'!Q34 -> 0
B35: 2024-01-27 | H35: 0 | I35: 0 | L35: ='08'!L35 -> Travail : | M35: =H43 -> 0 | N35: 0 | O35: =NJ_Travail ->  | Q35: =O35-N35-M35 -> 
B36: 2024-01-28 | H36: 0 | I36: 0 | L36: ='08'!L36 -> Cours prof. : | M36: 0 | N36: 0 | O36: =NJ_CoursProf -> 
B37: 2024-01-29 | H37: 0 | I37: 0 | L37: ='08'!L37 -> Cours IE : | M37: 0 | N37: 0 | O37: =NJ_CoursIE -> 
B38: 2024-01-30 | H38: 0 | I38: 0 | L38: ='08'!L38 -> Armée : | M38: 0 | N38: 0 | O38: =NJ_Bloc -> 0 | Q38: 0
B39: 2024-01-31 | H39: 0 | I39: 0 | L39: ='08'!L39 -> Congés : | M39: =H47 -> 0 | N39: 0 | O39: =NJ_Conge -> 
B40: ='08'!B40 -> Total | C40: =COUNTIF(C9:C39,"a")+COUNTIF(C9:C39,"b")+COUNTIF(C9:C39,"c")+COUNTIF(C9:C39,"d")+COUNTIF(C9:C39,"e")+COUNTIF(C9:C39,"f")+COUNTIF(C9:C39,"g")+COUNTIF(C9:C39,"h")+COUNTIF(C9:C39,"i") -> 0 | D40: =SUM(D9:D39) -> 0 | E40: 0 | F40: 0 | G40: 0 | H40: 0 | I40: 0 | J40: =INT(((Sa_NatureMensuel / H42 *C40)*20)+0.5)/20 ->  | L40: ='08'!L40 -> Vacances : | M40: 0 | N40: 0 | O40: =NJ_Vacances -> 
H41: =B3 -> 2024-01-01 | I41: ='08'!I41 -> cumul | L41: ='08'!L41 -> Accident : | M41: 0 | N41: 0 | O41: 0 | Q41: 0
B42: ='08'!B42 -> Décompte des jours | C42: ='08'!C42 ->  | D42: ='08'!D42 ->  | E42: ='08'!E42 ->  | F42: ='08'!F42 ->  | G42: ='08'!G42 ->  | H42: 31 | I42: =SUM('12'!H42:I42) -> 153 | L42: ='08'!L42 -> Maladie : | M42: 0 | N42: 0 | O42: 0 | Q42: 0
B43: ='08'!B43 -> Jours de travail (a) : | C43: ='08'!C43 ->  | D43: ='08'!D43 ->  | E43: ='08'!E43 ->  | F43: ='08'!F43 ->  | G43: ='08'!G43 ->  | H43: =COUNTIF(C9:C39,"a")+COUNTIF(C9:C39,"f")/2 -> 0 | I43: =SUM('12'!H43:I43) -> 0
B44: ='08'!B44 -> Cours professionnels (b) : | C44: ='08'!C44 ->  | D44: ='08'!D44 ->  | E44: ='08'!E44 ->  | F44: ='08'!F44 ->  | G44: ='08'!G44 ->  | H44: =COUNTIF(C9:C39,"b") -> 0 | I44: =SUM('12'!H44:I44) -> 0 | L44: ='08'!L44 -> Remarques :
B45: ='08'!B45 -> Cours interentreprises (c) : | C45: ='08'!C45 ->  | D45: ='08'!D45 ->  | E45: ='08'!E45 ->  | F45: ='08'!F45 ->  | G45: ='08'!G45 ->  | H45: =COUNTIF(C9:C39,"c") -> 0 | I45: =SUM('12'!H45:I45) -> 0
B46: ='08'!B46 -> Armée (i) : | C46: ='08'!C46 ->  | D46: ='08'!D46 ->  | E46: ='08'!E46 ->  | F46: ='08'!F46 ->  | G46: ='08'!G46 ->  | H46: =COUNTIF(C9:C39,"i") -> 0 | I46: =SUM('12'!H46:I46) -> 0
B47: ='08'!B47 -> Congé (d) : | C47: ='08'!C47 ->  | D47: ='08'!D47 ->  | E47: ='08'!E47 ->  | F47: ='08'!F47 ->  | G47: ='08'!G47 ->  | H47: =COUNTIF(C9:C39,"d")+COUNTIF(C9:C39,"f")/2 -> 0 | I47: =SUM('12'!H47:I47) -> 0
A48: 289 | B48: ='08'!B48 -> Vacances (e) : | C48: ='08'!C48 ->  | D48: ='08'!D48 ->  | E48: ='08'!E48 ->  | F48: ='08'!F48 ->  | G48: ='08'!G48 ->  | H48: =COUNTIF(C9:C39,"e") -> 0 | I48: =SUM('12'!H48:I48) -> 0 | L48: ='08'!L48 -> Date : | O48: ='08'!O48 -> Maître d'apprentissage :
A49: 290 | B49: ='08'!B49 -> Accident (g) : | C49: ='08'!C49 ->  | D49: ='08'!D49 ->  | E49: ='08'!E49 ->  | F49: ='08'!F49 ->  | G49: ='08'!G49 ->  | H49: =COUNTIF(C9:C39,"g") -> 0 | I49: =SUM('12'!H49:I49) -> 0
A50: 291 | B50: ='08'!B50 -> Maladie (h) : | C50: ='08'!C50 ->  | D50: ='08'!D50 ->  | E50: ='08'!E50 ->  | F50: ='08'!F50 ->  | G50: ='08'!G50 ->  | H50: =COUNTIF(C9:C39,"h") -> 0 | I50: =SUM('12'!H50:I50) -> 0 | O50: ='08'!O50 -> Apprenti(e) :

Sheet 02
B1: ='08'!B1 -> Agenda | L1: ='08'!L1 -> Décompte salaire mensuel
B2: ='08'!B2 -> Apprenti(e) | C2: ="- " & TRIM(DB_Apprenti) & " -" -> - -
B3: =DATE(DB_Annee+1,2,1) -> 2024-02-01 | C3: ='08'!C3 -> [ a-b-c-d-e-f-g-h-i ] | D3: ='08'!D3 -> Logis | E3: ='08'!E3 -> Déjeuner | F3: ='08'!F3 -> Dîner | G3: ='08'!G3 -> Souper | H3: ='08'!H3 -> Montant des Prestations en nature | I3: ='08'!I3 -> Montant modifié | J3: ='08'!J3 -> Commentaires a = Jour de travail b = Jour de cours professionel c = Jour de cours interentreprises d = Jour de congé e = Jour de vacances f = 1/2 jour de travail, 1/2 jour de congé g = Accident (jour entier) h = Maladie (jour entier) i = Armée | L3: ='08'!L3 -> Mois : | M3: =B3 -> 2024-02-01 | O3: ='08'!O3 -> Année : | P3: ='08'!P3 -> 0 | Q3: =B3 -> 2024-02-01
C4: ='08'!C4 -> 0 | D4: ='08'!D4 -> 0 | E4: ='08'!E4 -> 0 | F4: ='08'!F4 -> 0 | G4: ='08'!G4 -> 0 | H4: ='08'!H4 -> 0 | I4: ='08'!I4 -> 0 | J4: ='08'!J4 -> 0
C5: ='08'!C5 -> 0 | D5: ='08'!D5 -> 0 | E5: ='08'!E5 -> 0 | F5: ='08'!F5 -> 0 | G5: ='08'!G5 -> 0 | H5: ='08'!H5 -> 0 | I5: ='08'!I5 -> 0 | J5: ='08'!J5 -> 0 | L5: ='08'!L5 -> Maître d'apprentissage : | M5: =TRIM(DB_Maitre) -> 
C6: ='08'!C6 -> 0 | D6: ='08'!D6 -> 0 | E6: ='08'!E6 -> 0 | F6: ='08'!F6 -> 0 | G6: ='08'!G6 -> 0 | H6: ='08'!H6 -> 0 | I6: ='08'!I6 -> 0 | J6: ='08'!J6 -> 0 | L6: ='08'!L6 -> Lieu : | M6: =TRIM(DB_MaitreLieu) -> 
C7: ='08'!C7 -> 0 | D7: ='08'!D7 -> 0 | E7: ='08'!E7 -> 0 | F7: ='08'!F7 -> 0 | G7: ='08'!G7 -> 0 | H7: ='08'!H7 -> 0 | I7: ='08'!I7 -> 0 | J7: ='08'!J7 -> 0 | L7: ='08'!L7 -> Apprenti : | M7: =TRIM(DB_Apprenti) -> 
C8: ='08'!C8 -> 0 | D8: ='08'!D8 -> 0 | E8: ='08'!E8 -> 0 | F8: ='08'!F8 -> 0 | G8: ='08'!G8 -> 0 | H8: ='08'!H8 -> 0 | I8: ='08'!I8 -> 0 | J8: ='08'!J8 -> 0 | L8: ='08'!L8 -> N° AVS : | M8: =TRIM(DB_AVS) ->  | P8: ='08'!P8 -> Date de naissance : | Q8: =IF(DB_DateNaissance=0,"",DB_DateNaissance) -> 
B9: =B3 -> 2024-02-01 | H9: =MAX(IF(C9="a",PN_Travail,IF(C9="b",PN_CoursProf,IF(C9="c",PN_CoursIE,IF(C9="d",PN_Conge,0)))),IF(C9="e",PN_Vacances,IF(C9="f",PN_DemiJour,IF(C9="g",PN_Accident,IF(C9="h",PN_Maladie,IF(C9="i",PN_Armee,0)))))) -> 0 | I9: =H9+D9*PN_Logis_Plus+E9*PN_Dejeuner_Plus+F9*PN_Diner_Plus+G9*PN_Souper_Plus -> 0
B10: =B9+1 -> 2024-02-02 | H10: 0 | I10: 0
A11: 230 | B11: =B10+1 -> 2024-02-03 | H11: 0 | I11: 0 | L11: ='08'!L11 -> Salaire brut | M11: =IF(PN_EffMoy=0,SUBSTITUTE(VLOOKUP(A11+1,Tb_Traduction,DB_Langue,FALSE),"***",TEXT(J40,"0.00")),"") ->  | Q11: =IF(OR(PN_EffMoy=0,Nb_Mois<>12),Sa_BaseMensuelArrondi / H42 *C40,Sa_BaseMensuelArrondi) -> 
B12: 2024-02-04 | H12: 0 | I12: 0 | L12: ='08'!L12 -> Prime, bonus, gratification
B13: 2024-02-05 | H13: 0 | I13: 0 | L13: ='08'!L13 -> Salaire brut total | Q13: =SUM(Q11:Q12) -> 
B14: 2024-02-06 | H14: 0 | I14: 0
B15: 2024-02-07 | H15: 0 | I15: 0 | L15: ='08'!L15 -> Déductions | M15: ='08'!M15 -> Part | N15: %
B16: 2024-02-08 | H16: 0 | I16: 0 | L16: ='08'!L16 -> Cotisations AVS, AI, APG* : | M16: 1/2 | N16: =IF(B3>=DB_SoumisAVS,RS_AVS_Plus,0) -> 0.053 | P16: =$Q$13*N16 -> 
B17: 2024-02-09 | H17: 0 | I17: 0 | L17: ='08'!L17 -> Cotisations AC* : | M17: 1/2 | N17: =IF(B3>=DB_SoumisAVS,RS_AC_Plus,0) -> 0.011 | P17: =$Q$13*N17 -> 
B18: 2024-02-10 | H18: 0 | I18: 0 | L18: ='08'!L18 -> Accident non profes.: | M18: 1/1 | N18: =RS_ANP_Plus -> 0.01607 | P18: =$Q$13*N18 -> 
B19: 2024-02-11 | H19: 0 | I19: 0 | L19: ='08'!L19 -> Indemnité journalière MC : | M19: 1/2 | N19: =RS_MC_Plus -> 0.0044 | P19: =$Q$13*N19 -> 
B20: 2024-02-12 | H20: 0 | I20: 0 | L20: ='08'!L20 -> Autre déduction :
B21: 2024-02-13 | H21: 0 | I21: 0 | L21: ='08'!L21 ->  | P21: =IF(PN_EffMoy=0,I40,IF(Nb_Mois=12,Sa_NatureMensuelArrondi,Sa_NatureMensuelArrondi*C40/H42)) -> 
B22: 2024-02-14 | H22: 0 | I22: 0 | L22: ='08'!L22 -> *) Dès le 1er janvier de l'année des 18 ans de l'apprenti(e)
B23: 2024-02-15 | H23: 0 | I23: 0
B24: 2024-02-16 | H24: 0 | I24: 0 | L24: ='08'!L24 -> A déduire | Q24: =INT((SUM(P16:P21)*20)+0.5)/20 -> 
B25: 2024-02-17 | H25: 0 | I25: 0
B26: 2024-02-18 | H26: 0 | I26: 0 | L26: ='08'!L26 -> Frais et remboursement
B27: 2024-02-19 | H27: 0 | I27: 0 | L27: ='08'!L27 -> Frais :
B28: 2024-02-20 | H28: 0 | I28: 0 | L28: ='08'!L28 -> Autre remboursement :
B29: 2024-02-21 | H29: 0 | I29: 0
B30: 2024-02-22 | H30: 0 | I30: 0 | L30: ='08'!L30 -> A ajouter | Q30: =SUM(P27:P28) -> 0
B31: 2024-02-23 | H31: 0 | I31: 0
B32: 2024-02-24 | H32: 0 | I32: 0 | L32: ='08'!L32 -> Versement du mois | Q32: =Q13+Q30-Q24 -> 
B33: 2024-02-25 | H33: 0 | I33: 0 | M33: ='08'!M33 -> Mois courant | N33: ='08'!N33 -> Cumul mois précédents | O33: ='08'!O33 -> Prévus annuellement | Q33: ='08'!Q33 -> Solde actuel
B34: 2024-02-26 | H34: 0 | I34: 0 | L34: ='08'!L34 -> Décompte des jours | M34: ='08'!M34 -> 0 | N34: ='08'!N34 -> 0 | O34: ='08'!O34 -> 0 | Q34: ='08'!Q34 -> 0
B35: 2024-02-27 | H35: 0 | I35: 0 | L35: ='08'!L35 -> Travail : | M35: =H43 -> 0 | N35: 0 | O35: =NJ_Travail ->  | Q35: =O35-N35-M35 -> 
B36: 2024-02-28 | H36: 0 | I36: 0 | L36: ='08'!L36 -> Cours prof. : | M36: 0 | N36: 0 | O36: =NJ_CoursProf -> 
B37: =B36+1 -> 2024-02-29 | H37: 0 | I37: =H37+D37*PN_Logis_Plus+E37*PN_Dejeuner_Plus+F37*PN_Diner_Plus+G37*PN_Souper_Plus -> 0 | L37: ='08'!L37 -> Cours IE : | M37: 0 | N37: 0 | O37: =NJ_CoursIE -> 
H38: 0 | I38: 0 | L38: ='08'!L38 -> Armée : | M38: 0 | N38: 0 | O38: =NJ_Bloc -> 0 | Q38: 0
H39: 0 | I39: 0 | L39: ='08'!L39 -> Congés : | M39: =H47 -> 0 | N39: 0 | O39: =NJ_Conge -> 
B40: ='08'!B40 -> Total | C40: =COUNTIF(C9:C39,"a")+COUNTIF(C9:C39,"b")+COUNTIF(C9:C39,"c")+COUNTIF(C9:C39,"d")+COUNTIF(C9:C39,"e")+COUNTIF(C9:C39,"f")+COUNTIF(C9:C39,"g")+COUNTIF(C9:C39,"h")+COUNTIF(C9:C39,"i") -> 0 | D40: =SUM(D9:D39) -> 0 | E40: 0 | F40: 0 | G40: 0 | H40: 0 | I40: 0 | J40: =INT(((Sa_NatureMensuel / H42 *C40)*20)+0.5)/20 ->  | L40: ='08'!L40 -> Vacances : | M40: 0 | N40: 0 | O40: =NJ_Vacances -> 
H41: =B3 -> 2024-02-01 | I41: ='08'!I41 -> cumul | L41: ='08'!L41 -> Accident : | M41: 0 | N41: 0 | O41: 0 | Q41: 0
B42: ='08'!B42 -> Décompte des jours | C42: ='08'!C42 ->  | D42: ='08'!D42 ->  | E42: ='08'!E42 ->  | F42: ='08'!F42 ->  | G42: ='08'!G42 ->  | H42: =IF(MOD(YEAR(B3),4)=0,29,28) -> 29 | I42: =SUM('01'!H42:I42) -> 184 | L42: ='08'!L42 -> Maladie : | M42: 0 | N42: 0 | O42: 0 | Q42: 0
B43: ='08'!B43 -> Jours de travail (a) : | C43: ='08'!C43 ->  | D43: ='08'!D43 ->  | E43: ='08'!E43 ->  | F43: ='08'!F43 ->  | G43: ='08'!G43 ->  | H43: =COUNTIF(C9:C39,"a")+COUNTIF(C9:C39,"f")/2 -> 0 | I43: =SUM('01'!H43:I43) -> 0
B44: ='08'!B44 -> Cours professionnels (b) : | C44: ='08'!C44 ->  | D44: ='08'!D44 ->  | E44: ='08'!E44 ->  | F44: ='08'!F44 ->  | G44: ='08'!G44 ->  | H44: =COUNTIF(C9:C39,"b") -> 0 | I44: =SUM('01'!H44:I44) -> 0 | L44: ='08'!L44 -> Remarques :
B45: ='08'!B45 -> Cours interentreprises (c) : | C45: ='08'!C45 ->  | D45: ='08'!D45 ->  | E45: ='08'!E45 ->  | F45: ='08'!F45 ->  | G45: ='08'!G45 ->  | H45: =COUNTIF(C9:C39,"c") -> 0 | I45: =SUM('01'!H45:I45) -> 0
B46: ='08'!B46 -> Armée (i) : | C46: ='08'!C46 ->  | D46: ='08'!D46 ->  | E46: ='08'!E46 ->  | F46: ='08'!F46 ->  | G46: ='08'!G46 ->  | H46: =COUNTIF(C9:C39,"i") -> 0 | I46: =SUM('01'!H46:I46) -> 0
B47: ='08'!B47 -> Congé (d) : | C47: ='08'!C47 ->  | D47: ='08'!D47 ->  | E47: ='08'!E47 ->  | F47: ='08'!F47 ->  | G47: ='08'!G47 ->  | H47: =COUNTIF(C9:C39,"d")+COUNTIF(C9:C39,"f")/2 -> 0 | I47: =SUM('01'!H47:I47) -> 0
A48: 289 | B48: ='08'!B48 -> Vacances (e) : | C48: ='08'!C48 ->  | D48: ='08'!D48 ->  | E48: ='08'!E48 ->  | F48: ='08'!F48 ->  | G48: ='08'!G48 ->  | H48: =COUNTIF(C9:C39,"e") -> 0 | I48: =SUM('01'!H48:I48) -> 0 | L48: ='08'!L48 -> Date : | O48: ='08'!O48 -> Maître d'apprentissage :
A49: 290 | B49: ='08'!B49 -> Accident (g) : | C49: ='08'!C49 ->  | D49: ='08'!D49 ->  | E49: ='08'!E49 ->  | F49: ='08'!F49 ->  | G49: ='08'!G49 ->  | H49: =COUNTIF(C9:C39,"g") -> 0 | I49: =SUM('01'!H49:I49) -> 0
A50: 291 | B50: ='08'!B50 -> Maladie (h) : | C50: ='08'!C50 ->  | D50: ='08'!D50 ->  | E50: ='08'!E50 ->  | F50: ='08'!F50 ->  | G50: ='08'!G50 ->  | H50: =COUNTIF(C9:C39,"h") -> 0 | I50: =SUM('01'!H50:I50) -> 0 | O50: ='08'!O50 -> Apprenti(e) :

Sheet 03
B1: ='08'!B1 -> Agenda | L1: ='08'!L1 -> Décompte salaire mensuel
B2: ='08'!B2 -> Apprenti(e) | C2: ="- " & TRIM(DB_Apprenti) & " -" -> - -
B3: =DATE(DB_Annee+1,3,1) -> 2024-03-01 | C3: ='08'!C3 -> [ a-b-c-d-e-f-g-h-i ] | D3: ='08'!D3 -> Logis | E3: ='08'!E3 -> Déjeuner | F3: ='08'!F3 -> Dîner | G3: ='08'!G3 -> Souper | H3: ='08'!H3 -> Montant des Prestations en nature | I3: ='08'!I3 -> Montant modifié | J3: ='08'!J3 -> Commentaires a = Jour de travail b = Jour de cours professionel c = Jour de cours interentreprises d = Jour de congé e = Jour de vacances f = 1/2 jour de travail, 1/2 jour de congé g = Accident (jour entier) h = Maladie (jour entier) i = Armée | L3: ='08'!L3 -> Mois : | M3: =B3 -> 2024-03-01 | O3: ='08'!O3 -> Année : | P3: ='08'!P3 -> 0 | Q3: =B3 -> 2024-03-01
C4: ='08'!C4 -> 0 | D4: ='08'!D4 -> 0 | E4: ='08'!E4 -> 0 | F4: ='08'!F4 -> 0 | G4: ='08'!G4 -> 0 | H4: ='08'!H4 -> 0 | I4: ='08'!I4 -> 0 | J4: ='08'!J4 -> 0
C5: ='08'!C5 -> 0 | D5: ='08'!D5 -> 0 | E5: ='08'!E5 -> 0 | F5: ='08'!F5 -> 0 | G5: ='08'!G5 -> 0 | H5: ='08'!H5 -> 0 | I5: ='08'!I5 -> 0 | J5: ='08'!J5 -> 0 | L5: ='08'!L5 -> Maître d'apprentissage : | M5: =TRIM(DB_Maitre) -> 
C6: ='08'!C6 -> 0 | D6: ='08'!D6 -> 0 | E6: ='08'!E6 -> 0 | F6: ='08'!F6 -> 0 | G6: ='08'!G6 -> 0 | H6: ='08'!H6 -> 0 | I6: ='08'!I6 -> 0 | J6: ='08'!J6 -> 0 | L6: ='08'!L6 -> Lieu : | M6: =TRIM(DB_MaitreLieu) -> 
C7: ='08'!C7 -> 0 | D7: ='08'!D7 -> 0 | E7: ='08'!E7 -> 0 | F7: ='08'!F7 -> 0 | G7: ='08'!G7 -> 0 | H7: ='08'!H7 -> 0 | I7: ='08'!I7 -> 0 | J7: ='08'!J7 -> 0 | L7: ='08'!L7 -> Apprenti : | M7: =TRIM(DB_Apprenti) -> 
C8: ='08'!C8 -> 0 | D8: ='08'!D8 -> 0 | E8: ='08'!E8 -> 0 | F8: ='08'!F8 -> 0 | G8: ='08'!G8 -> 0 | H8: ='08'!H8 -> 0 | I8: ='08'!I8 -> 0 | J8: ='08'!J8 -> 0 | L8: ='08'!L8 -> N° AVS : | M8: =TRIM(DB_AVS) ->  | P8: ='08'!P8 -> Date de naissance : | Q8: =IF(DB_DateNaissance=0,"",DB_DateNaissance) -> 
B9: =B3 -> 2024-03-01 | H9: =MAX(IF(C9="a",PN_Travail,IF(C9="b",PN_CoursProf,IF(C9="c",PN_CoursIE,IF(C9="d",PN_Conge,0)))),IF(C9="e",PN_Vacances,IF(C9="f",PN_DemiJour,IF(C9="g",PN_Accident,IF(C9="h",PN_Maladie,IF(C9="i",PN_Armee,0)))))) -> 0 | I9: =H9+D9*PN_Logis_Plus+E9*PN_Dejeuner_Plus+F9*PN_Diner_Plus+G9*PN_Souper_Plus -> 0
B10: =B9+1 -> 2024-03-02 | H10: 0 | I10: 0
A11: 230 | B11: =B10+1 -> 2024-03-03 | H11: 0 | I11: 0 | L11: ='08'!L11 -> Salaire brut | M11: =IF(PN_EffMoy=0,SUBSTITUTE(VLOOKUP(A11+1,Tb_Traduction,DB_Langue,FALSE),"***",TEXT(J40,"0.00")),"") ->  | Q11: =IF(OR(PN_EffMoy=0,Nb_Mois<>12),Sa_BaseMensuelArrondi / H42 *C40,Sa_BaseMensuelArrondi) -> 
B12: 2024-03-04 | H12: 0 | I12: 0 | L12: ='08'!L12 -> Prime, bonus, gratification
B13: 2024-03-05 | H13: 0 | I13: 0 | L13: ='08'!L13 -> Salaire brut total | Q13: =SUM(Q11:Q12) -> 
B14: 2024-03-06 | H14: 0 | I14: 0
B15: 2024-03-07 | H15: 0 | I15: 0 | L15: ='08'!L15 -> Déductions | M15: ='08'!M15 -> Part | N15: %
B16: 2024-03-08 | H16: 0 | I16: 0 | L16: ='08'!L16 -> Cotisations AVS, AI, APG* : | M16: 1/2 | N16: =IF(B3>=DB_SoumisAVS,RS_AVS_Plus,0) -> 0.053 | P16: =$Q$13*N16 -> 
B17: 2024-03-09 | H17: 0 | I17: 0 | L17: ='08'!L17 -> Cotisations AC* : | M17: 1/2 | N17: =IF(B3>=DB_SoumisAVS,RS_AC_Plus,0) -> 0.011 | P17: =$Q$13*N17 -> 
B18: 2024-03-10 | H18: 0 | I18: 0 | L18: ='08'!L18 -> Accident non profes.: | M18: 1/1 | N18: =RS_ANP_Plus -> 0.01607 | P18: =$Q$13*N18 -> 
B19: 2024-03-11 | H19: 0 | I19: 0 | L19: ='08'!L19 -> Indemnité journalière MC : | M19: 1/2 | N19: =RS_MC_Plus -> 0.0044 | P19: =$Q$13*N19 -> 
B20: 2024-03-12 | H20: 0 | I20: 0 | L20: ='08'!L20 -> Autre déduction :
B21: 2024-03-13 | H21: 0 | I21: 0 | L21: ='08'!L21 ->  | P21: =IF(PN_EffMoy=0,I40,IF(Nb_Mois=12,Sa_NatureMensuelArrondi,Sa_NatureMensuelArrondi*C40/H42)) -> 
B22: 2024-03-14 | H22: 0 | I22: 0 | L22: ='08'!L22 -> *) Dès le 1er janvier de l'année des 18 ans de l'apprenti(e)
B23: 2024-03-15 | H23: 0 | I23: 0
B24: 2024-03-16 | H24: 0 | I24: 0 | L24: ='08'!L24 -> A déduire | Q24: =INT((SUM(P16:P21)*20)+0.5)/20 -> 
B25: 2024-03-17 | H25: 0 | I25: 0
B26: 2024-03-18 | H26: 0 | I26: 0 | L26: ='08'!L26 -> Frais et remboursement
B27: 2024-03-19 | H27: 0 | I27: 0 | L27: ='08'!L27 -> Frais :
B28: 2024-03-20 | H28: 0 | I28: 0 | L28: ='08'!L28 -> Autre remboursement :
B29: 2024-03-21 | H29: 0 | I29: 0
B30: 2024-03-22 | H30: 0 | I30: 0 | L30: ='08'!L30 -> A ajouter | Q30: =SUM(P27:P28) -> 0
B31: 2024-03-23 | H31: 0 | I31: 0
B32: 2024-03-24 | H32: 0 | I32: 0 | L32: ='08'!L32 -> Versement du mois | Q32: =Q13+Q30-Q24 -> 
B33: 2024-03-25 | H33: 0 | I33: 0 | M33: ='08'!M33 -> Mois courant | N33: ='08'!N33 -> Cumul mois précédents | O33: ='08'!O33 -> Prévus annuellement | Q33: ='08'!Q33 -> Solde actuel
B34: 2024-03-26 | H34: 0 | I34: 0 | L34: ='08'!L34 -> Décompte des jours | M34: ='08'!M34 -> 0 | N34: ='08'!N34 -> 0 | O34: ='08'!O34 -> 0 | Q34: ='08'!Q34 -> 0
B35: 2024-03-27 | H35: 0 | I35: 0 | L35: ='08'!L35 -> Travail : | M35: =H43 -> 0 | N35: 0 | O35: =NJ_Travail ->  | Q35: =O35-N35-M35 -> 
B36: 2024-03-28 | H36: 0 | I36: 0 | L36: ='08'!L36 -> Cours prof. : | M36: 0 | N36: 0 | O36: =NJ_CoursProf -> 
B37: 2024-03-29 | H37: 0 | I37: 0 | L37: ='08'!L37 -> Cours IE : | M37: 0 | N37: 0 | O37: =NJ_CoursIE -> 
B38: 2024-03-30 | H38: 0 | I38: 0 | L38: ='08'!L38 -> Armée : | M38: 0 | N38: 0 | O38: =NJ_Bloc -> 0 | Q38: 0
B39: 2024-03-31 | H39: 0 | I39: 0 | L39: ='08'!L39 -> Congés : | M39: =H47 -> 0 | N39: 0 | O39: =NJ_Conge -> 
B40: ='08'!B40 -> Total | C40: =COUNTIF(C9:C39,"a")+COUNTIF(C9:C39,"b")+COUNTIF(C9:C39,"c")+COUNTIF(C9:C39,"d")+COUNTIF(C9:C39,"e")+COUNTIF(C9:C39,"f")+COUNTIF(C9:C39,"g")+COUNTIF(C9:C39,"h")+COUNTIF(C9:C39,"i") -> 0 | D40: =SUM(D9:D39) -> 0 | E40: 0 | F40: 0 | G40: 0 | H40: 0 | I40: 0 | J40: =INT(((Sa_NatureMensuel / H42 *C40)*20)+0.5)/20 ->  | L40: ='08'!L40 -> Vacances : | M40: 0 | N40: 0 | O40: =NJ_Vacances -> 
H41: =B3 -> 2024-03-01 | I41: ='08'!I41 -> cumul | L41: ='08'!L41 -> Accident : | M41: 0 | N41: 0 | O41: 0 | Q41: 0
B42: ='08'!B42 -> Décompte des jours | C42: ='08'!C42 ->  | D42: ='08'!D42 ->  | E42: ='08'!E42 ->  | F42: ='08'!F42 ->  | G42: ='08'!G42 ->  | H42: 31 | I42: =SUM('02'!H42:I42) -> 213 | L42: ='08'!L42 -> Maladie : | M42: 0 | N42: 0 | O42: 0 | Q42: 0
B43: ='08'!B43 -> Jours de travail (a) : | C43: ='08'!C43 ->  | D43: ='08'!D43 ->  | E43: ='08'!E43 ->  | F43: ='08'!F43 ->  | G43: ='08'!G43 ->  | H43: =COUNTIF(C9:C39,"a")+COUNTIF(C9:C39,"f")/2 -> 0 | I43: =SUM('02'!H43:I43) -> 0
B44: ='08'!B44 -> Cours professionnels (b) : | C44: ='08'!C44 ->  | D44: ='08'!D44 ->  | E44: ='08'!E44 ->  | F44: ='08'!F44 ->  | G44: ='08'!G44 ->  | H44: =COUNTIF(C9:C39,"b") -> 0 | I44: =SUM('02'!H44:I44) -> 0 | L44: ='08'!L44 -> Remarques :
B45: ='08'!B45 -> Cours interentreprises (c) : | C45: ='08'!C45 ->  | D45: ='08'!D45 ->  | E45: ='08'!E45 ->  | F45: ='08'!F45 ->  | G45: ='08'!G45 ->  | H45: =COUNTIF(C9:C39,"c") -> 0 | I45: =SUM('02'!H45:I45) -> 0
B46: ='08'!B46 -> Armée (i) : | C46: ='08'!C46 ->  | D46: ='08'!D46 ->  | E46: ='08'!E46 ->  | F46: ='08'!F46 ->  | G46: ='08'!G46 ->  | H46: =COUNTIF(C9:C39,"i") -> 0 | I46: =SUM('02'!H46:I46) -> 0
B47: ='08'!B47 -> Congé (d) : | C47: ='08'!C47 ->  | D47: ='08'!D47 ->  | E47: ='08'!E47 ->  | F47: ='08'!F47 ->  | G47: ='08'!G47 ->  | H47: =COUNTIF(C9:C39,"d")+COUNTIF(C9:C39,"f")/2 -> 0 | I47: =SUM('02'!H47:I47) -> 0
A48: 289 | B48: ='08'!B48 -> Vacances (e) : | C48: ='08'!C48 ->  | D48: ='08'!D48 ->  | E48: ='08'!E48 ->  | F48: ='08'!F48 ->  | G48: ='08'!G48 ->  | H48: =COUNTIF(C9:C39,"e") -> 0 | I48: =SUM('02'!H48:I48) -> 0 | L48: ='08'!L48 -> Date : | O48: ='08'!O48 -> Maître d'apprentissage :
A49: 290 | B49: ='08'!B49 -> Accident (g) : | C49: ='08'!C49 ->  | D49: ='08'!D49 ->  | E49: ='08'!E49 ->  | F49: ='08'!F49 ->  | G49: ='08'!G49 ->  | H49: =COUNTIF(C9:C39,"g") -> 0 | I49: =SUM('02'!H49:I49) -> 0
A50: 291 | B50: ='08'!B50 -> Maladie (h) : | C50: ='08'!C50 ->  | D50: ='08'!D50 ->  | E50: ='08'!E50 ->  | F50: ='08'!F50 ->  | G50: ='08'!G50 ->  | H50: =COUNTIF(C9:C39,"h") -> 0 | I50: =SUM('02'!H50:I50) -> 0 | O50: ='08'!O50 -> Apprenti(e) :

Sheet 04
B1: ='08'!B1 -> Agenda | L1: ='08'!L1 -> Décompte salaire mensuel
B2: ='08'!B2 -> Apprenti(e) | C2: ="- " & TRIM(DB_Apprenti) & " -" -> - -
B3: =DATE(DB_Annee+1,4,1) -> 2024-04-01 | C3: ='08'!C3 -> [ a-b-c-d-e-f-g-h-i ] | D3: ='08'!D3 -> Logis | E3: ='08'!E3 -> Déjeuner | F3: ='08'!F3 -> Dîner | G3: ='08'!G3 -> Souper | H3: ='08'!H3 -> Montant des Prestations en nature | I3: ='08'!I3 -> Montant modifié | J3: ='08'!J3 -> Commentaires a = Jour de travail b = Jour de cours professionel c = Jour de cours interentreprises d = Jour de congé e = Jour de vacances f = 1/2 jour de travail, 1/2 jour de congé g = Accident (jour entier) h = Maladie (jour entier) i = Armée | L3: ='08'!L3 -> Mois : | M3: =B3 -> 2024-04-01 | O3: ='08'!O3 -> Année : | P3: ='08'!P3 -> 0 | Q3: =B3 -> 2024-04-01
C4: ='08'!C4 -> 0 | D4: ='08'!D4 -> 0 | E4: ='08'!E4 -> 0 | F4: ='08'!F4 -> 0 | G4: ='08'!G4 -> 0 | H4: ='08'!H4 -> 0 | I4: ='08'!I4 -> 0 | J4: ='08'!J4 -> 0
C5: ='08'!C5 -> 0 | D5: ='08'!D5 -> 0 | E5: ='08'!E5 -> 0 | F5: ='08'!F5 -> 0 | G5: ='08'!G5 -> 0 | H5: ='08'!H5 -> 0 | I5: ='08'!I5 -> 0 | J5: ='08'!J5 -> 0 | L5: ='08'!L5 -> Maître d'apprentissage : | M5: =TRIM(DB_Maitre) -> 
C6: ='08'!C6 -> 0 | D6: ='08'!D6 -> 0 | E6: ='08'!E6 -> 0 | F6: ='08'!F6 -> 0 | G6: ='08'!G6 -> 0 | H6: ='08'!H6 -> 0 | I6: ='08'!I6 -> 0 | J6: ='08'!J6 -> 0 | L6: ='08'!L6 -> Lieu : | M6: =TRIM(DB_MaitreLieu) -> 
C7: ='08'!C7 -> 0 | D7: ='08'!D7 -> 0 | E7: ='08'!E7 -> 0 | F7: ='08'!F7 -> 0 | G7: ='08'!G7 -> 0 | H7: ='08'!H7 -> 0 | I7: ='08'!I7 -> 0 | J7: ='08'!J7 -> 0 | L7: ='08'!L7 -> Apprenti : | M7: =TRIM(DB_Apprenti) -> 
C8: ='08'!C8 -> 0 | D8: ='08'!D8 -> 0 | E8: ='08'!E8 -> 0 | F8: ='08'!F8 -> 0 | G8: ='08'!G8 -> 0 | H8: ='08'!H8 -> 0 | I8: ='08'!I8 -> 0 | J8: ='08'!J8 -> 0 | L8: ='08'!L8 -> N° AVS : | M8: =TRIM(DB_AVS) ->  | P8: ='08'!P8 -> Date de naissance : | Q8: =IF(DB_DateNaissance=0,"",DB_DateNaissance) -> 
B9: =B3 -> 2024-04-01 | H9: =MAX(IF(C9="a",PN_Travail,IF(C9="b",PN_CoursProf,IF(C9="c",PN_CoursIE,IF(C9="d",PN_Conge,0)))),IF(C9="e",PN_Vacances,IF(C9="f",PN_DemiJour,IF(C9="g",PN_Accident,IF(C9="h",PN_Maladie,IF(C9="i",PN_Armee,0)))))) -> 0 | I9: =H9+D9*PN_Logis_Plus+E9*PN_Dejeuner_Plus+F9*PN_Diner_Plus+G9*PN_Souper_Plus -> 0
B10: =B9+1 -> 2024-04-02 | H10: 0 | I10: 0
A11: 230 | B11: =B10+1 -> 2024-04-03 | H11: 0 | I11: 0 | L11: ='08'!L11 -> Salaire brut | M11: =IF(PN_EffMoy=0,SUBSTITUTE(VLOOKUP(A11+1,Tb_Traduction,DB_Langue,FALSE),"***",TEXT(J40,"0.00")),"") ->  | Q11: =IF(OR(PN_EffMoy=0,Nb_Mois<>12),Sa_BaseMensuelArrondi / H42 *C40,Sa_BaseMensuelArrondi) -> 
B12: 2024-04-04 | H12: 0 | I12: 0 | L12: ='08'!L12 -> Prime, bonus, gratification
B13: 2024-04-05 | H13: 0 | I13: 0 | L13: ='08'!L13 -> Salaire brut total | Q13: =SUM(Q11:Q12) -> 
B14: 2024-04-06 | H14: 0 | I14: 0
B15: 2024-04-07 | H15: 0 | I15: 0 | L15: ='08'!L15 -> Déductions | M15: ='08'!M15 -> Part | N15: %
B16: 2024-04-08 | H16: 0 | I16: 0 | L16: ='08'!L16 -> Cotisations AVS, AI, APG* : | M16: 1/2 | N16: =IF(B3>=DB_SoumisAVS,RS_AVS_Plus,0) -> 0.053 | P16: =$Q$13*N16 -> 
B17: 2024-04-09 | H17: 0 | I17: 0 | L17: ='08'!L17 -> Cotisations AC* : | M17: 1/2 | N17: =IF(B3>=DB_SoumisAVS,RS_AC_Plus,0) -> 0.011 | P17: =$Q$13*N17 -> 
B18: 2024-04-10 | H18: 0 | I18: 0 | L18: ='08'!L18 -> Accident non profes.: | M18: 1/1 | N18: =RS_ANP_Plus -> 0.01607 | P18: =$Q$13*N18 -> 
B19: 2024-04-11 | H19: 0 | I19: 0 | L19: ='08'!L19 -> Indemnité journalière MC : | M19: 1/2 | N19: =RS_MC_Plus -> 0.0044 | P19: =$Q$13*N19 -> 
B20: 2024-04-12 | H20: 0 | I20: 0 | L20: ='08'!L20 -> Autre déduction :
B21: 2024-04-13 | H21: 0 | I21: 0 | L21: ='08'!L21 ->  | P21: =IF(PN_EffMoy=0,I40,IF(Nb_Mois=12,Sa_NatureMensuelArrondi,Sa_NatureMensuelArrondi*C40/H42)) -> 
B22: 2024-04-14 | H22: 0 | I22: 0 | L22: ='08'!L22 -> *) Dès le 1er janvier de l'année des 18 ans de l'apprenti(e)
B23: 2024-04-15 | H23: 0 | I23: 0
B24: 2024-04-16 | H24: 0 | I24: 0 | L24: ='08'!L24 -> A déduire | Q24: =INT((SUM(P16:P21)*20)+0.5)/20 -> 
B25: 2024-04-17 | H25: 0 | I25: 0
B26: 2024-04-18 | H26: 0 | I26: 0 | L26: ='08'!L26 -> Frais et remboursement
B27: 2024-04-19 | H27: 0 | I27: 0 | L27: ='08'!L27 -> Frais :
B28: 2024-04-20 | H28: 0 | I28: 0 | L28: ='08'!L28 -> Autre remboursement :
B29: 2024-04-21 | H29: 0 | I29: 0
B30: 2024-04-22 | H30: 0 | I30: 0 | L30: ='08'!L30 -> A ajouter | Q30: =SUM(P27:P28) -> 0
B31: 2024-04-23 | H31: 0 | I31: 0
B32: 2024-04-24 | H32: 0 | I32: 0 | L32: ='08'!L32 -> Versement du mois | Q32: =Q13+Q30-Q24 -> 
B33: 2024-04-25 | H33: 0 | I33: 0 | M33: ='08'!M33 -> Mois courant | N33: ='08'!N33 -> Cumul mois précédents | O33: ='08'!O33 -> Prévus annuellement | Q33: ='08'!Q33 -> Solde actuel
B34: 2024-04-26 | H34: 0 | I34: 0 | L34: ='08'!L34 -> Décompte des jours | M34: ='08'!M34 -> 0 | N34: ='08'!N34 -> 0 | O34: ='08'!O34 -> 0 | Q34: ='08'!Q34 -> 0
B35: 2024-04-27 | H35: 0 | I35: 0 | L35: ='08'!L35 -> Travail : | M35: =H43 -> 0 | N35: 0 | O35: =NJ_Travail ->  | Q35: =O35-N35-M35 -> 
B36: 2024-04-28 | H36: 0 | I36: 0 | L36: ='08'!L36 -> Cours prof. : | M36: 0 | N36: 0 | O36: =NJ_CoursProf -> 
B37: 2024-04-29 | H37: 0 | I37: 0 | L37: ='08'!L37 -> Cours IE : | M37: 0 | N37: 0 | O37: =NJ_CoursIE -> 
B38: 2024-04-30 | H38: 0 | I38: 0 | L38: ='08'!L38 -> Armée : | M38: 0 | N38: 0 | O38: =NJ_Bloc -> 0 | Q38: 0
H39: 0 | I39: 0 | L39: ='08'!L39 -> Congés : | M39: =H47 -> 0 | N39: 0 | O39: =NJ_Conge -> 
B40: ='08'!B40 -> Total | C40: =COUNTIF(C9:C39,"a")+COUNTIF(C9:C39,"b")+COUNTIF(C9:C39,"c")+COUNTIF(C9:C39,"d")+COUNTIF(C9:C39,"e")+COUNTIF(C9:C39,"f")+COUNTIF(C9:C39,"g")+COUNTIF(C9:C39,"h")+COUNTIF(C9:C39,"i") -> 0 | D40: =SUM(D9:D39) -> 0 | E40: 0 | F40: 0 | G40: 0 | H40: 0 | I40: 0 | J40: =INT(((Sa_NatureMensuel / H42 *C40)*20)+0.5)/20 ->  | L40: ='08'!L40 -> Vacances : | M40: 0 | N40: 0 | O40: =NJ_Vacances -> 
H41: =B3 -> 2024-04-01 | I41: ='08'!I41 -> cumul | L41: ='08'!L41 -> Accident : | M41: 0 | N41: 0 | O41: 0 | Q41: 0
B42: ='08'!B42 -> Décompte des jours | C42: ='08'!C42 ->  | D42: ='08'!D42 ->  | E42: ='08'!E42 ->  | F42: ='08'!F42 ->  | G42: ='08'!G42 ->  | H42: 30 | I42: =SUM('03'!H42:I42) -> 244 | L42: ='08'!L42 -> Maladie : | M42: 0 | N42: 0 | O42: 0 | Q42: 0
B43: ='08'!B43 -> Jours de travail (a) : | C43: ='08'!C43 ->  | D43: ='08'!D43 ->  | E43: ='08'!E43 ->  | F43: ='08'!F43 ->  | G43: ='08'!G43 ->  | H43: =COUNTIF(C9:C39,"a")+COUNTIF(C9:C39,"f")/2 -> 0 | I43: =SUM('03'!H43:I43) -> 0
B44: ='08'!B44 -> Cours professionnels (b) : | C44: ='08'!C44 ->  | D44: ='08'!D44 ->  | E44: ='08'!E44 ->  | F44: ='08'!F44 ->  | G44: ='08'!G44 ->  | H44: =COUNTIF(C9:C39,"b") -> 0 | I44: =SUM('03'!H44:I44) -> 0 | L44: ='08'!L44 -> Remarques :
B45: ='08'!B45 -> Cours interentreprises (c) : | C45: ='08'!C45 ->  | D45: ='08'!D45 ->  | E45: ='08'!E45 ->  | F45: ='08'!F45 ->  | G45: ='08'!G45 ->  | H45: =COUNTIF(C9:C39,"c") -> 0 | I45: =SUM('03'!H45:I45) -> 0
B46: ='08'!B46 -> Armée (i) : | C46: ='08'!C46 ->  | D46: ='08'!D46 ->  | E46: ='08'!E46 ->  | F46: ='08'!F46 ->  | G46: ='08'!G46 ->  | H46: =COUNTIF(C9:C39,"i") -> 0 | I46: =SUM('03'!H46:I46) -> 0
B47: ='08'!B47 -> Congé (d) : | C47: ='08'!C47 ->  | D47: ='08'!D47 ->  | E47: ='08'!E47 ->  | F47: ='08'!F47 ->  | G47: ='08'!G47 ->  | H47: =COUNTIF(C9:C39,"d")+COUNTIF(C9:C39,"f")/2 -> 0 | I47: =SUM('03'!H47:I47) -> 0
A48: 289 | B48: ='08'!B48 -> Vacances (e) : | C48: ='08'!C48 ->  | D48: ='08'!D48 ->  | E48: ='08'!E48 ->  | F48: ='08'!F48 ->  | G48: ='08'!G48 ->  | H48: =COUNTIF(C9:C39,"e") -> 0 | I48: =SUM('03'!H48:I48) -> 0 | L48: ='08'!L48 -> Date : | O48: ='08'!O48 -> Maître d'apprentissage :
A49: 290 | B49: ='08'!B49 -> Accident (g) : | C49: ='08'!C49 ->  | D49: ='08'!D49 ->  | E49: ='08'!E49 ->  | F49: ='08'!F49 ->  | G49: ='08'!G49 ->  | H49: =COUNTIF(C9:C39,"g") -> 0 | I49: =SUM('03'!H49:I49) -> 0
A50: 291 | B50: ='08'!B50 -> Maladie (h) : | C50: ='08'!C50 ->  | D50: ='08'!D50 ->  | E50: ='08'!E50 ->  | F50: ='08'!F50 ->  | G50: ='08'!G50 ->  | H50: =COUNTIF(C9:C39,"h") -> 0 | I50: =SUM('03'!H50:I50) -> 0 | O50: ='08'!O50 -> Apprenti(e) :

Sheet 05
B1: ='08'!B1 -> Agenda | L1: ='08'!L1 -> Décompte salaire mensuel
B2: ='08'!B2 -> Apprenti(e) | C2: ="- " & TRIM(DB_Apprenti) & " -" -> - -
B3: =DATE(DB_Annee+1,5,1) -> 2024-05-01 | C3: ='08'!C3 -> [ a-b-c-d-e-f-g-h-i ] | D3: ='08'!D3 -> Logis | E3: ='08'!E3 -> Déjeuner | F3: ='08'!F3 -> Dîner | G3: ='08'!G3 -> Souper | H3: ='08'!H3 -> Montant des Prestations en nature | I3: ='08'!I3 -> Montant modifié | J3: ='08'!J3 -> Commentaires a = Jour de travail b = Jour de cours professionel c = Jour de cours interentreprises d = Jour de congé e = Jour de vacances f = 1/2 jour de travail, 1/2 jour de congé g = Accident (jour entier) h = Maladie (jour entier) i = Armée | L3: ='08'!L3 -> Mois : | M3: =B3 -> 2024-05-01 | O3: ='08'!O3 -> Année : | P3: ='08'!P3 -> 0 | Q3: =B3 -> 2024-05-01
C4: ='08'!C4 -> 0 | D4: ='08'!D4 -> 0 | E4: ='08'!E4 -> 0 | F4: ='08'!F4 -> 0 | G4: ='08'!G4 -> 0 | H4: ='08'!H4 -> 0 | I4: ='08'!I4 -> 0 | J4: ='08'!J4 -> 0
C5: ='08'!C5 -> 0 | D5: ='08'!D5 -> 0 | E5: ='08'!E5 -> 0 | F5: ='08'!F5 -> 0 | G5: ='08'!G5 -> 0 | H5: ='08'!H5 -> 0 | I5: ='08'!I5 -> 0 | J5: ='08'!J5 -> 0 | L5: ='08'!L5 -> Maître d'apprentissage : | M5: =TRIM(DB_Maitre) -> 
C6: ='08'!C6 -> 0 | D6: ='08'!D6 -> 0 | E6: ='08'!E6 -> 0 | F6: ='08'!F6 -> 0 | G6: ='08'!G6 -> 0 | H6: ='08'!H6 -> 0 | I6: ='08'!I6 -> 0 | J6: ='08'!J6 -> 0 | L6: ='08'!L6 -> Lieu : | M6: =TRIM(DB_MaitreLieu) -> 
C7: ='08'!C7 -> 0 | D7: ='08'!D7 -> 0 | E7: ='08'!E7 -> 0 | F7: ='08'!F7 -> 0 | G7: ='08'!G7 -> 0 | H7: ='08'!H7 -> 0 | I7: ='08'!I7 -> 0 | J7: ='08'!J7 -> 0 | L7: ='08'!L7 -> Apprenti : | M7: =TRIM(DB_Apprenti) -> 
C8: ='08'!C8 -> 0 | D8: ='08'!D8 -> 0 | E8: ='08'!E8 -> 0 | F8: ='08'!F8 -> 0 | G8: ='08'!G8 -> 0 | H8: ='08'!H8 -> 0 | I8: ='08'!I8 -> 0 | J8: ='08'!J8 -> 0 | L8: ='08'!L8 -> N° AVS : | M8: =TRIM(DB_AVS) ->  | P8: ='08'!P8 -> Date de naissance : | Q8: =IF(DB_DateNaissance=0,"",DB_DateNaissance) -> 
B9: =B3 -> 2024-05-01 | H9: =MAX(IF(C9="a",PN_Travail,IF(C9="b",PN_CoursProf,IF(C9="c",PN_CoursIE,IF(C9="d",PN_Conge,0)))),IF(C9="e",PN_Vacances,IF(C9="f",PN_DemiJour,IF(C9="g",PN_Accident,IF(C9="h",PN_Maladie,IF(C9="i",PN_Armee,0)))))) -> 0 | I9: =H9+D9*PN_Logis_Plus+E9*PN_Dejeuner_Plus+F9*PN_Diner_Plus+G9*PN_Souper_Plus -> 0
B10: =B9+1 -> 2024-05-02 | H10: 0 | I10: 0
A11: 230 | B11: =B10+1 -> 2024-05-03 | H11: 0 | I11: 0 | L11: ='08'!L11 -> Salaire brut | M11: =IF(PN_EffMoy=0,SUBSTITUTE(VLOOKUP(A11+1,Tb_Traduction,DB_Langue,FALSE),"***",TEXT(J40,"0.00")),"") ->  | Q11: =IF(OR(PN_EffMoy=0,Nb_Mois<>12),Sa_BaseMensuelArrondi / H42 *C40,Sa_BaseMensuelArrondi) -> 
B12: 2024-05-04 | H12: 0 | I12: 0 | L12: ='08'!L12 -> Prime, bonus, gratification
B13: 2024-05-05 | H13: 0 | I13: 0 | L13: ='08'!L13 -> Salaire brut total | Q13: =SUM(Q11:Q12) -> 
B14: 2024-05-06 | H14: 0 | I14: 0
B15: 2024-05-07 | H15: 0 | I15: 0 | L15: ='08'!L15 -> Déductions | M15: ='08'!M15 -> Part | N15: %
B16: 2024-05-08 | H16: 0 | I16: 0 | L16: ='08'!L16 -> Cotisations AVS, AI, APG* : | M16: 1/2 | N16: =IF(B3>=DB_SoumisAVS,RS_AVS_Plus,0) -> 0.053 | P16: =$Q$13*N16 -> 
B17: 2024-05-09 | H17: 0 | I17: 0 | L17: ='08'!L17 -> Cotisations AC* : | M17: 1/2 | N17: =IF(B3>=DB_SoumisAVS,RS_AC_Plus,0) -> 0.011 | P17: =$Q$13*N17 -> 
B18: 2024-05-10 | H18: 0 | I18: 0 | L18: ='08'!L18 -> Accident non profes.: | M18: 1/1 | N18: =RS_ANP_Plus -> 0.01607 | P18: =$Q$13*N18 -> 
B19: 2024-05-11 | H19: 0 | I19: 0 | L19: ='08'!L19 -> Indemnité journalière MC : | M19: 1/2 | N19: =RS_MC_Plus -> 0.0044 | P19: =$Q$13*N19 -> 
B20: 2024-05-12 | H20: 0 | I20: 0 | L20: ='08'!L20 -> Autre déduction :
B21: 2024-05-13 | H21: 0 | I21: 0 | L21: ='08'!L21 ->  | P21: =IF(PN_EffMoy=0,I40,IF(Nb_Mois=12,Sa_NatureMensuelArrondi,Sa_NatureMensuelArrondi*C40/H42)) -> 
B22: 2024-05-14 | H22: 0 | I22: 0 | L22: ='08'!L22 -> *) Dès le 1er janvier de l'année des 18 ans de l'apprenti(e)
B23: 2024-05-15 | H23: 0 | I23: 0
B24: 2024-05-16 | H24: 0 | I24: 0 | L24: ='08'!L24 -> A déduire | Q24: =INT((SUM(P16:P21)*20)+0.5)/20 -> 
B25: 2024-05-17 | H25: 0 | I25: 0
B26: 2024-05-18 | H26: 0 | I26: 0 | L26: ='08'!L26 -> Frais et remboursement
B27: 2024-05-19 | H27: 0 | I27: 0 | L27: ='08'!L27 -> Frais :
B28: 2024-05-20 | H28: 0 | I28: 0 | L28: ='08'!L28 -> Autre remboursement :
B29: 2024-05-21 | H29: 0 | I29: 0
B30: 2024-05-22 | H30: 0 | I30: 0 | L30: ='08'!L30 -> A ajouter | Q30: =SUM(P27:P28) -> 0
B31: 2024-05-23 | H31: 0 | I31: 0
B32: 2024-05-24 | H32: 0 | I32: 0 | L32: ='08'!L32 -> Versement du mois | Q32: =Q13+Q30-Q24 -> 
B33: 2024-05-25 | H33: 0 | I33: 0 | M33: ='08'!M33 -> Mois courant | N33: ='08'!N33 -> Cumul mois précédents | O33: ='08'!O33 -> Prévus annuellement | Q33: ='08'!Q33 -> Solde actuel
B34: 2024-05-26 | H34: 0 | I34: 0 | L34: ='08'!L34 -> Décompte des jours | M34: ='08'!M34 -> 0 | N34: ='08'!N34 -> 0 | O34: ='08'!O34 -> 0 | Q34: ='08'!Q34 -> 0
B35: 2024-05-27 | H35: 0 | I35: 0 | L35: ='08'!L35 -> Travail : | M35: =H43 -> 0 | N35: 0 | O35: =NJ_Travail ->  | Q35: =O35-N35-M35 -> 
B36: 2024-05-28 | H36: 0 | I36: 0 | L36: ='08'!L36 -> Cours prof. : | M36: 0 | N36: 0 | O36: =NJ_CoursProf -> 
B37: 2024-05-29 | H37: 0 | I37: 0 | L37: ='08'!L37 -> Cours IE : | M37: 0 | N37: 0 | O37: =NJ_CoursIE -> 
B38: 2024-05-30 | H38: 0 | I38: 0 | L38: ='08'!L38 -> Armée : | M38: 0 | N38: 0 | O38: =NJ_Bloc -> 0 | Q38: 0
B39: 2024-05-31 | H39: 0 | I39: 0 | L39: ='08'!L39 -> Congés : | M39: =H47 -> 0 | N39: 0 | O39: =NJ_Conge -> 
B40: ='08'!B40 -> Total | C40: =COUNTIF(C9:C39,"a")+COUNTIF(C9:C39,"b")+COUNTIF(C9:C39,"c")+COUNTIF(C9:C39,"d")+COUNTIF(C9:C39,"e")+COUNTIF(C9:C39,"f")+COUNTIF(C9:C39,"g")+COUNTIF(C9:C39,"h")+COUNTIF(C9:C39,"i") -> 0 | D40: =SUM(D9:D39) -> 0 | E40: 0 | F40: 0 | G40: 0 | H40: 0 | I40: 0 | J40: =INT(((Sa_NatureMensuel / H42 *C40)*20)+0.5)/20 ->  | L40: ='08'!L40 -> Vacances : | M40: 0 | N40: 0 | O40: =NJ_Vacances -> 
H41: =B3 -> 2024-05-01 | I41: ='08'!I41 -> cumul | L41: ='08'!L41 -> Accident : | M41: 0 | N41: 0 | O41: 0 | Q41: 0
B42: ='08'!B42 -> Décompte des jours | C42: ='08'!C42 ->  | D42: ='08'!D42 ->  | E42: ='08'!E42 ->  | F42: ='08'!F42 ->  | G42: ='08'!G42 ->  | H42: 31 | I42: =SUM('04'!H42:I42) -> 274 | L42: ='08'!L42 -> Maladie : | M42: 0 | N42: 0 | O42: 0 | Q42: 0
B43: ='08'!B43 -> Jours de travail (a) : | C43: ='08'!C43 ->  | D43: ='08'!D43 ->  | E43: ='08'!E43 ->  | F43: ='08'!F43 ->  | G43: ='08'!G43 ->  | H43: =COUNTIF(C9:C39,"a")+COUNTIF(C9:C39,"f")/2 -> 0 | I43: =SUM('04'!H43:I43) -> 0
B44: ='08'!B44 -> Cours professionnels (b) : | C44: ='08'!C44 ->  | D44: ='08'!D44 ->  | E44: ='08'!E44 ->  | F44: ='08'!F44 ->  | G44: ='08'!G44 ->  | H44: =COUNTIF(C9:C39,"b") -> 0 | I44: =SUM('04'!H44:I44) -> 0 | L44: ='08'!L44 -> Remarques :
B45: ='08'!B45 -> Cours interentreprises (c) : | C45: ='08'!C45 ->  | D45: ='08'!D45 ->  | E45: ='08'!E45 ->  | F45: ='08'!F45 ->  | G45: ='08'!G45 ->  | H45: =COUNTIF(C9:C39,"c") -> 0 | I45: =SUM('04'!H45:I45) -> 0
B46: ='08'!B46 -> Armée (i) : | C46: ='08'!C46 ->  | D46: ='08'!D46 ->  | E46: ='08'!E46 ->  | F46: ='08'!F46 ->  | G46: ='08'!G46 ->  | H46: =COUNTIF(C9:C39,"i") -> 0 | I46: =SUM('04'!H46:I46) -> 0
B47: ='08'!B47 -> Congé (d) : | C47: ='08'!C47 ->  | D47: ='08'!D47 ->  | E47: ='08'!E47 ->  | F47: ='08'!F47 ->  | G47: ='08'!G47 ->  | H47: =COUNTIF(C9:C39,"d")+COUNTIF(C9:C39,"f")/2 -> 0 | I47: =SUM('04'!H47:I47) -> 0
A48: 289 | B48: ='08'!B48 -> Vacances (e) : | C48: ='08'!C48 ->  | D48: ='08'!D48 ->  | E48: ='08'!E48 ->  | F48: ='08'!F48 ->  | G48: ='08'!G48 ->  | H48: =COUNTIF(C9:C39,"e") -> 0 | I48: =SUM('04'!H48:I48) -> 0 | L48: ='08'!L48 -> Date : | O48: ='08'!O48 -> Maître d'apprentissage :
A49: 290 | B49: ='08'!B49 -> Accident (g) : | C49: ='08'!C49 ->  | D49: ='08'!D49 ->  | E49: ='08'!E49 ->  | F49: ='08'!F49 ->  | G49: ='08'!G49 ->  | H49: =COUNTIF(C9:C39,"g") -> 0 | I49: =SUM('04'!H49:I49) -> 0
A50: 291 | B50: ='08'!B50 -> Maladie (h) : | C50: ='08'!C50 ->  | D50: ='08'!D50 ->  | E50: ='08'!E50 ->  | F50: ='08'!F50 ->  | G50: ='08'!G50 ->  | H50: =COUNTIF(C9:C39,"h") -> 0 | I50: =SUM('04'!H50:I50) -> 0 | O50: ='08'!O50 -> Apprenti(e) :

Sheet 06
B1: ='08'!B1 -> Agenda | L1: ='08'!L1 -> Décompte salaire mensuel
B2: ='08'!B2 -> Apprenti(e) | C2: ="- " & TRIM(DB_Apprenti) & " -" -> - -
B3: =DATE(DB_Annee+1,6,1) -> 2024-06-01 | C3: ='08'!C3 -> [ a-b-c-d-e-f-g-h-i ] | D3: ='08'!D3 -> Logis | E3: ='08'!E3 -> Déjeuner | F3: ='08'!F3 -> Dîner | G3: ='08'!G3 -> Souper | H3: ='08'!H3 -> Montant des Prestations en nature | I3: ='08'!I3 -> Montant modifié | J3: ='08'!J3 -> Commentaires a = Jour de travail b = Jour de cours professionel c = Jour de cours interentreprises d = Jour de congé e = Jour de vacances f = 1/2 jour de travail, 1/2 jour de congé g = Accident (jour entier) h = Maladie (jour entier) i = Armée | L3: ='08'!L3 -> Mois : | M3: =B3 -> 2024-06-01 | O3: ='08'!O3 -> Année : | P3: ='08'!P3 -> 0 | Q3: =B3 -> 2024-06-01
C4: ='08'!C4 -> 0 | D4: ='08'!D4 -> 0 | E4: ='08'!E4 -> 0 | F4: ='08'!F4 -> 0 | G4: ='08'!G4 -> 0 | H4: ='08'!H4 -> 0 | I4: ='08'!I4 -> 0 | J4: ='08'!J4 -> 0
C5: ='08'!C5 -> 0 | D5: ='08'!D5 -> 0 | E5: ='08'!E5 -> 0 | F5: ='08'!F5 -> 0 | G5: ='08'!G5 -> 0 | H5: ='08'!H5 -> 0 | I5: ='08'!I5 -> 0 | J5: ='08'!J5 -> 0 | L5: ='08'!L5 -> Maître d'apprentissage : | M5: =TRIM(DB_Maitre) -> 
C6: ='08'!C6 -> 0 | D6: ='08'!D6 -> 0 | E6: ='08'!E6 -> 0 | F6: ='08'!F6 -> 0 | G6: ='08'!G6 -> 0 | H6: ='08'!H6 -> 0 | I6: ='08'!I6 -> 0 | J6: ='08'!J6 -> 0 | L6: ='08'!L6 -> Lieu : | M6: =TRIM(DB_MaitreLieu) -> 
C7: ='08'!C7 -> 0 | D7: ='08'!D7 -> 0 | E7: ='08'!E7 -> 0 | F7: ='08'!F7 -> 0 | G7: ='08'!G7 -> 0 | H7: ='08'!H7 -> 0 | I7: ='08'!I7 -> 0 | J7: ='08'!J7 -> 0 | L7: ='08'!L7 -> Apprenti : | M7: =TRIM(DB_Apprenti) -> 
C8: ='08'!C8 -> 0 | D8: ='08'!D8 -> 0 | E8: ='08'!E8 -> 0 | F8: ='08'!F8 -> 0 | G8: ='08'!G8 -> 0 | H8: ='08'!H8 -> 0 | I8: ='08'!I8 -> 0 | J8: ='08'!J8 -> 0 | L8: ='08'!L8 -> N° AVS : | M8: =TRIM(DB_AVS) ->  | P8: ='08'!P8 -> Date de naissance : | Q8: =IF(DB_DateNaissance=0,"",DB_DateNaissance) -> 
B9: =B3 -> 2024-06-01 | H9: =MAX(IF(C9="a",PN_Travail,IF(C9="b",PN_CoursProf,IF(C9="c",PN_CoursIE,IF(C9="d",PN_Conge,0)))),IF(C9="e",PN_Vacances,IF(C9="f",PN_DemiJour,IF(C9="g",PN_Accident,IF(C9="h",PN_Maladie,IF(C9="i",PN_Armee,0)))))) -> 0 | I9: =H9+D9*PN_Logis_Plus+E9*PN_Dejeuner_Plus+F9*PN_Diner_Plus+G9*PN_Souper_Plus -> 0
B10: =B9+1 -> 2024-06-02 | H10: 0 | I10: 0
A11: 230 | B11: =B10+1 -> 2024-06-03 | H11: 0 | I11: 0 | L11: ='08'!L11 -> Salaire brut | M11: =IF(PN_EffMoy=0,SUBSTITUTE(VLOOKUP(A11+1,Tb_Traduction,DB_Langue,FALSE),"***",TEXT(J40,"0.00")),"") ->  | Q11: =IF(OR(PN_EffMoy=0,Nb_Mois<>12),Sa_BaseMensuelArrondi / H42 *C40,Sa_BaseMensuelArrondi) -> 
B12: 2024-06-04 | H12: 0 | I12: 0 | L12: ='08'!L12 -> Prime, bonus, gratification
B13: 2024-06-05 | H13: 0 | I13: 0 | L13: ='08'!L13 -> Salaire brut total | Q13: =SUM(Q11:Q12) -> 
B14: 2024-06-06 | H14: 0 | I14: 0
B15: 2024-06-07 | H15: 0 | I15: 0 | L15: ='08'!L15 -> Déductions | M15: ='08'!M15 -> Part | N15: %
B16: 2024-06-08 | H16: 0 | I16: 0 | L16: ='08'!L16 -> Cotisations AVS, AI, APG* : | M16: 1/2 | N16: =IF(B3>=DB_SoumisAVS,RS_AVS_Plus,0) -> 0.053 | P16: =$Q$13*N16 -> 
B17: 2024-06-09 | H17: 0 | I17: 0 | L17: ='08'!L17 -> Cotisations AC* : | M17: 1/2 | N17: =IF(B3>=DB_SoumisAVS,RS_AC_Plus,0) -> 0.011 | P17: =$Q$13*N17 -> 
B18: 2024-06-10 | H18: 0 | I18: 0 | L18: ='08'!L18 -> Accident non profes.: | M18: 1/1 | N18: =RS_ANP_Plus -> 0.01607 | P18: =$Q$13*N18 -> 
B19: 2024-06-11 | H19: 0 | I19: 0 | L19: ='08'!L19 -> Indemnité journalière MC : | M19: 1/2 | N19: =RS_MC_Plus -> 0.0044 | P19: =$Q$13*N19 -> 
B20: 2024-06-12 | H20: 0 | I20: 0 | L20: ='08'!L20 -> Autre déduction :
B21: 2024-06-13 | H21: 0 | I21: 0 | L21: ='08'!L21 ->  | P21: =IF(PN_EffMoy=0,I40,IF(Nb_Mois=12,Sa_NatureMensuelArrondi,Sa_NatureMensuelArrondi*C40/H42)) -> 
B22: 2024-06-14 | H22: 0 | I22: 0 | L22: ='08'!L22 -> *) Dès le 1er janvier de l'année des 18 ans de l'apprenti(e)
B23: 2024-06-15 | H23: 0 | I23: 0
B24: 2024-06-16 | H24: 0 | I24: 0 | L24: ='08'!L24 -> A déduire | Q24: =INT((SUM(P16:P21)*20)+0.5)/20 -> 
B25: 2024-06-17 | H25: 0 | I25: 0
B26: 2024-06-18 | H26: 0 | I26: 0 | L26: ='08'!L26 -> Frais et remboursement
B27: 2024-06-19 | H27: 0 | I27: 0 | L27: ='08'!L27 -> Frais :
B28: 2024-06-20 | H28: 0 | I28: 0 | L28: ='08'!L28 -> Autre remboursement :
B29: 2024-06-21 | H29: 0 | I29: 0
B30: 2024-06-22 | H30: 0 | I30: 0 | L30: ='08'!L30 -> A ajouter | Q30: =SUM(P27:P28) -> 0
B31: 2024-06-23 | H31: 0 | I31: 0
B32: 2024-06-24 | H32: 0 | I32: 0 | L32: ='08'!L32 -> Versement du mois | Q32: =Q13+Q30-Q24 -> 
B33: 2024-06-25 | H33: 0 | I33: 0 | M33: ='08'!M33 -> Mois courant | N33: ='08'!N33 -> Cumul mois précédents | O33: ='08'!O33 -> Prévus annuellement | Q33: ='08'!Q33 -> Solde actuel
B34: 2024-06-26 | H34: 0 | I34: 0 | L34: ='08'!L34 -> Décompte des jours | M34: ='08'!M34 -> 0 | N34: ='08'!N34 -> 0 | O34: ='08'!O34 -> 0 | Q34: ='08'!Q34 -> 0
B35: 2024-06-27 | H35: 0 | I35: 0 | L35: ='08'!L35 -> Travail : | M35: =H43 -> 0 | N35: 0 | O35: =NJ_Travail ->  | Q35: =O35-N35-M35 -> 
B36: 2024-06-28 | H36: 0 | I36: 0 | L36: ='08'!L36 -> Cours prof. : | M36: 0 | N36: 0 | O36: =NJ_CoursProf -> 
B37: 2024-06-29 | H37: 0 | I37: 0 | L37: ='08'!L37 -> Cours IE : | M37: 0 | N37: 0 | O37: =NJ_CoursIE -> 
B38: 2024-06-30 | H38: 0 | I38: 0 | L38: ='08'!L38 -> Armée : | M38: 0 | N38: 0 | O38: =NJ_Bloc -> 0 | Q38: 0
H39: 0 | I39: 0 | L39: ='08'!L39 -> Congés : | M39: =H47 -> 0 | N39: 0 | O39: =NJ_Conge -> 
B40: ='08'!B40 -> Total | C40: =COUNTIF(C9:C39,"a")+COUNTIF(C9:C39,"b")+COUNTIF(C9:C39,"c")+COUNTIF(C9:C39,"d")+COUNTIF(C9:C39,"e")+COUNTIF(C9:C39,"f")+COUNTIF(C9:C39,"g")+COUNTIF(C9:C39,"h")+COUNTIF(C9:C39,"i") -> 0 | D40: =SUM(D9:D39) -> 0 | E40: 0 | F40: 0 | G40: 0 | H40: 0 | I40: 0 | J40: =INT(((Sa_NatureMensuel / H42 *C40)*20)+0.5)/20 ->  | L40: ='08'!L40 -> Vacances : | M40: 0 | N40: 0 | O40: =NJ_Vacances -> 
H41: =B3 -> 2024-06-01 | I41: ='08'!I41 -> cumul | L41: ='08'!L41 -> Accident : | M41: 0 | N41: 0 | O41: 0 | Q41: 0
B42: ='08'!B42 -> Décompte des jours | C42: ='08'!C42 ->  | D42: ='08'!D42 ->  | E42: ='08'!E42 ->  | F42: ='08'!F42 ->  | G42: ='08'!G42 ->  | H42: 30 | I42: =SUM('05'!H42:I42) -> 305 | L42: ='08'!L42 -> Maladie : | M42: 0 | N42: 0 | O42: 0 | Q42: 0
B43: ='08'!B43 -> Jours de travail (a) : | C43: ='08'!C43 ->  | D43: ='08'!D43 ->  | E43: ='08'!E43 ->  | F43: ='08'!F43 ->  | G43: ='08'!G43 ->  | H43: =COUNTIF(C9:C39,"a")+COUNTIF(C9:C39,"f")/2 -> 0 | I43: =SUM('05'!H43:I43) -> 0
B44: ='08'!B44 -> Cours professionnels (b) : | C44: ='08'!C44 ->  | D44: ='08'!D44 ->  | E44: ='08'!E44 ->  | F44: ='08'!F44 ->  | G44: ='08'!G44 ->  | H44: =COUNTIF(C9:C39,"b") -> 0 | I44: =SUM('05'!H44:I44) -> 0 | L44: ='08'!L44 -> Remarques :
B45: ='08'!B45 -> Cours interentreprises (c) : | C45: ='08'!C45 ->  | D45: ='08'!D45 ->  | E45: ='08'!E45 ->  | F45: ='08'!F45 ->  | G45: ='08'!G45 ->  | H45: =COUNTIF(C9:C39,"c") -> 0 | I45: =SUM('05'!H45:I45) -> 0
B46: ='08'!B46 -> Armée (i) : | C46: ='08'!C46 ->  | D46: ='08'!D46 ->  | E46: ='08'!E46 ->  | F46: ='08'!F46 ->  | G46: ='08'!G46 ->  | H46: =COUNTIF(C9:C39,"i") -> 0 | I46: =SUM('05'!H46:I46) -> 0
B47: ='08'!B47 -> Congé (d) : | C47: ='08'!C47 ->  | D47: ='08'!D47 ->  | E47: ='08'!E47 ->  | F47: ='08'!F47 ->  | G47: ='08'!G47 ->  | H47: =COUNTIF(C9:C39,"d")+COUNTIF(C9:C39,"f")/2 -> 0 | I47: =SUM('05'!H47:I47) -> 0
A48: 289 | B48: ='08'!B48 -> Vacances (e) : | C48: ='08'!C48 ->  | D48: ='08'!D48 ->  | E48: ='08'!E48 ->  | F48: ='08'!F48 ->  | G48: ='08'!G48 ->  | H48: =COUNTIF(C9:C39,"e") -> 0 | I48: =SUM('05'!H48:I48) -> 0 | L48: ='08'!L48 -> Date : | O48: ='08'!O48 -> Maître d'apprentissage :
A49: 290 | B49: ='08'!B49 -> Accident (g) : | C49: ='08'!C49 ->  | D49: ='08'!D49 ->  | E49: ='08'!E49 ->  | F49: ='08'!F49 ->  | G49: ='08'!G49 ->  | H49: =COUNTIF(C9:C39,"g") -> 0 | I49: =SUM('05'!H49:I49) -> 0
A50: 291 | B50: ='08'!B50 -> Maladie (h) : | C50: ='08'!C50 ->  | D50: ='08'!D50 ->  | E50: ='08'!E50 ->  | F50: ='08'!F50 ->  | G50: ='08'!G50 ->  | H50: =COUNTIF(C9:C39,"h") -> 0 | I50: =SUM('05'!H50:I50) -> 0 | O50: ='08'!O50 -> Apprenti(e) :

Sheet 07
B1: ='08'!B1 -> Agenda | L1: ='08'!L1 -> Décompte salaire mensuel
B2: ='08'!B2 -> Apprenti(e) | C2: ="- " & TRIM(DB_Apprenti) & " -" -> - -
B3: =DATE(DB_Annee+1,7,1) -> 2024-07-01 | C3: ='08'!C3 -> [ a-b-c-d-e-f-g-h-i ] | D3: ='08'!D3 -> Logis | E3: ='08'!E3 -> Déjeuner | F3: ='08'!F3 -> Dîner | G3: ='08'!G3 -> Souper | H3: ='08'!H3 -> Montant des Prestations en nature | I3: ='08'!I3 -> Montant modifié | J3: ='08'!J3 -> Commentaires a = Jour de travail b = Jour de cours professionel c = Jour de cours interentreprises d = Jour de congé e = Jour de vacances f = 1/2 jour de travail, 1/2 jour de congé g = Accident (jour entier) h = Maladie (jour entier) i = Armée | L3: ='08'!L3 -> Mois : | M3: =B3 -> 2024-07-01 | O3: ='08'!O3 -> Année : | P3: ='08'!P3 -> 0 | Q3: =B3 -> 2024-07-01
C4: ='08'!C4 -> 0 | D4: ='08'!D4 -> 0 | E4: ='08'!E4 -> 0 | F4: ='08'!F4 -> 0 | G4: ='08'!G4 -> 0 | H4: ='08'!H4 -> 0 | I4: ='08'!I4 -> 0 | J4: ='08'!J4 -> 0
C5: ='08'!C5 -> 0 | D5: ='08'!D5 -> 0 | E5: ='08'!E5 -> 0 | F5: ='08'!F5 -> 0 | G5: ='08'!G5 -> 0 | H5: ='08'!H5 -> 0 | I5: ='08'!I5 -> 0 | J5: ='08'!J5 -> 0 | L5: ='08'!L5 -> Maître d'apprentissage : | M5: =TRIM(DB_Maitre) -> 
C6: ='08'!C6 -> 0 | D6: ='08'!D6 -> 0 | E6: ='08'!E6 -> 0 | F6: ='08'!F6 -> 0 | G6: ='08'!G6 -> 0 | H6: ='08'!H6 -> 0 | I6: ='08'!I6 -> 0 | J6: ='08'!J6 -> 0 | L6: ='08'!L6 -> Lieu : | M6: =TRIM(DB_MaitreLieu) -> 
C7: ='08'!C7 -> 0 | D7: ='08'!D7 -> 0 | E7: ='08'!E7 -> 0 | F7: ='08'!F7 -> 0 | G7: ='08'!G7 -> 0 | H7: ='08'!H7 -> 0 | I7: ='08'!I7 -> 0 | J7: ='08'!J7 -> 0 | L7: ='08'!L7 -> Apprenti : | M7: =TRIM(DB_Apprenti) -> 
C8: ='08'!C8 -> 0 | D8: ='08'!D8 -> 0 | E8: ='08'!E8 -> 0 | F8: ='08'!F8 -> 0 | G8: ='08'!G8 -> 0 | H8: ='08'!H8 -> 0 | I8: ='08'!I8 -> 0 | J8: ='08'!J8 -> 0 | L8: ='08'!L8 -> N° AVS : | M8: =TRIM(DB_AVS) ->  | P8: ='08'!P8 -> Date de naissance : | Q8: =IF(DB_DateNaissance=0,"",DB_DateNaissance) -> 
B9: =B3 -> 2024-07-01 | H9: =MAX(IF(C9="a",PN_Travail,IF(C9="b",PN_CoursProf,IF(C9="c",PN_CoursIE,IF(C9="d",PN_Conge,0)))),IF(C9="e",PN_Vacances,IF(C9="f",PN_DemiJour,IF(C9="g",PN_Accident,IF(C9="h",PN_Maladie,IF(C9="i",PN_Armee,0)))))) -> 0 | I9: =H9+D9*PN_Logis_Plus+E9*PN_Dejeuner_Plus+F9*PN_Diner_Plus+G9*PN_Souper_Plus -> 0
B10: =B9+1 -> 2024-07-02 | H10: 0 | I10: 0
A11: 230 | B11: =B10+1 -> 2024-07-03 | H11: 0 | I11: 0 | L11: ='08'!L11 -> Salaire brut | M11: =IF(PN_EffMoy=0,SUBSTITUTE(VLOOKUP(A11+1,Tb_Traduction,DB_Langue,FALSE),"***",TEXT(J40,"0.00")),"") ->  | Q11: =IF(OR(PN_EffMoy=0,Nb_Mois<>12),Sa_BaseMensuelArrondi / H42 *C40,Sa_BaseMensuelArrondi) -> 
B12: 2024-07-04 | H12: 0 | I12: 0 | L12: ='08'!L12 -> Prime, bonus, gratification
B13: 2024-07-05 | H13: 0 | I13: 0 | L13: ='08'!L13 -> Salaire brut total | Q13: =SUM(Q11:Q12) -> 
B14: 2024-07-06 | H14: 0 | I14: 0
B15: 2024-07-07 | H15: 0 | I15: 0 | L15: ='08'!L15 -> Déductions | M15: ='08'!M15 -> Part | N15: %
B16: 2024-07-08 | H16: 0 | I16: 0 | L16: ='08'!L16 -> Cotisations AVS, AI, APG* : | M16: 1/2 | N16: =IF(B3>=DB_SoumisAVS,RS_AVS_Plus,0) -> 0.053 | P16: =$Q$13*N16 -> 
B17: 2024-07-09 | H17: 0 | I17: 0 | L17: ='08'!L17 -> Cotisations AC* : | M17: 1/2 | N17: =IF(B3>=DB_SoumisAVS,RS_AC_Plus,0) -> 0.011 | P17: =$Q$13*N17 -> 
B18: 2024-07-10 | H18: 0 | I18: 0 | L18: ='08'!L18 -> Accident non profes.: | M18: 1/1 | N18: =RS_ANP_Plus -> 0.01607 | P18: =$Q$13*N18 -> 
B19: 2024-07-11 | H19: 0 | I19: 0 | L19: ='08'!L19 -> Indemnité journalière MC : | M19: 1/2 | N19: =RS_MC_Plus -> 0.0044 | P19: =$Q$13*N19 -> 
B20: 2024-07-12 | H20: 0 | I20: 0 | L20: ='08'!L20 -> Autre déduction :
B21: 2024-07-13 | H21: 0 | I21: 0 | L21: ='08'!L21 ->  | P21: =IF(PN_EffMoy=0,I40,IF(Nb_Mois=12,Sa_NatureMensuelArrondi,Sa_NatureMensuelArrondi*C40/H42)) -> 
B22: 2024-07-14 | H22: 0 | I22: 0 | L22: ='08'!L22 -> *) Dès le 1er janvier de l'année des 18 ans de l'apprenti(e)
B23: 2024-07-15 | H23: 0 | I23: 0
B24: 2024-07-16 | H24: 0 | I24: 0 | L24: ='08'!L24 -> A déduire | Q24: =INT((SUM(P16:P21)*20)+0.5)/20 -> 
B25: 2024-07-17 | H25: 0 | I25: 0
B26: 2024-07-18 | H26: 0 | I26: 0 | L26: ='08'!L26 -> Frais et remboursement
B27: 2024-07-19 | H27: 0 | I27: 0 | L27: ='08'!L27 -> Frais :
B28: 2024-07-20 | H28: 0 | I28: 0 | L28: ='08'!L28 -> Autre remboursement :
B29: 2024-07-21 | H29: 0 | I29: 0
B30: 2024-07-22 | H30: 0 | I30: 0 | L30: ='08'!L30 -> A ajouter | Q30: =SUM(P27:P28) -> 0
B31: 2024-07-23 | H31: 0 | I31: 0
B32: 2024-07-24 | H32: 0 | I32: 0 | L32: ='08'!L32 -> Versement du mois | Q32: =Q13+Q30-Q24 -> 
B33: 2024-07-25 | H33: 0 | I33: 0 | M33: ='08'!M33 -> Mois courant | N33: ='08'!N33 -> Cumul mois précédents | O33: ='08'!O33 -> Prévus annuellement | Q33: ='08'!Q33 -> Solde actuel
B34: 2024-07-26 | H34: 0 | I34: 0 | L34: ='08'!L34 -> Décompte des jours | M34: ='08'!M34 -> 0 | N34: ='08'!N34 -> 0 | O34: ='08'!O34 -> 0 | Q34: ='08'!Q34 -> 0
B35: 2024-07-27 | H35: 0 | I35: 0 | L35: ='08'!L35 -> Travail : | M35: =H43 -> 0 | N35: 0 | O35: =NJ_Travail ->  | Q35: =O35-N35-M35 -> 
B36: 2024-07-28 | H36: 0 | I36: 0 | L36: ='08'!L36 -> Cours prof. : | M36: 0 | N36: 0 | O36: =NJ_CoursProf -> 
B37: 2024-07-29 | H37: 0 | I37: 0 | L37: ='08'!L37 -> Cours IE : | M37: 0 | N37: 0 | O37: =NJ_CoursIE -> 
B38: 2024-07-30 | H38: 0 | I38: 0 | L38: ='08'!L38 -> Armée : | M38: 0 | N38: 0 | O38: =NJ_Bloc -> 0 | Q38: 0
B39: 2024-07-31 | H39: 0 | I39: 0 | L39: ='08'!L39 -> Congés : | M39: =H47 -> 0 | N39: 0 | O39: =NJ_Conge -> 
B40: ='08'!B40 -> Total | C40: =COUNTIF(C9:C39,"a")+COUNTIF(C9:C39,"b")+COUNTIF(C9:C39,"c")+COUNTIF(C9:C39,"d")+COUNTIF(C9:C39,"e")+COUNTIF(C9:C39,"f")+COUNTIF(C9:C39,"g")+COUNTIF(C9:C39,"h")+COUNTIF(C9:C39,"i") -> 0 | D40: =SUM(D9:D39) -> 0 | E40: 0 | F40: 0 | G40: 0 | H40: 0 | I40: 0 | J40: =INT(((Sa_NatureMensuel / H42 *C40)*20)+0.5)/20 ->  | L40: ='08'!L40 -> Vacances : | M40: 0 | N40: 0 | O40: =NJ_Vacances -> 
H41: =B3 -> 2024-07-01 | I41: ='08'!I41 -> cumul | L41: ='08'!L41 -> Accident : | M41: 0 | N41: 0 | O41: 0 | Q41: 0
B42: ='08'!B42 -> Décompte des jours | C42: ='08'!C42 ->  | D42: ='08'!D42 ->  | E42: ='08'!E42 ->  | F42: ='08'!F42 ->  | G42: ='08'!G42 ->  | H42: 31 | I42: =SUM('06'!H42:I42) -> 335 | L42: ='08'!L42 -> Maladie : | M42: 0 | N42: 0 | O42: 0 | Q42: 0
B43: ='08'!B43 -> Jours de travail (a) : | C43: ='08'!C43 ->  | D43: ='08'!D43 ->  | E43: ='08'!E43 ->  | F43: ='08'!F43 ->  | G43: ='08'!G43 ->  | H43: =COUNTIF(C9:C39,"a")+COUNTIF(C9:C39,"f")/2 -> 0 | I43: =SUM('06'!H43:I43) -> 0
B44: ='08'!B44 -> Cours professionnels (b) : | C44: ='08'!C44 ->  | D44: ='08'!D44 ->  | E44: ='08'!E44 ->  | F44: ='08'!F44 ->  | G44: ='08'!G44 ->  | H44: =COUNTIF(C9:C39,"b") -> 0 | I44: =SUM('06'!H44:I44) -> 0 | L44: ='08'!L44 -> Remarques :
B45: ='08'!B45 -> Cours interentreprises (c) : | C45: ='08'!C45 ->  | D45: ='08'!D45 ->  | E45: ='08'!E45 ->  | F45: ='08'!F45 ->  | G45: ='08'!G45 ->  | H45: =COUNTIF(C9:C39,"c") -> 0 | I45: =SUM('06'!H45:I45) -> 0
B46: ='08'!B46 -> Armée (i) : | C46: ='08'!C46 ->  | D46: ='08'!D46 ->  | E46: ='08'!E46 ->  | F46: ='08'!F46 ->  | G46: ='08'!G46 ->  | H46: =COUNTIF(C9:C39,"i") -> 0 | I46: =SUM('06'!H46:I46) -> 0
B47: ='08'!B47 -> Congé (d) : | C47: ='08'!C47 ->  | D47: ='08'!D47 ->  | E47: ='08'!E47 ->  | F47: ='08'!F47 ->  | G47: ='08'!G47 ->  | H47: =COUNTIF(C9:C39,"d")+COUNTIF(C9:C39,"f")/2 -> 0 | I47: =SUM('06'!H47:I47) -> 0
A48: 289 | B48: ='08'!B48 -> Vacances (e) : | C48: ='08'!C48 ->  | D48: ='08'!D48 ->  | E48: ='08'!E48 ->  | F48: ='08'!F48 ->  | G48: ='08'!G48 ->  | H48: =COUNTIF(C9:C39,"e") -> 0 | I48: =SUM('06'!H48:I48) -> 0 | L48: ='08'!L48 -> Date : | O48: ='08'!O48 -> Maître d'apprentissage :
A49: 290 | B49: ='08'!B49 -> Accident (g) : | C49: ='08'!C49 ->  | D49: ='08'!D49 ->  | E49: ='08'!E49 ->  | F49: ='08'!F49 ->  | G49: ='08'!G49 ->  | H49: =COUNTIF(C9:C39,"g") -> 0 | I49: =SUM('06'!H49:I49) -> 0
A50: 291 | B50: ='08'!B50 -> Maladie (h) : | C50: ='08'!C50 ->  | D50: ='08'!D50 ->  | E50: ='08'!E50 ->  | F50: ='08'!F50 ->  | G50: ='08'!G50 ->  | H50: =COUNTIF(C9:C39,"h") -> 0 | I50: =SUM('06'!H50:I50) -> 0 | O50: ='08'!O50 -> Apprenti(e) :

Sheet 08+
B1: ='08'!B1 -> Agenda | L1: ='08'!L1 -> Décompte salaire mensuel
B2: ='08'!B2 -> Apprenti(e) | C2: ="- " & TRIM(DB_Apprenti) & " -" -> - -
B3: =DATE(DB_Annee+1,8,1) -> 2024-08-01 | C3: ='08'!C3 -> [ a-b-c-d-e-f-g-h-i ] | D3: ='08'!D3 -> Logis | E3: ='08'!E3 -> Déjeuner | F3: ='08'!F3 -> Dîner | G3: ='08'!G3 -> Souper | H3: ='08'!H3 -> Montant des Prestations en nature | I3: ='08'!I3 -> Montant modifié | J3: ='08'!J3 -> Commentaires a = Jour de travail b = Jour de cours professionel c = Jour de cours interentreprises d = Jour de congé e = Jour de vacances f = 1/2 jour de travail, 1/2 jour de congé g = Accident (jour entier) h = Maladie (jour entier) i = Armée | L3: ='08'!L3 -> Mois : | M3: =B3 -> 2024-08-01 | O3: ='08'!O3 -> Année : | P3: ='08'!P3 -> 0 | Q3: =B3 -> 2024-08-01
C4: ='08'!C4 -> 0 | D4: ='08'!D4 -> 0 | E4: ='08'!E4 -> 0 | F4: ='08'!F4 -> 0 | G4: ='08'!G4 -> 0 | H4: ='08'!H4 -> 0 | I4: ='08'!I4 -> 0 | J4: ='08'!J4 -> 0
C5: ='08'!C5 -> 0 | D5: ='08'!D5 -> 0 | E5: ='08'!E5 -> 0 | F5: ='08'!F5 -> 0 | G5: ='08'!G5 -> 0 | H5: ='08'!H5 -> 0 | I5: ='08'!I5 -> 0 | J5: ='08'!J5 -> 0 | L5: ='08'!L5 -> Maître d'apprentissage : | M5: =TRIM(DB_Maitre) -> 
C6: ='08'!C6 -> 0 | D6: ='08'!D6 -> 0 | E6: ='08'!E6 -> 0 | F6: ='08'!F6 -> 0 | G6: ='08'!G6 -> 0 | H6: ='08'!H6 -> 0 | I6: ='08'!I6 -> 0 | J6: ='08'!J6 -> 0 | L6: ='08'!L6 -> Lieu : | M6: =TRIM(DB_MaitreLieu) -> 
C7: ='08'!C7 -> 0 | D7: ='08'!D7 -> 0 | E7: ='08'!E7 -> 0 | F7: ='08'!F7 -> 0 | G7: ='08'!G7 -> 0 | H7: ='08'!H7 -> 0 | I7: ='08'!I7 -> 0 | J7: ='08'!J7 -> 0 | L7: ='08'!L7 -> Apprenti : | M7: =TRIM(DB_Apprenti) -> 
C8: ='08'!C8 -> 0 | D8: ='08'!D8 -> 0 | E8: ='08'!E8 -> 0 | F8: ='08'!F8 -> 0 | G8: ='08'!G8 -> 0 | H8: ='08'!H8 -> 0 | I8: ='08'!I8 -> 0 | J8: ='08'!J8 -> 0 | L8: ='08'!L8 -> N° AVS : | M8: =TRIM(DB_AVS) ->  | P8: ='08'!P8 -> Date de naissance : | Q8: =IF(DB_DateNaissance=0,"",DB_DateNaissance) -> 
B9: =B3 -> 2024-08-01 | H9: =MAX(IF(C9="a",PN_Travail,IF(C9="b",PN_CoursProf,IF(C9="c",PN_CoursIE,IF(C9="d",PN_Conge,0)))),IF(C9="e",PN_Vacances,IF(C9="f",PN_DemiJour,IF(C9="g",PN_Accident,IF(C9="h",PN_Maladie,IF(C9="i",PN_Armee,0)))))) -> 0 | I9: =H9+D9*PN_Logis_Plus+E9*PN_Dejeuner_Plus+F9*PN_Diner_Plus+G9*PN_Souper_Plus -> 0
B10: =B9+1 -> 2024-08-02 | H10: 0 | I10: 0
A11: 230 | B11: =B10+1 -> 2024-08-03 | H11: 0 | I11: 0 | L11: ='08'!L11 -> Salaire brut | M11: =IF(PN_EffMoy=0,SUBSTITUTE(VLOOKUP(A11+1,Tb_Traduction,DB_Langue,FALSE),"***",TEXT(J40,"0.00")),"") ->  | Q11: =IF(OR(PN_EffMoy=0,Nb_Mois<>12),Sa_BaseMensuelArrondi / H42 *C40,Sa_BaseMensuelArrondi*PN_SalMoyAoutPlus) -> 
B12: 2024-08-04 | H12: 0 | I12: 0 | L12: ='08'!L12 -> Prime, bonus, gratification
B13: 2024-08-05 | H13: 0 | I13: 0 | L13: ='08'!L13 -> Salaire brut total | Q13: =SUM(Q11:Q12) -> 
B14: 2024-08-06 | H14: 0 | I14: 0
B15: 2024-08-07 | H15: 0 | I15: 0 | L15: ='08'!L15 -> Déductions | M15: ='08'!M15 -> Part | N15: %
B16: 2024-08-08 | H16: 0 | I16: 0 | L16: ='08'!L16 -> Cotisations AVS, AI, APG* : | M16: 1/2 | N16: =IF(B3>=DB_SoumisAVS,RS_AVS_Plus,0) -> 0.053 | P16: =$Q$13*N16 -> 
B17: 2024-08-09 | H17: 0 | I17: 0 | L17: ='08'!L17 -> Cotisations AC* : | M17: 1/2 | N17: =IF(B3>=DB_SoumisAVS,RS_AC_Plus,0) -> 0.011 | P17: =$Q$13*N17 -> 
B18: 2024-08-10 | H18: 0 | I18: 0 | L18: ='08'!L18 -> Accident non profes.: | M18: 1/1 | N18: =RS_ANP_Plus -> 0.01607 | P18: =$Q$13*N18 -> 
B19: 2024-08-11 | H19: 0 | I19: 0 | L19: ='08'!L19 -> Indemnité journalière MC : | M19: 1/2 | N19: =RS_MC_Plus -> 0.0044 | P19: =$Q$13*N19 -> 
B20: 2024-08-12 | H20: 0 | I20: 0 | L20: ='08'!L20 -> Autre déduction :
B21: 2024-08-13 | H21: 0 | I21: 0 | L21: ='08'!L21 ->  | P21: =IF(PN_EffMoy=0,I40,IF(Nb_Mois=12,Sa_NatureMensuelArrondi*PN_SalMoyAoutPlus,Sa_NatureMensuelArrondi*C40/H42)) -> 
B22: 2024-08-14 | H22: 0 | I22: 0 | L22: ='08'!L22 -> *) Dès le 1er janvier de l'année des 18 ans de l'apprenti(e)
B23: 2024-08-15 | H23: 0 | I23: 0
B24: 2024-08-16 | H24: 0 | I24: 0 | L24: ='08'!L24 -> A déduire | Q24: =INT((SUM(P16:P21)*20)+0.5)/20 -> 
B25: 2024-08-17 | H25: 0 | I25: 0
B26: 2024-08-18 | H26: 0 | I26: 0 | L26: ='08'!L26 -> Frais et remboursement
B27: 2024-08-19 | H27: 0 | I27: 0 | L27: ='08'!L27 -> Frais :
B28: 2024-08-20 | H28: 0 | I28: 0 | L28: ='08'!L28 -> Autre remboursement :
B29: 2024-08-21 | H29: 0 | I29: 0
B30: 2024-08-22 | H30: 0 | I30: 0 | L30: ='08'!L30 -> A ajouter | Q30: =SUM(P27:P28) -> 0
B31: 2024-08-23 | H31: 0 | I31: 0
B32: 2024-08-24 | H32: 0 | I32: 0 | L32: ='08'!L32 -> Versement du mois | Q32: =Q13+Q30-Q24 -> 
B33: 2024-08-25 | H33: 0 | I33: 0 | M33: ='08'!M33 -> Mois courant | N33: ='08'!N33 -> Cumul mois précédents | O33: ='08'!O33 -> Prévus annuellement | Q33: ='08'!Q33 -> Solde actuel
B34: 2024-08-26 | H34: 0 | I34: 0 | L34: ='08'!L34 -> Décompte des jours | M34: ='08'!M34 -> 0 | N34: ='08'!N34 -> 0 | O34: ='08'!O34 -> 0 | Q34: ='08'!Q34 -> 0
B35: 2024-08-27 | H35: 0 | I35: 0 | L35: ='08'!L35 -> Travail : | M35: =H43 -> 0 | N35: 0 | O35: =NJ_Travail ->  | Q35: =O35-N35-M35 -> 
B36: 2024-08-28 | H36: 0 | I36: 0 | L36: ='08'!L36 -> Cours prof. : | M36: 0 | N36: 0 | O36: =NJ_CoursProf -> 
B37: 2024-08-29 | H37: 0 | I37: 0 | L37: ='08'!L37 -> Cours IE : | M37: 0 | N37: 0 | O37: =NJ_CoursIE -> 
B38: 2024-08-30 | H38: 0 | I38: 0 | L38: ='08'!L38 -> Armée : | M38: 0 | N38: 0 | O38: =NJ_Bloc -> 0 | Q38: 0
B39: 2024-08-31 | H39: 0 | I39: 0 | L39: ='08'!L39 -> Congés : | M39: =H47 -> 0 | N39: 0 | O39: =NJ_Conge -> 
B40: ='08'!B40 -> Total | C40: =COUNTIF(C9:C39,"a")+COUNTIF(C9:C39,"b")+COUNTIF(C9:C39,"c")+COUNTIF(C9:C39,"d")+COUNTIF(C9:C39,"e")+COUNTIF(C9:C39,"f")+COUNTIF(C9:C39,"g")+COUNTIF(C9:C39,"h")+COUNTIF(C9:C39,"i") -> 0 | D40: =SUM(D9:D39) -> 0 | E40: 0 | F40: 0 | G40: 0 | H40: 0 | I40: 0 | J40: =INT(((Sa_NatureMensuel / H42 *C40)*20)+0.5)/20 ->  | L40: ='08'!L40 -> Vacances : | M40: 0 | N40: 0 | O40: =NJ_Vacances -> 
H41: =B3 -> 2024-08-01 | I41: ='08'!I41 -> cumul | L41: ='08'!L41 -> Accident : | M41: 0 | N41: 0 | O41: 0 | Q41: 0
B42: ='08'!B42 -> Décompte des jours | C42: ='08'!C42 ->  | D42: ='08'!D42 ->  | E42: ='08'!E42 ->  | F42: ='08'!F42 ->  | G42: ='08'!G42 ->  | H42: 31 | I42: =SUM('07'!H42:I42) -> 366 | L42: ='08'!L42 -> Maladie : | M42: 0 | N42: 0 | O42: 0 | Q42: 0
B43: ='08'!B43 -> Jours de travail (a) : | C43: ='08'!C43 ->  | D43: ='08'!D43 ->  | E43: ='08'!E43 ->  | F43: ='08'!F43 ->  | G43: ='08'!G43 ->  | H43: =COUNTIF(C9:C39,"a")+COUNTIF(C9:C39,"f")/2 -> 0 | I43: =SUM('07'!H43:I43) -> 0
B44: ='08'!B44 -> Cours professionnels (b) : | C44: ='08'!C44 ->  | D44: ='08'!D44 ->  | E44: ='08'!E44 ->  | F44: ='08'!F44 ->  | G44: ='08'!G44 ->  | H44: =COUNTIF(C9:C39,"b") -> 0 | I44: =SUM('07'!H44:I44) -> 0 | L44: ='08'!L44 -> Remarques :
B45: ='08'!B45 -> Cours interentreprises (c) : | C45: ='08'!C45 ->  | D45: ='08'!D45 ->  | E45: ='08'!E45 ->  | F45: ='08'!F45 ->  | G45: ='08'!G45 ->  | H45: =COUNTIF(C9:C39,"c") -> 0 | I45: =SUM('07'!H45:I45) -> 0
B46: ='08'!B46 -> Armée (i) : | C46: ='08'!C46 ->  | D46: ='08'!D46 ->  | E46: ='08'!E46 ->  | F46: ='08'!F46 ->  | G46: ='08'!G46 ->  | H46: =COUNTIF(C9:C39,"i") -> 0 | I46: =SUM('07'!H46:I46) -> 0
B47: ='08'!B47 -> Congé (d) : | C47: ='08'!C47 ->  | D47: ='08'!D47 ->  | E47: ='08'!E47 ->  | F47: ='08'!F47 ->  | G47: ='08'!G47 ->  | H47: =COUNTIF(C9:C39,"d")+COUNTIF(C9:C39,"f")/2 -> 0 | I47: =SUM('07'!H47:I47) -> 0
A48: 289 | B48: ='08'!B48 -> Vacances (e) : | C48: ='08'!C48 ->  | D48: ='08'!D48 ->  | E48: ='08'!E48 ->  | F48: ='08'!F48 ->  | G48: ='08'!G48 ->  | H48: =COUNTIF(C9:C39,"e") -> 0 | I48: =SUM('07'!H48:I48) -> 0 | L48: ='08'!L48 -> Date : | O48: ='08'!O48 -> Maître d'apprentissage :
A49: 290 | B49: ='08'!B49 -> Accident (g) : | C49: ='08'!C49 ->  | D49: ='08'!D49 ->  | E49: ='08'!E49 ->  | F49: ='08'!F49 ->  | G49: ='08'!G49 ->  | H49: =COUNTIF(C9:C39,"g") -> 0 | I49: =SUM('07'!H49:I49) -> 0
A50: 291 | B50: ='08'!B50 -> Maladie (h) : | C50: ='08'!C50 ->  | D50: ='08'!D50 ->  | E50: ='08'!E50 ->  | F50: ='08'!F50 ->  | G50: ='08'!G50 ->  | H50: =COUNTIF(C9:C39,"h") -> 0 | I50: =SUM('07'!H50:I50) -> 0 | O50: ='08'!O50 -> Apprenti(e) :

Sheet Année-Jahr
A1: 300 | C1: =VLOOKUP(A1,Tb_Traduction,DB_Langue,FALSE) -> Salaire | F1: =VLOOKUP(A1+1,Tb_Traduction,DB_Langue,FALSE) -> Déductions | M1: =VLOOKUP(A1+2,Tb_Traduction,DB_Langue,FALSE) -> Frais et remb.
A2: 310 | B2: =VLOOKUP(A2,Tb_Traduction,DB_Langue,FALSE) -> Mois | C2: =VLOOKUP(A2+1,Tb_Traduction,DB_Langue,FALSE) -> Salaire brut | D2: =VLOOKUP(A2+2,Tb_Traduction,DB_Langue,FALSE) -> Prime, bonus, gratification | E2: =VLOOKUP(A2+3,Tb_Traduction,DB_Langue,FALSE) -> Salaire brut total | F2: =VLOOKUP(A2+4,Tb_Traduction,DB_Langue,FALSE) -> Cotisations AVS, AI, APG | G2: =VLOOKUP(A2+5,Tb_Traduction,DB_Langue,FALSE) -> Cotisations AC | H2: =VLOOKUP(A2+6,Tb_Traduction,DB_Langue,FALSE) -> Accident non profes. | I2: =VLOOKUP(A2+7,Tb_Traduction,DB_Langue,FALSE) -> Indemnité journalière MC | J2: =VLOOKUP(A2+8,Tb_Traduction,DB_Langue,FALSE) -> Autre déduction | K2: =VLOOKUP(A2+9,Tb_Traduction,DB_Langue,FALSE) -> Salaire en nature effectif | L2: =VLOOKUP(A2+10,Tb_Traduction,DB_Langue,FALSE) -> A déduire | M2: =VLOOKUP(A2+11,Tb_Traduction,DB_Langue,FALSE) -> Frais | N2: =VLOOKUP(A2+12,Tb_Traduction,DB_Langue,FALSE) -> Autre remboursement | O2: =VLOOKUP(A2+13,Tb_Traduction,DB_Langue,FALSE) -> A ajouter | P2: =VLOOKUP(A2+14,Tb_Traduction,DB_Langue,FALSE) -> Versement du mois | Q2: =VLOOKUP(A2+15,Tb_Traduction,DB_Langue,FALSE) -> Versement effectif | R2: =VLOOKUP(A2+16,Tb_Traduction,DB_Langue,FALSE) -> Différence
B3: ='08'!B3 -> 2023-08-01 | C3: ='08'!Q11 ->  | D3: ='08'!Q12 -> 0 | E3: =C3+D3 ->  | F3: ='08'!P16 ->  | G3: ='08'!P17 ->  | H3: ='08'!P18 ->  | I3: ='08'!P19 ->  | J3: ='08'!P20 -> 0 | K3: ='08'!I40 -> 0 | L3: =SUM(F3:K3) ->  | M3: ='08'!P27 -> 0 | N3: ='08'!P28 -> 0 | O3: =SUM(M3:N3) -> 0 | P3: =E3-L3+O3 ->  | R3: =P3-Q3 -> 
B4: ='09'!B3 -> 2023-09-01 | C4: ='09'!Q11 ->  | D4: ='09'!Q12 -> 0 | E4: =C4+D4 ->  | F4: ='09'!P16 ->  | G4: ='09'!P17 ->  | H4: ='09'!P18 ->  | I4: ='09'!P19 ->  | J4: ='09'!P20 -> 0 | K4: ='09'!I40 -> 0 | M4: ='09'!P27 -> 0 | N4: ='09'!P28 -> 0 | O4: 0
B5: ='10'!B3 -> 2023-10-01 | C5: ='10'!Q11 ->  | D5: ='10'!Q12 -> 0 | F5: ='10'!P16 ->  | G5: ='10'!P17 ->  | H5: ='10'!P18 ->  | I5: ='10'!P19 ->  | J5: ='10'!P20 -> 0 | K5: ='10'!I40 -> 0 | M5: ='10'!P27 -> 0 | N5: ='10'!P28 -> 0 | O5: 0
B6: ='11'!B3 -> 2023-11-01 | C6: ='11'!Q11 ->  | D6: ='11'!Q12 -> 0 | F6: ='11'!P16 ->  | G6: ='11'!P17 ->  | H6: ='11'!P18 ->  | I6: ='11'!P19 ->  | J6: ='11'!P20 -> 0 | K6: ='11'!I40 -> 0 | M6: ='11'!P27 -> 0 | N6: ='11'!P28 -> 0 | O6: 0
B7: ='12'!B3 -> 2023-12-01 | C7: ='12'!Q11 ->  | D7: ='12'!Q12 -> 0 | F7: ='12'!P16 ->  | G7: ='12'!P17 ->  | H7: ='12'!P18 ->  | I7: ='12'!P19 ->  | J7: ='12'!P20 -> 0 | K7: ='12'!I40 -> 0 | M7: ='12'!P27 -> 0 | N7: ='12'!P28 -> 0 | O7: 0
B8: ='01'!B3 -> 2024-01-01 | C8: ='01'!Q11 ->  | D8: ='01'!Q12 -> 0 | F8: ='01'!P16 ->  | G8: ='01'!P17 ->  | H8: ='01'!P18 ->  | I8: ='01'!P19 ->  | J8: ='01'!P20 -> 0 | K8: ='01'!I40 -> 0 | M8: ='01'!P27 -> 0 | N8: ='01'!P28 -> 0 | O8: 0
B9: ='02'!B3 -> 2024-02-01 | C9: ='02'!Q11 ->  | D9: ='02'!Q12 -> 0 | F9: ='02'!P16 ->  | G9: ='02'!P17 ->  | H9: ='02'!P18 ->  | I9: ='02'!P19 ->  | J9: ='02'!P20 -> 0 | K9: ='02'!I40 -> 0 | M9: ='02'!P27 -> 0 | N9: ='02'!P28 -> 0 | O9: 0
B10: ='03'!B3 -> 2024-03-01 | C10: ='03'!Q11 ->  | D10: ='03'!Q12 -> 0 | F10: ='03'!P16 ->  | G10: ='03'!P17 ->  | H10: ='03'!P18 ->  | I10: ='03'!P19 ->  | J10: ='03'!P20 -> 0 | K10: ='03'!I40 -> 0 | M10: ='03'!P27 -> 0 | N10: ='03'!P28 -> 0 | O10: 0
B11: ='04'!B3 -> 2024-04-01 | C11: ='04'!Q11 ->  | D11: ='04'!Q12 -> 0 | F11: ='04'!P16 ->  | G11: ='04'!P17 ->  | H11: ='04'!P18 ->  | I11: ='04'!P19 ->  | J11: ='04'!P20 -> 0 | K11: ='04'!I40 -> 0 | M11: ='04'!P27 -> 0 | N11: ='04'!P28 -> 0 | O11: 0
B12: ='05'!B3 -> 2024-05-01 | C12: ='05'!Q11 ->  | D12: ='05'!Q12 -> 0 | F12: ='05'!P16 ->  | G12: ='05'!P17 ->  | H12: ='05'!P18 ->  | I12: ='05'!P19 ->  | J12: ='05'!P20 -> 0 | K12: ='05'!I40 -> 0 | M12: ='05'!P27 -> 0 | N12: ='05'!P28 -> 0 | O12: 0
B13: ='06'!B3 -> 2024-06-01 | C13: ='06'!Q11 ->  | D13: ='06'!Q12 -> 0 | F13: ='06'!P16 ->  | G13: ='06'!P17 ->  | H13: ='06'!P18 ->  | I13: ='06'!P19 ->  | J13: ='06'!P20 -> 0 | K13: ='06'!I40 -> 0 | M13: ='06'!P27 -> 0 | N13: ='06'!P28 -> 0 | O13: 0
B14: ='07'!B3 -> 2024-07-01 | C14: ='07'!Q11 ->  | D14: ='07'!Q12 -> 0 | F14: ='07'!P16 ->  | G14: ='07'!P17 ->  | H14: ='07'!P18 ->  | I14: ='07'!P19 ->  | J14: ='07'!P20 -> 0 | K14: ='07'!I40 -> 0 | M14: ='07'!P27 -> 0 | N14: ='07'!P28 -> 0 | O14: 0
B15: ='08+'!B3 -> 2024-08-01 | C15: ='08+'!Q11 ->  | D15: ='08+'!Q12 -> 0 | F15: ='08+'!P16 ->  | G15: ='08+'!P17 ->  | H15: ='08+'!P18 ->  | I15: ='08+'!P19 ->  | J15: ='08+'!P20 -> 0 | K15: ='08+'!I40 -> 0 | M15: ='08+'!P27 -> 0 | N15: ='08+'!P28 -> 0 | O15: 0
A16: 330 | B16: =VLOOKUP(A16,Tb_Traduction,DB_Langue,FALSE) -> Totaux | C16: =SUM(C3:C15) ->  | D16: =SUM(D3:D15) -> 0 | E16: =SUM(E3:E15) ->  | F16: =SUM(F3:F15) ->  | J16: 0 | K16: 0 | M16: =SUM(M3:M15) -> 0 | N16: 0 | O16: 0 | Q16: 0
A17: 331 | B17: =VLOOKUP(A17,Tb_Traduction,DB_Langue,FALSE) -> Valeurs prévues | C17: =Sa_BaseAnnuel -> 0 | E17: =C17+D16 -> 0 | K17: =Sa_NatureAnnuel -> 
A18: 332 | B18: =VLOOKUP(A18,Tb_Traduction,DB_Langue,FALSE) -> Différences | C18: =C17-C16 ->  | E18: =E17-E16 ->  | K18: =K17-K16 -> 
A21: 340 | C21: =VLOOKUP(A21,Tb_Traduction,DB_Langue,FALSE) -> Décompte des jours | N21: =VLOOKUP(A21+1,Tb_Traduction,DB_Langue,FALSE) -> Maître d'apprentissage : | O21: =TRIM(DB_Maitre) -> 
A22: 342 | B22: =VLOOKUP(A26,Tb_Traduction,DB_Langue,FALSE) -> Mois | C22: =VLOOKUP(A26+1,Tb_Traduction,DB_Langue,FALSE) -> Travail | D22: =VLOOKUP(A26+2,Tb_Traduction,DB_Langue,FALSE) -> Cours prof. | E22: =VLOOKUP(A26+3,Tb_Traduction,DB_Langue,FALSE) -> Cours IE | F22: =VLOOKUP(A26+9,Tb_Traduction,DB_Langue,FALSE) -> Armée | G22: =VLOOKUP(A26+4,Tb_Traduction,DB_Langue,FALSE) -> Congés | H22: =VLOOKUP(A26+5,Tb_Traduction,DB_Langue,FALSE) -> Vacances | I22: =VLOOKUP(A26+6,Tb_Traduction,DB_Langue,FALSE) -> Accident | J22: =VLOOKUP(A26+7,Tb_Traduction,DB_Langue,FALSE) -> Maladie | K22: =VLOOKUP(A26+8,Tb_Traduction,DB_Langue,FALSE) -> Total | N22: =VLOOKUP(A22,Tb_Traduction,DB_Langue,FALSE) -> Lieu : | O22: =TRIM(DB_MaitreLieu) -> 
A23: 343 | N23: =VLOOKUP(A23,Tb_Traduction,DB_Langue,FALSE) -> Apprenti : | O23: =TRIM(DB_Apprenti) -> 
A24: 344 | N24: =VLOOKUP(A24,Tb_Traduction,DB_Langue,FALSE) -> N° AVS : | O24: =TRIM(DB_AVS) -> 
A25: 345 | N25: =VLOOKUP(A25,Tb_Traduction,DB_Langue,FALSE) -> Date de naissance : | O25: =IF(DB_DateNaissance=0,"",DB_DateNaissance) -> 
A26: 350
B27: ='08'!B3 -> 2023-08-01 | C27: ='08'!M35 -> 0 | D27: ='08'!M36 -> 0 | E27: ='08'!M37 -> 0 | F27: ='08'!M38 -> 0 | G27: ='08'!M39 -> 0 | H27: ='08'!M40 -> 0 | I27: ='08'!M41 -> 0 | J27: ='08'!M42 -> 0 | K27: =SUM(C27:J27) -> 0
A28: 360 | B28: ='09'!B3 -> 2023-09-01 | C28: ='09'!M35 -> 0 | D28: ='09'!M36 -> 0 | E28: ='09'!M37 -> 0 | F28: ='09'!M38 -> 0 | G28: ='09'!M39 -> 0 | H28: ='09'!M40 -> 0 | I28: ='09'!M41 -> 0 | J28: ='09'!M42 -> 0 | K28: 0 | O28: =VLOOKUP(A28,Tb_Traduction,DB_Langue,FALSE) -> Attestation de salaire août-déc. | R28: =DB_Annee -> 2023
A29: 361 | B29: ='10'!B3 -> 2023-10-01 | C29: ='10'!M35 -> 0 | D29: ='10'!M36 -> 0 | E29: ='10'!M37 -> 0 | F29: ='10'!M38 -> 0 | G29: ='10'!M39 -> 0 | H29: ='10'!M40 -> 0 | I29: ='10'!M41 -> 0 | J29: ='10'!M42 -> 0 | K29: 0 | O29: Salaire brut : | R29: =SUM(E3:E7) -> 
A30: 362 | B30: ='11'!B3 -> 2023-11-01 | C30: ='11'!M35 -> 0 | D30: ='11'!M36 -> 0 | E30: ='11'!M37 -> 0 | F30: ='11'!M38 -> 0 | G30: ='11'!M39 -> 0 | H30: ='11'!M40 -> 0 | I30: ='11'!M41 -> 0 | J30: ='11'!M42 -> 0 | K30: 0 | O30: Cotisations AVS, AI, APG : | R30: =SUM(F3:F7) -> 
A31: 363 | B31: ='12'!B3 -> 2023-12-01 | C31: ='12'!M35 -> 0 | D31: ='12'!M36 -> 0 | E31: ='12'!M37 -> 0 | F31: ='12'!M38 -> 0 | G31: ='12'!M39 -> 0 | H31: ='12'!M40 -> 0 | I31: ='12'!M41 -> 0 | J31: ='12'!M42 -> 0 | K31: 0 | O31: Cotisations AC : | R31: =SUM(G3:G7) -> 
A32: 364 | B32: ='01'!B3 -> 2024-01-01 | C32: ='01'!M35 -> 0 | D32: ='01'!M36 -> 0 | E32: ='01'!M37 -> 0 | F32: ='01'!M38 -> 0 | G32: ='01'!M39 -> 0 | H32: ='01'!M40 -> 0 | I32: ='01'!M41 -> 0 | J32: ='01'!M42 -> 0 | K32: 0 | O32: Accident non profes. : | R32: =SUM(H3:H7) -> 
A33: 317 | B33: ='02'!B3 -> 2024-02-01 | C33: ='02'!M35 -> 0 | D33: ='02'!M36 -> 0 | E33: ='02'!M37 -> 0 | F33: ='02'!M38 -> 0 | G33: ='02'!M39 -> 0 | H33: ='02'!M40 -> 0 | I33: ='02'!M41 -> 0 | J33: ='02'!M42 -> 0 | K33: 0 | O33: Indemnité journalière MC | R33: =SUM(I3:I7) -> 
A34: 365 | B34: ='03'!B3 -> 2024-03-01 | C34: ='03'!M35 -> 0 | D34: ='03'!M36 -> 0 | E34: ='03'!M37 -> 0 | F34: ='03'!M38 -> 0 | G34: ='03'!M39 -> 0 | H34: ='03'!M40 -> 0 | I34: ='03'!M41 -> 0 | J34: ='03'!M42 -> 0 | K34: 0 | O34: Salaire net : | R34: =R29-SUM(R30:R33) -> 
B35: ='04'!B3 -> 2024-04-01 | C35: ='04'!M35 -> 0 | D35: ='04'!M36 -> 0 | E35: ='04'!M37 -> 0 | F35: ='04'!M38 -> 0 | G35: ='04'!M39 -> 0 | H35: ='04'!M40 -> 0 | I35: ='04'!M41 -> 0 | J35: ='04'!M42 -> 0 | K35: 0
B36: ='05'!B3 -> 2024-05-01 | C36: ='05'!M35 -> 0 | D36: ='05'!M36 -> 0 | E36: ='05'!M37 -> 0 | F36: ='05'!M38 -> 0 | G36: ='05'!M39 -> 0 | H36: ='05'!M40 -> 0 | I36: ='05'!M41 -> 0 | J36: ='05'!M42 -> 0 | K36: 0
A37: 366 | B37: ='06'!B3 -> 2024-06-01 | C37: ='06'!M35 -> 0 | D37: ='06'!M36 -> 0 | E37: ='06'!M37 -> 0 | F37: ='06'!M38 -> 0 | G37: ='06'!M39 -> 0 | H37: ='06'!M40 -> 0 | I37: ='06'!M41 -> 0 | J37: ='06'!M42 -> 0 | K37: 0 | O37: =VLOOKUP(A37,Tb_Traduction,DB_Langue,FALSE) -> Attestation de salaire jan.-août | R37: =R28+1 -> 2024
B38: ='07'!B3 -> 2024-07-01 | C38: ='07'!M35 -> 0 | D38: ='07'!M36 -> 0 | E38: ='07'!M37 -> 0 | F38: ='07'!M38 -> 0 | G38: ='07'!M39 -> 0 | H38: ='07'!M40 -> 0 | I38: ='07'!M41 -> 0 | J38: ='07'!M42 -> 0 | K38: 0 | O38: =O29 -> Salaire brut : | R38: =SUM(E8:E15) -> 
B39: ='08+'!B3 -> 2024-08-01 | C39: ='08+'!M35 -> 0 | D39: ='08+'!M36 -> 0 | E39: ='08+'!M37 -> 0 | F39: ='08+'!M38 -> 0 | G39: ='08+'!M39 -> 0 | H39: ='08+'!M40 -> 0 | I39: ='08+'!M41 -> 0 | J39: ='08+'!M42 -> 0 | K39: 0 | O39: Cotisations AVS, AI, APG : | R39: =SUM(F8:F15) -> 
A40: 370 | B40: =VLOOKUP(A40,Tb_Traduction,DB_Langue,FALSE) -> Totaux | C40: =SUM(C27:C39) -> 0 | D40: 0 | E40: 0 | F40: 0 | G40: 0 | H40: 0 | I40: 0 | J40: 0 | K40: 0 | O40: Cotisations AC : | R40: =SUM(G8:G15) -> 
A41: 371 | B41: =VLOOKUP(A41,Tb_Traduction,DB_Langue,FALSE) -> Valeurs prévues | C41: =NJ_Travail ->  | D41: =NJ_CoursProf ->  | E41: =NJ_CoursIE ->  | F41: =NJ_Bloc -> 0 | G41: =NJ_Conge ->  | H41: =NJ_Vacances ->  | I41: 0 | J41: 0 | K41: =SUM(C41:J41) ->  | O41: Accident non profes. : | R41: =SUM(H8:H15) -> 
A42: 372 | B42: =VLOOKUP(A42,Tb_Traduction,DB_Langue,FALSE) -> Différences | C42: =C41-C40 ->  | D42: =D41-D40 ->  | F42: 0 | I42: 0 | J42: 0 | O42: Indemnité journalière MC | R42: =SUM(I8:I15) -> 
O43: Salaire net : | R43: =R38-SUM(R39:R42) -> 

Sheet Texte (hidden)
A1: N° | B1: Français | C1: Deutsch
A2: 1 | B2: Salaire et nombre de jours | C2: Lohn und Tagesanzahl
A3: 2 | B3: Salaire annuel de base (minimum) | C3: Bruttolohn (minimum)
A4: 3 | B4: Salaire annuel en nature (sans chambre) | C4: Naturallohn pro Jahr (ohne Zimmer)
A5: 4 | B5: Salaire annuel en nature (avec chambre) | C5: Naturallohn pro Jahr (mit Zimmer)
A6: 5 | B6: Sal. annuel en nat. (chambre hors sem. bloc) | C6: Naturallohn pro Jahr (Zimmer ausserhalb Blockw.)
A7: 6 | B7: Durée totale | C7: Vertragsdauer
A8: 7 | B8: Jours de congé | C8: Freitage
A9: 8 | B9: Vacances | C9: Ferien
A10: 9 | B10: Cours professionnel | C10: Schultage
A11: 10 | B11: Cours interentreprises | C11: üK
A12: 11 | B12: Jours en semaine bloc (inc. congé et vac.) | C12: Tagen in Blockwochen (inkl. Ferien + Freitage)
A13: 12 | B13: Jours de travail | C13: Arbeitstage
A14: 13 | B14: Nombre de mois | C14: Anzahl Monaten
A15: 14 | B15: Les normes cantonales concernant le salaire sont consultables ici: | C15: Kantonalen Standards in Bezug auf die Löhne sind hier verfügbar
A16: 15 | B16: Les normes cantonales concernant les vacances sont consultables ici: | C16: Kantonalen Standards in Bezug auf die Ferien sind hier verfügbar
A17: 100 | B17: Langue : | C17: Sprache
A18: 101 | B18: D ou F | C18: D oder F
A19: 110 | B19: Nom et prénom du maître d'apprentissage : | C19: Name und Vorname Berufsbildnerin / Berufsbildner
A20: 111 | B20: Adresse : | C20: Adresse
A21: 112 | B21: NPA et Lieu : | C21: PLZ und Ort
A22: 120 | B22: Nom et prénom de l'apprenti(e) : | C22: Name und Vorname der / des Lernenden
A23: 121 | B23: Adresse : | C23: Adresse
A24: 122 | B24: NPA et Lieu : | C24: PLZ und Ort
A25: 123 | B25: N° AVS : | C25: AHV-Nummer
A26: 124 | B26: Date de naissance : | C26: Geburtsdatum
A27: 125 | B27: Soumis à l'AVS depuis : | C27: AHV-Pflichtig seit
A28: 126 | B28: Supplément de vacances jusqu'à 20 ans révolus : | C28: Extra-Urlaub bis zu 20 Jahren vorbei
A29: 130 | B29: Année : | C29: Jahr
A30: 131 | B30: Année d'apprentissage : | C30: Lehrjahr
A31: 132 | B31: (1, 2, 3a ou 3b) | C31: (1, 2, 3a oder 3b)
A32: 133 | B32: Nombre de mois : | C32: Anzahl Monaten
A33: 135 | B33: Versement mensuel moyen : | C33: Durchschnittliche Auszahlung pro Monat
A34: 136 | B34: sans AVS, moins de 18 ans : | C34: ohne AHV, unter 18 Jahren:
A35: 137 | B35: avec AVS, dès 18 ans : | C35: mit AHV, über 18 Jahren:
A36: 140 | B36: Données salariales | C36: Lohndaten
A37: 141 | B37: Net | C37: Netto
A38: 142 | B38: Arrondi | C38: Gerundet
A39: 143 | B39: Salaire annuel de base minimum : | C39: Minimaler Jahreslohn:
A40: 144 | B40: Salaire annuel de base : | C40: Jahreslohn
A41: 145 | B41: Salaire mensuel de base : | C41: Monatslohn
A42: 146 | B42: Salaire annuel en nature : | C42: Naturallohn pro Jahr
A43: 147 | B43: Salaire mensuel en nature : | C43: Naturallohn pro Monat
A44: 148 | B44: Salaire mensuel moyen : | C44: Durchschnittliche Monatslohn
A45: 149 | B45: Ne pas modifier le salaire annuel en cours d'année ! | C45: Den Lohn während des Jahres nicht ändern !
A46: 150 | B46: Prestations en nature | C46: Naturallohnansätze
A47: 151 | B47: Logis : | C47: Übernachtung
A48: 152 | B48: Déjeuner : | C48: Morgenessen
A49: 153 | B49: Dîner : | C49: Mittagessen
A50: 154 | B50: Souper : | C50: Abendessen
A51: 155 | B51: Chambre à disposition (oui/non/bloc) : | C51: Zimmer zur Verfügung (ja/nein/Blockwochen)
A52: 156 | B52: Afficher dans le décompte le salaire en nature effectif ou mensuel (moyenne) | C52: In der Abrechnung den effektiven oder monatlichen (Durschnitt) Naturallohn anzeigen
A53: 157 | B53: Si salaire en nature mensuel, indiquer la répartition des salaires août ***1 et ***2 | C53: Wenn monatlicher Naturallohn, Lohnaufteilung August ***1 und ***2 angeben
A54: 158 | B54: Cette option est incompatible avec la variante sélectionnée ! | C54: Diese Option ist nicht kompatibel mit der selektierte Variant !
A55: 159 | B55: Si le nombre de mois est différents de 12, le calcul du salaire en nature moyen ne sera peut-être pas exact ! | C55: Wenn die Anzahl der Monate ist anders als 12, kann die Berechnung der Naturallohn pro Monat nicht ganz exakt sein !
A56: 160 | B56: Prestations en nature par jour | C56: Naturallohnansätze pro Tag
A57: 161 | B57: Nb. Jours | C57: Anz. Tage
A58: 162 | B58: Jours de travail : | C58: Arbeitstage
A59: 163 | B59: Cours professionnels : | C59: Schultage
A60: 164 | B60: Cours interentreprises : | C60: üK
A61: 165 | B61: Congé : | C61: Freitage
A62: 166 | B62: Vacances : | C62: Ferien
A63: 167 | B63: 1/2 jour (travail/congé) : | C63: halbe (Arbeitstage/Freitage)
A64: 168 | B64: Accident : | C64: Unfall
A65: 169 | B65: Maladie : | C65: Krankheit
A66: 170 | B66: Nb. de jours total : | C66: Total anzahl Tage
A67: 171 | B67: Armée : | C67: Militär
A68: 180 | B68: Retenues sur le salaire | C68: Lohnrückbehalte
A69: 181 | B69: Cotisations AVS, AI, APG : | C69: Beiträge AHV, IV, EO
A70: 182 | B70: Cotisations AC : | C70: Beiträge ALV
A71: 183 | B71: Accident non professionnel : | C71: Nichtbetriebsunfall
A72: 184 | B72: Indemnité journalière en cas de maladie : | C72: Krankentaggeld
A73: 200 | B73: Agenda | C73: Agenda
A74: 201 | B74: Décompte salaire mensuel | C74: Monatliche Lohnabrechnung
A75: 202 | B75: Apprenti(e) | C75: Lerndende / r
A76: 203 | B76: Mois : | C76: Monat:
A77: 204 | B77: Année : | C77: Jahr:
A78: 210 | B78: [ a-b-c-d-e-f-g-h-i ] | C78: [ a-b-c-d-e-f-g-h-i ]
A79: 211 | B79: Logis | C79: Übernachtung
A80: 212 | B80: Déjeuner | C80: Morgenessen
A81: 213 | B81: Dîner | C81: Mittagessen
A82: 214 | B82: Souper | C82: Abendessen
A83: 215 | B83: Montant des Prestations en nature | C83: Betrag Naturallohn
A84: 216 | B84: Montant modifié | C84: Angepasster Betrag
A85: 217 | B85: Commentaires a = Jour de travail b = Jour de cours professionel c = Jour de cours interentreprises d = Jour de congé e = Jour de vacances f = 1/2 jour de travail, 1/2 jour de congé g = Accident (jour entier) h = Maladie (jour entier) i = Armée | C85: Kommentar a = Arbeitstag b = Schultag c = überbetrieblicher Kurs (üK) d = Freitag e = Ferientag f = 1/2 Arbeitstag, 1/2 Freitag g = Unfall (ganz Tag) h = Krankheit (ganz Tag) i = Miltär
A86: 220 | B86: Maître d'apprentissage : | C86: Berufsbildner
A87: 221 | B87: Lieu : | C87: Ort
A88: 222 | B88: Apprenti : | C88: Lernende / r
A89: 223 | B89: N° AVS : | C89: AHV-Nummer
A90: 224 | B90: Date de naissance : | C90: Geburtsdatum
A91: 230 | B91: Salaire brut | C91: Bruttolohn
A92: 231 | B92: Dont Fr. *** en nature (selon barême AVS) | C92: Wovon Fr. *** Naturallohn (nach AHV)
A93: 232 | B93: Prime, bonus, gratification | C93: Prämie, Bonus, Gratifikation
A94: 233 | B94: Salaire brut total | C94: Bruttolohn total
A95: 240 | B95: Déductions | C95: Abzüge
A96: 241 | B96: Part | C96: Anteil
A97: 242 | B97: Cotisations AVS, AI, APG* : | C97: Beiträge AHV, IV, EO*:
A98: 243 | B98: Cotisations AC* : | C98: Beiträge ALV*:
A99: 244 | B99: Accident non profes.: | C99: Nichtbetriebsunfall:
A100: 245 | B100: Indemnité journalière MC : | C100: Krankentaggeld:
A101: 246 | B101: Autre déduction : | C101: Anderer Abzug:
A102: 247 | B102: Salaire en nature effectif : | C102: Effektive Naturallohn:
A103: 248 | B103: Salaire en nature mensuel : | C103: Monatliche Naturallohn:
A104: 249 | B104: *) Dès le 1er janvier de l'année des 18 ans de l'apprenti(e) | C104: *) sofern pflichtig
A105: 250 | B105: A déduire | C105: Total Abzüge
A106: 251 | B106: Frais et remboursement | C106: Rückvergügungen
A107: 252 | B107: Frais : | C107: Kostenbeteiligungen
A108: 253 | B108: Autre remboursement : | C108: Übrige Rückvergütungen
A109: 254 | B109: A ajouter | C109: Zuschläge
A110: 255 | B110: Versement du mois | C110: Netto-Auszahlung
A111: 260 | B111: Décompte des jours | C111: Tagesabrechnung
A112: 261 | B112: Mois courant | C112: aktueller Monat
A113: 262 | B113: Cumul mois précédents | C113: Summe der Vormonate
A114: 263 | B114: Prévus annuellement | C114: Jahresvor- anschlag:
A115: 264 | B115: Solde actuel | C115: Aktueller Saldo
A116: 265 | B116: Travail : | C116: Arbeit:
A117: 266 | B117: Cours prof. : | C117: Schultage:
A118: 267 | B118: Cours IE : | C118: üK:
A119: 268 | B119: Congés : | C119: Frei:
A120: 269 | B120: Vacances : | C120: Ferien:
A121: 270 | B121: Accident : | C121: Unfall:
A122: 271 | B122: Maladie : | C122: Krankheit:
A123: 272 | B123: Armée : | C123: Militär:
A124: 275 | B124: Total | C124: Total
A125: 276 | B125: Remarques : | C125: Bemerkungen:
A126: 277 | B126: cumul | C126: Total
A127: 280 | B127: Décompte des jours | C127: Tagesabrechnung
A128: 281 | B128: Jours de travail (a) : | C128: Arbeitstage ( a )
A129: 282 | B129: Cours professionnels (b) : | C129: Schultage ( b )
A130: 283 | B130: Date : | C130: Datum
A131: 284 | B131: Maître d'apprentissage : | C131: Berufsbildner /in
A132: 285 | B132: Cours interentreprises (c) : | C132: überbetriebliche Kurse ( c )
A133: 286 | B133: Congé (d) : | C133: Frei ( d )
A134: 287 | B134: Apprenti(e) : | C134: Lernende /r
A135: 288 | B135: Vacances (e) : | C135: Ferien ( e )
A136: 289 | B136: Accident (g) : | C136: Unfall ( g )
A137: 290 | B137: Maladie (h) : | C137: Krankheit ( h )
A138: 291 | B138: Armée (i) : | C138: Militär ( i )
A139: 300 | B139: Salaire | C139: Lohn
A140: 301 | B140: Déductions | C140: Abzüge
A141: 302 | B141: Frais et remb. | C141: Rückvergügungen
A142: 310 | B142: Mois | C142: Monat
A143: 311 | B143: Salaire brut | C143: Bruttolohn
A144: 312 | B144: Prime, bonus, gratification | C144: Prämie, Bonus, Gratifikation
A145: 313 | B145: Salaire brut total | C145: Bruttolohn total
A146: 314 | B146: Cotisations AVS, AI, APG | C146: Abzüge AHV, IV
A147: 315 | B147: Cotisations AC | C147: Abzüge ALV
A148: 316 | B148: Accident non profes. | C148: Nichtbetriebsunfall
A149: 317 | B149: Indemnité journalière MC | C149: Krankentaggeld
A150: 318 | B150: Autre déduction | C150: Übrige Abzüge
A151: 319 | B151: Salaire en nature effectif | C151: Effektiver Naturallohn
A152: 320 | B152: A déduire | C152: Abzüge
A153: 321 | B153: Frais | C153: Kostenbeteiligungen
A154: 322 | B154: Autre remboursement | C154: Übrige Rückvergütungen
A155: 323 | B155: A ajouter | C155: Zuschläge
A156: 324 | B156: Versement du mois | C156: Monatsauszahlung
A157: 325 | B157: Versement effectif | C157: Effektive Auszahlung
A158: 326 | B158: Différence | C158: Differenz
A159: 330 | B159: Totaux | C159: Total
A160: 331 | B160: Valeurs prévues | C160: Vorgesehene Werte
A161: 332 | B161: Différences | C161: Differenz
A162: 340 | B162: Décompte des jours | C162: Tagesabrechnung
A163: 341 | B163: Maître d'apprentissage : | C163: Berufsbildner /in
A164: 342 | B164: Lieu : | C164: Ort
A165: 343 | B165: Apprenti : | C165: Lernende /r
A166: 344 | B166: N° AVS : | C166: AHV-Nummer
A167: 345 | B167: Date de naissance : | C167: Geburtsdatum
A168: 350 | B168: Mois | C168: Monat
A169: 351 | B169: Travail | C169: Arbeit
A170: 352 | B170: Cours prof. | C170: Schultage
A171: 353 | B171: Cours IE | C171: üK
A172: 354 | B172: Congés | C172: Frei
A173: 355 | B173: Vacances | C173: Ferien
A174: 356 | B174: Accident | C174: Unfall
A175: 357 | B175: Maladie | C175: Krankheit
A176: 358 | B176: Total | C176: Total
A177: 359 | B177: Armée | C177: Militär
A178: 360 | B178: Attestation de salaire août-déc. | C178: Lohn Aug-Dec
A179: 361 | B179: Salaire brut : | C179: Bruttolohn
A180: 362 | B180: Cotisations AVS, AI, APG : | C180: Abzüge AHV, IV, EO
A181: 363 | B181: Cotisations AC : | C181: Abzüge ALV
A182: 364 | B182: Accident non profes. : | C182: Nichtbetriebsunfall
A183: 365 | B183: Salaire net : | C183: Nettolohn
A184: 366 | B184: Attestation de salaire jan.-août | C184: Lohn Jan-Aug
A185: 370 | B185: Totaux | C185: Total
A186: 371 | B186: Valeurs prévues | C186: Vorgesehene Werte
A187: 372 | B187: Différences | C187: Differenz
A188: 400 | B188: Vous ne devez remplir que les cellules jaunes !!! | C188: Bitte nur die gelben zellen ausfüllen!
A189: 401 | B189: Pour chaque jour du mois vous pouvez saisir ici la journée de l'apprenti | C189: Geben Sie für jeden Tag die Beschäftigung der / des Lernenden ein (a bis h)
A190: 402 | B190: a = Journée de travail b = Journée de cours professionnels c = Journée de cours interentreprises d = Journée de congé e = Journée de vacances f = 1/2 jour de travail, 1/2 jour de congé g = Accident (jour entier) h = Maladie (jour entier) i = Armée | C190: a = Arbeitstag b = Schultag c = überbetrieblicher Kurs (üK) d = Freitag e = Ferientag f = 1/2 Arbeitstag, 1/2 Freitag g = Unfall (ganz Tag) h = Krankheit (ganz Tag) i = Militär
A191: 403 | B191: Une cellule rouge indique une mauvaise saisie. Seules les valeurs a, b, c, d, e, f, g ou h peuvent être saisie ici. | C191: Eine rote Zelle zeigt eine Falscheingabe an. Nur die Werte a, b, c, d, e, f, g oder h können eingegeben werden.
A192: 404 | B192: Les cases rouges indiquent les prestations en nature décomptées pour la journée. | C192: Die roten Felder zeigen die Naturallohnabzüge pro Tag an.
A193: 405 | B193: Le montant des prestations en nature est calculé automatiquement | C193: Der Naturallohnabzug wird automatisch berechnet.
A194: 406 | B194: Pour chaque jour, vous pouvez ajouter ou soustraire une ou plusieurs prestations en nature | C194: Für jeden Tag können Sie eine oder mehrere Mahlzeiten hinzufügen oder entfernen.
A195: 407 | B195: Le montant modifié des prestations en nature est calculé automatiquement | C195: Der angepasste Betrag des Naturallohns wird automatisch berechnet.
A196: 408 | B196: Le total mensuel des prestations en nature est reporté dans le décompte salaire du mois si on affiche le montant effectif du salaire en nature. Sinon on reporte le salaire en nature mensuel | C196: Das Total der Naturallohnabzüge wird in die Monatsabrechnung übertragen, wenn der effektive Naturallohn angezeigt wird. Sonst wird der monatliche Naturallohn übertragt.
A197: 409 | B197: Le décompte des jours est reporté dans le décompte salaire du mois | C197: Die Tagesabrechnung wird in die Monatsabrechnung übertragen.

Sheet Données de base-Grunddaten (hidden)
B1: Choix des listes déroulantes / Wahl der Dropdown-Liste
B3: Langue / Sprache
B4: Valeurs / Werte
B5: F
B6: D
B8: Oui/Non / Ja/Nein
B9: Valeurs / Werte | C9: Français | D9: Deutsch
B10: =IF(DB_Langue=2,C10,D10) -> OUI | C10: OUI | D10: JA
B11: =IF(DB_Langue=2,C11,D11) -> NON | C11: NON | D11: NEIN
B12: =IF(DB_Langue=2,C12,D12) -> en dehors des semaines bloc | C12: en dehors des semaines bloc | D12: nur ausserhalb Blockwochen
B14: Effectif/Moyen / Effektiv/Durschnitt
B15: Affichage | C15: Valeurs / Werte | D15: Français | E15: Deutsch
B16: =IF(DB_Langue=2,D16,E16) -> Salaire en nature effectif | C16: 0 | D16: Salaire en nature effectif | E16: Effektiver Naturallohn
B17: =IF(DB_Langue=2,D17,E17) -> Salaire en nature mensuel | C17: 1 | D17: Salaire en nature mensuel | E17: Monatlicher Naturallohn
B19: Année d'apprentissage / Lehrjahr
B20: Valeurs / Werte | C20: Descriptions / Beschreibungen | D20: Français | E20: Deutsch
B21: 1 | C21: =IF(DB_Langue=2,D21,E21) -> 1ère année d'apprentissage | D21: 1ère année d'apprentissage | E21: 1. Lehrjahr
B22: 2b | C22: =IF(DB_Langue=2,D22,E22) -> 2ème année d'apprentissage | D22: 2ème année d'apprentissage | E22: 2. Lehrjahr
B23: 2f | C23: =IF(DB_Langue=2,D23,E23) -> 2ème année (8 jours de cours IE) | D23: 2ème année (8 jours de cours IE) | E23: 2. Lehrjahr (8 Tagen ük)
B24: 3 | C24: =IF(DB_Langue=2,D24,E24) -> 3ème année d'apprentissage (toute l'année) | D24: 3ème année d'apprentissage (toute l'année) | E24: 3. Lehrjahr (ganzes Jahr)
B27: Catégorie / Kategorie
B28: Valeurs / Werte | C28: Descriptions / Beschreibungen | D28: Français | E28: Deutsch
B29: a | C29: =IF(DB_Langue=2,D29,E29) -> Travail | D29: Travail | E29: Arbeitstag
B30: b | C30: Cours professionnel | D30: Cours professionnel | E30: Schultag
B31: c | C31: Cours interentreprise | D31: Cours interentreprise | E31: üK
B32: d | C32: Congé | D32: Congé | E32: Freitag
B33: e | C33: Vacances | D33: Vacances | E33: Ferien
B34: f | C34: 1/2 jour (travail/congé) | D34: 1/2 jour (travail/congé) | E34: halbe (Arbeitstag/Freitag):
B35: g | C35: Accident | D35: Accident | E35: Unfall
B36: h | C36: Maladie | D36: Maladie | E36: Krankheit
B37: i | C37: Armée | D37: Armée | E37: Militär
B40: Nombre / Anzahl
B41: Valeurs / Werte
B42: -1
B43: -0.5
B44: 0.5
B45: 1
